{"text_format":"1","workbook":"xlsx","n_sheets":14,"sheets":["يناير","فبراير","مارس","أبريل","مايو","يونيو","يوليو","أغسطس","سبتمبر","أكتوبر","نوفمبر","ديسمبر","بيانات","Main"],"not_rendered":{"charts":0,"images":2,"macros":1,"external_links":0,"defined_names":10,"comments":0,"pivot_tables":0},"unopened":[],"bounds":{"document_bytes":16777216,"sheet_cells":100000,"rows_first":2000,"rows_last":500,"rows_between":2000,"halvings":0,"cell_chars":16384,"cell_head_chars":4096},"cells_cut":0,"cells_raw":0,"read":"whole","date_system":"1900"}

{"sheet":"يناير","index":0,"n_rows":100,"n_cols":10,"rows_kept":100,"cut":false,"hidden":false,"merged":[[0,0,2,5]]}
["2019-01-01",null,null,null,null,null,null,null,"اجمالي الوارد",{"$f":"SUMIF(Table10[التصنيف الرئيسي],\"وارد\",Table10[القيمة])","v":0}]
[null,null,null,null,null,null,null,null,"اجمالي الصادر"]
[null,null,null,null,null,null,null,null,"الفائض"]
["الكود","التاريخ","التصنيف الرئيسي","التصنيف الفرعي","القيمة","البيان","Column1"]
[1,"2019-01-01","وارد","مرتب",null,{"$f":"IF(Table10[[#This Row],[التصنيف الرئيسي]]=\"وارد\",\"وارد - \"&Table10[[#This Row],[التصنيف الفرعي]],\"\")","v":"وارد - مرتب"},{"$f":"Table10[[#This Row],[التاريخ]]","v":"2019-01-01"}]
[2,null,null,null,null,{"$f":"IF(Table10[[#This Row],[التصنيف الرئيسي]]=\"وارد\",\"وارد - \"&Table10[[#This Row],[التصنيف الفرعي]],\"\")","v":""},{"$f":"Table10[[#This Row],[التاريخ]]","v":"00:00:00"}]
[3,null,null,null,null,{"$f":"IF(Table10[[#This Row],[التصنيف الرئيسي]]=\"وارد\",\"وارد - \"&Table10[[#This Row],[التصنيف الفرعي]],\"\")","v":""},{"$f":"Table10[[#This Row],[التاريخ]]","v":"00:00:00"}]
[4,null,null,null,null,{"$f":"IF(Table10[[#This Row],[التصنيف الرئيسي]]=\"وارد\",\"وارد - \"&Table10[[#This Row],[التصنيف الفرعي]],\"\")","v":""},{"$f":"Table10[[#This Row],[التاريخ]]","v":"00:00:00"}]
[5,null,null,null,null,{"$f":"IF(Table10[[#This Row],[التصنيف الرئيسي]]=\"وارد\",\"وارد - \"&Table10[[#This Row],[التصنيف الفرعي]],\"\")","v":""},{"$f":"Table10[[#This Row],[التاريخ]]","v":"00:00:00"}]
[6,null,null,null,null,{"$f":"IF(Table10[[#This Row],[التصنيف الرئيسي]]=\"وارد\",\"وارد - \"&Table10[[#This Row],[التصنيف الفرعي]],\"\")","v":""},{"$f":"Table10[[#This Row],[التاريخ]]","v":"00:00:00"}]
[7,null,null,null,null,{"$f":"IF(Table10[[#This Row],[التصنيف الرئيسي]]=\"وارد\",\"وارد - \"&Table10[[#This Row],[التصنيف الفرعي]],\"\")","v":""},{"$f":"Table10[[#This Row],[التاريخ]]","v":"00:00:00"}]
[8,null,null,null,null,{"$f":"IF(Table10[[#This Row],[التصنيف الرئيسي]]=\"وارد\",\"وارد - \"&Table10[[#This Row],[التصنيف الفرعي]],\"\")","v":""},{"$f":"Table10[[#This Row],[التاريخ]]","v":"00:00:00"}]
[9,null,null,null,null,{"$f":"IF(Table10[[#This Row],[التصنيف الرئيسي]]=\"وارد\",\"وارد - \"&Table10[[#This Row],[التصنيف الفرعي]],\"\")","v":""},{"$f":"Table10[[#This Row],[التاريخ]]","v":"00:00:00"}]
[10,null,null,null,null,{"$f":"IF(Table10[[#This Row],[التصنيف الرئيسي]]=\"وارد\",\"وارد - \"&Table10[[#This Row],[التصنيف الفرعي]],\"\")","v":""},{"$f":"Table10[[#This Row],[التاريخ]]","v":"00:00:00"}]
[11,null,null,null,null,{"$f":"IF(Table10[[#This Row],[التصنيف الرئيسي]]=\"وارد\",\"وارد - \"&Table10[[#This Row],[التصنيف الفرعي]],\"\")","v":""},{"$f":"Table10[[#This Row],[التاريخ]]","v":"00:00:00"}]
[12,null,null,null,null,{"$f":"IF(Table10[[#This Row],[التصنيف الرئيسي]]=\"وارد\",\"وارد - \"&Table10[[#This Row],[التصنيف الفرعي]],\"\")","v":""},{"$f":"Table10[[#This Row],[التاريخ]]","v":"00:00:00"}]
[13,null,null,null,null,{"$f":"IF(Table10[[#This Row],[التصنيف الرئيسي]]=\"وارد\",\"وارد - \"&Table10[[#This Row],[التصنيف الفرعي]],\"\")","v":""},{"$f":"Table10[[#This Row],[التاريخ]]","v":"00:00:00"}]
[14,null,null,null,null,{"$f":"IF(Table10[[#This Row],[التصنيف الرئيسي]]=\"وارد\",\"وارد - \"&Table10[[#This Row],[التصنيف الفرعي]],\"\")","v":""},{"$f":"Table10[[#This Row],[التاريخ]]","v":"00:00:00"}]
[15,null,null,null,null,{"$f":"IF(Table10[[#This Row],[التصنيف الرئيسي]]=\"وارد\",\"وارد - \"&Table10[[#This Row],[التصنيف الفرعي]],\"\")","v":""},{"$f":"Table10[[#This Row],[التاريخ]]","v":"00:00:00"}]
[16,null,null,null,null,{"$f":"IF(Table10[[#This Row],[التصنيف الرئيسي]]=\"وارد\",\"وارد - \"&Table10[[#This Row],[التصنيف الفرعي]],\"\")","v":""},{"$f":"Table10[[#This Row],[التاريخ]]","v":"00:00:00"}]
[17,null,null,null,null,{"$f":"IF(Table10[[#This Row],[التصنيف الرئيسي]]=\"وارد\",\"وارد - \"&Table10[[#This Row],[التصنيف الفرعي]],\"\")","v":""},{"$f":"Table10[[#This Row],[التاريخ]]","v":"00:00:00"}]
[18,null,null,null,null,{"$f":"IF(Table10[[#This Row],[التصنيف الرئيسي]]=\"وارد\",\"وارد - \"&Table10[[#This Row],[التصنيف الفرعي]],\"\")","v":""},{"$f":"Table10[[#This Row],[التاريخ]]","v":"00:00:00"}]
[19,null,null,null,null,{"$f":"IF(Table10[[#This Row],[التصنيف الرئيسي]]=\"وارد\",\"وارد - \"&Table10[[#This Row],[التصنيف الفرعي]],\"\")","v":""},{"$f":"Table10[[#This Row],[التاريخ]]","v":"00:00:00"}]
[20,null,null,null,null,{"$f":"IF(Table10[[#This Row],[التصنيف الرئيسي]]=\"وارد\",\"وارد - \"&Table10[[#This Row],[التصنيف الفرعي]],\"\")","v":""},{"$f":"Table10[[#This Row],[التاريخ]]","v":"00:00:00"}]
[21,null,null,null,null,{"$f":"IF(Table10[[#This Row],[التصنيف الرئيسي]]=\"وارد\",\"وارد - \"&Table10[[#This Row],[التصنيف الفرعي]],\"\")","v":""},{"$f":"Table10[[#This Row],[التاريخ]]","v":"00:00:00"}]
[22,null,null,null,null,{"$f":"IF(Table10[[#This Row],[التصنيف الرئيسي]]=\"وارد\",\"وارد - \"&Table10[[#This Row],[التصنيف الفرعي]],\"\")","v":""},{"$f":"Table10[[#This Row],[التاريخ]]","v":"00:00:00"}]
[23,null,null,null,null,{"$f":"IF(Table10[[#This Row],[التصنيف الرئيسي]]=\"وارد\",\"وارد - \"&Table10[[#This Row],[التصنيف الفرعي]],\"\")","v":""},{"$f":"Table10[[#This Row],[التاريخ]]","v":"00:00:00"}]
[24,null,null,null,null,{"$f":"IF(Table10[[#This Row],[التصنيف الرئيسي]]=\"وارد\",\"وارد - \"&Table10[[#This Row],[التصنيف الفرعي]],\"\")","v":""},{"$f":"Table10[[#This Row],[التاريخ]]","v":"00:00:00"}]
[25,null,null,null,null,{"$f":"IF(Table10[[#This Row],[التصنيف الرئيسي]]=\"وارد\",\"وارد - \"&Table10[[#This Row],[التصنيف الفرعي]],\"\")","v":""},{"$f":"Table10[[#This Row],[التاريخ]]","v":"00:00:00"}]
[26,null,null,null,null,{"$f":"IF(Table10[[#This Row],[التصنيف الرئيسي]]=\"وارد\",\"وارد - \"&Table10[[#This Row],[التصنيف الفرعي]],\"\")","v":""},{"$f":"Table10[[#This Row],[التاريخ]]","v":"00:00:00"}]
[27,null,null,null,null,{"$f":"IF(Table10[[#This Row],[التصنيف الرئيسي]]=\"وارد\",\"وارد - \"&Table10[[#This Row],[التصنيف الفرعي]],\"\")","v":""},{"$f":"Table10[[#This Row],[التاريخ]]","v":"00:00:00"}]
[28,null,null,null,null,{"$f":"IF(Table10[[#This Row],[التصنيف الرئيسي]]=\"وارد\",\"وارد - \"&Table10[[#This Row],[التصنيف الفرعي]],\"\")","v":""},{"$f":"Table10[[#This Row],[التاريخ]]","v":"00:00:00"}]
[29,null,null,null,null,{"$f":"IF(Table10[[#This Row],[التصنيف الرئيسي]]=\"وارد\",\"وارد - \"&Table10[[#This Row],[التصنيف الفرعي]],\"\")","v":""},{"$f":"Table10[[#This Row],[التاريخ]]","v":"00:00:00"}]
[30,null,null,null,null,{"$f":"IF(Table10[[#This Row],[التصنيف الرئيسي]]=\"وارد\",\"وارد - \"&Table10[[#This Row],[التصنيف الفرعي]],\"\")","v":""},{"$f":"Table10[[#This Row],[التاريخ]]","v":"00:00:00"}]
[31,null,null,null,null,{"$f":"IF(Table10[[#This Row],[التصنيف الرئيسي]]=\"وارد\",\"وارد - \"&Table10[[#This Row],[التصنيف الفرعي]],\"\")","v":""},{"$f":"Table10[[#This Row],[التاريخ]]","v":"00:00:00"}]
[32,null,null,null,null,{"$f":"IF(Table10[[#This Row],[التصنيف الرئيسي]]=\"وارد\",\"وارد - \"&Table10[[#This Row],[التصنيف الفرعي]],\"\")","v":""},{"$f":"Table10[[#This Row],[التاريخ]]","v":"00:00:00"}]
[33,null,null,null,null,{"$f":"IF(Table10[[#This Row],[التصنيف الرئيسي]]=\"وارد\",\"وارد - \"&Table10[[#This Row],[التصنيف الفرعي]],\"\")","v":""},{"$f":"Table10[[#This Row],[التاريخ]]","v":"00:00:00"}]
[34,null,null,null,null,{"$f":"IF(Table10[[#This Row],[التصنيف الرئيسي]]=\"وارد\",\"وارد - \"&Table10[[#This Row],[التصنيف الفرعي]],\"\")","v":""},{"$f":"Table10[[#This Row],[التاريخ]]","v":"00:00:00"}]
[35,null,null,null,null,{"$f":"IF(Table10[[#This Row],[التصنيف الرئيسي]]=\"وارد\",\"وارد - \"&Table10[[#This Row],[التصنيف الفرعي]],\"\")","v":""},{"$f":"Table10[[#This Row],[التاريخ]]","v":"00:00:00"}]
[36,null,null,null,null,{"$f":"IF(Table10[[#This Row],[التصنيف الرئيسي]]=\"وارد\",\"وارد - \"&Table10[[#This Row],[التصنيف الفرعي]],\"\")","v":""},{"$f":"Table10[[#This Row],[التاريخ]]","v":"00:00:00"}]
[37,null,null,null,null,{"$f":"IF(Table10[[#This Row],[التصنيف الرئيسي]]=\"وارد\",\"وارد - \"&Table10[[#This Row],[التصنيف الفرعي]],\"\")","v":""},{"$f":"Table10[[#This Row],[التاريخ]]","v":"00:00:00"}]
[38,null,null,null,null,{"$f":"IF(Table10[[#This Row],[التصنيف الرئيسي]]=\"وارد\",\"وارد - \"&Table10[[#This Row],[التصنيف الفرعي]],\"\")","v":""},{"$f":"Table10[[#This Row],[التاريخ]]","v":"00:00:00"}]
[39,null,null,null,null,{"$f":"IF(Table10[[#This Row],[التصنيف الرئيسي]]=\"وارد\",\"وارد - \"&Table10[[#This Row],[التصنيف الفرعي]],\"\")","v":""},{"$f":"Table10[[#This Row],[التاريخ]]","v":"00:00:00"}]
[40,null,null,null,null,{"$f":"IF(Table10[[#This Row],[التصنيف الرئيسي]]=\"وارد\",\"وارد - \"&Table10[[#This Row],[التصنيف الفرعي]],\"\")","v":""},{"$f":"Table10[[#This Row],[التاريخ]]","v":"00:00:00"}]
[41,null,null,null,null,{"$f":"IF(Table10[[#This Row],[التصنيف الرئيسي]]=\"وارد\",\"وارد - \"&Table10[[#This Row],[التصنيف الفرعي]],\"\")","v":""},{"$f":"Table10[[#This Row],[التاريخ]]","v":"00:00:00"}]
[42,null,null,null,null,{"$f":"IF(Table10[[#This Row],[التصنيف الرئيسي]]=\"وارد\",\"وارد - \"&Table10[[#This Row],[التصنيف الفرعي]],\"\")","v":""},{"$f":"Table10[[#This Row],[التاريخ]]","v":"00:00:00"}]
[43,null,null,null,null,{"$f":"IF(Table10[[#This Row],[التصنيف الرئيسي]]=\"وارد\",\"وارد - \"&Table10[[#This Row],[التصنيف الفرعي]],\"\")","v":""},{"$f":"Table10[[#This Row],[التاريخ]]","v":"00:00:00"}]
[44,null,null,null,null,{"$f":"IF(Table10[[#This Row],[التصنيف الرئيسي]]=\"وارد\",\"وارد - \"&Table10[[#This Row],[التصنيف الفرعي]],\"\")","v":""},{"$f":"Table10[[#This Row],[التاريخ]]","v":"00:00:00"}]
[45,null,null,null,null,{"$f":"IF(Table10[[#This Row],[التصنيف الرئيسي]]=\"وارد\",\"وارد - \"&Table10[[#This Row],[التصنيف الفرعي]],\"\")","v":""},{"$f":"Table10[[#This Row],[التاريخ]]","v":"00:00:00"}]
[46,null,null,null,null,{"$f":"IF(Table10[[#This Row],[التصنيف الرئيسي]]=\"وارد\",\"وارد - \"&Table10[[#This Row],[التصنيف الفرعي]],\"\")","v":""},{"$f":"Table10[[#This Row],[التاريخ]]","v":"00:00:00"}]
[47,null,null,null,null,{"$f":"IF(Table10[[#This Row],[التصنيف الرئيسي]]=\"وارد\",\"وارد - \"&Table10[[#This Row],[التصنيف الفرعي]],\"\")","v":""},{"$f":"Table10[[#This Row],[التاريخ]]","v":"00:00:00"}]
[48,null,null,null,null,{"$f":"IF(Table10[[#This Row],[التصنيف الرئيسي]]=\"وارد\",\"وارد - \"&Table10[[#This Row],[التصنيف الفرعي]],\"\")","v":""},{"$f":"Table10[[#This Row],[التاريخ]]","v":"00:00:00"}]
[49,null,null,null,null,{"$f":"IF(Table10[[#This Row],[التصنيف الرئيسي]]=\"وارد\",\"وارد - \"&Table10[[#This Row],[التصنيف الفرعي]],\"\")","v":""},{"$f":"Table10[[#This Row],[التاريخ]]","v":"00:00:00"}]
[50,null,null,null,null,{"$f":"IF(Table10[[#This Row],[التصنيف الرئيسي]]=\"وارد\",\"وارد - \"&Table10[[#This Row],[التصنيف الفرعي]],\"\")","v":""},{"$f":"Table10[[#This Row],[التاريخ]]","v":"00:00:00"}]
[51,null,null,null,null,{"$f":"IF(Table10[[#This Row],[التصنيف الرئيسي]]=\"وارد\",\"وارد - \"&Table10[[#This Row],[التصنيف الفرعي]],\"\")","v":""},{"$f":"Table10[[#This Row],[التاريخ]]","v":"00:00:00"}]
[52,null,null,null,null,{"$f":"IF(Table10[[#This Row],[التصنيف الرئيسي]]=\"وارد\",\"وارد - \"&Table10[[#This Row],[التصنيف الفرعي]],\"\")","v":""},{"$f":"Table10[[#This Row],[التاريخ]]","v":"00:00:00"}]
[53,null,null,null,null,{"$f":"IF(Table10[[#This Row],[التصنيف الرئيسي]]=\"وارد\",\"وارد - \"&Table10[[#This Row],[التصنيف الفرعي]],\"\")","v":""},{"$f":"Table10[[#This Row],[التاريخ]]","v":"00:00:00"}]
[54,null,null,null,null,{"$f":"IF(Table10[[#This Row],[التصنيف الرئيسي]]=\"وارد\",\"وارد - \"&Table10[[#This Row],[التصنيف الفرعي]],\"\")","v":""},{"$f":"Table10[[#This Row],[التاريخ]]","v":"00:00:00"}]
[55,null,null,null,null,{"$f":"IF(Table10[[#This Row],[التصنيف الرئيسي]]=\"وارد\",\"وارد - \"&Table10[[#This Row],[التصنيف الفرعي]],\"\")","v":""},{"$f":"Table10[[#This Row],[التاريخ]]","v":"00:00:00"}]
[56,null,null,null,null,{"$f":"IF(Table10[[#This Row],[التصنيف الرئيسي]]=\"وارد\",\"وارد - \"&Table10[[#This Row],[التصنيف الفرعي]],\"\")","v":""},{"$f":"Table10[[#This Row],[التاريخ]]","v":"00:00:00"}]
[57,null,null,null,null,{"$f":"IF(Table10[[#This Row],[التصنيف الرئيسي]]=\"وارد\",\"وارد - \"&Table10[[#This Row],[التصنيف الفرعي]],\"\")","v":""},{"$f":"Table10[[#This Row],[التاريخ]]","v":"00:00:00"}]
[58,null,null,null,null,{"$f":"IF(Table10[[#This Row],[التصنيف الرئيسي]]=\"وارد\",\"وارد - \"&Table10[[#This Row],[التصنيف الفرعي]],\"\")","v":""},{"$f":"Table10[[#This Row],[التاريخ]]","v":"00:00:00"}]
[59,null,null,null,null,{"$f":"IF(Table10[[#This Row],[التصنيف الرئيسي]]=\"وارد\",\"وارد - \"&Table10[[#This Row],[التصنيف الفرعي]],\"\")","v":""},{"$f":"Table10[[#This Row],[التاريخ]]","v":"00:00:00"}]
[60,null,null,null,null,{"$f":"IF(Table10[[#This Row],[التصنيف الرئيسي]]=\"وارد\",\"وارد - \"&Table10[[#This Row],[التصنيف الفرعي]],\"\")","v":""},{"$f":"Table10[[#This Row],[التاريخ]]","v":"00:00:00"}]
[61,null,null,null,null,{"$f":"IF(Table10[[#This Row],[التصنيف الرئيسي]]=\"وارد\",\"وارد - \"&Table10[[#This Row],[التصنيف الفرعي]],\"\")","v":""},{"$f":"Table10[[#This Row],[التاريخ]]","v":"00:00:00"}]
[62,null,null,null,null,{"$f":"IF(Table10[[#This Row],[التصنيف الرئيسي]]=\"وارد\",\"وارد - \"&Table10[[#This Row],[التصنيف الفرعي]],\"\")","v":""},{"$f":"Table10[[#This Row],[التاريخ]]","v":"00:00:00"}]
[63,null,null,null,null,{"$f":"IF(Table10[[#This Row],[التصنيف الرئيسي]]=\"وارد\",\"وارد - \"&Table10[[#This Row],[التصنيف الفرعي]],\"\")","v":""},{"$f":"Table10[[#This Row],[التاريخ]]","v":"00:00:00"}]
[64,null,null,null,null,{"$f":"IF(Table10[[#This Row],[التصنيف الرئيسي]]=\"وارد\",\"وارد - \"&Table10[[#This Row],[التصنيف الفرعي]],\"\")","v":""},{"$f":"Table10[[#This Row],[التاريخ]]","v":"00:00:00"}]
[65,null,null,null,null,{"$f":"IF(Table10[[#This Row],[التصنيف الرئيسي]]=\"وارد\",\"وارد - \"&Table10[[#This Row],[التصنيف الفرعي]],\"\")","v":""},{"$f":"Table10[[#This Row],[التاريخ]]","v":"00:00:00"}]
[66,null,null,null,null,{"$f":"IF(Table10[[#This Row],[التصنيف الرئيسي]]=\"وارد\",\"وارد - \"&Table10[[#This Row],[التصنيف الفرعي]],\"\")","v":""},{"$f":"Table10[[#This Row],[التاريخ]]","v":"00:00:00"}]
[67,null,null,null,null,{"$f":"IF(Table10[[#This Row],[التصنيف الرئيسي]]=\"وارد\",\"وارد - \"&Table10[[#This Row],[التصنيف الفرعي]],\"\")","v":""},{"$f":"Table10[[#This Row],[التاريخ]]","v":"00:00:00"}]
[68,null,null,null,null,{"$f":"IF(Table10[[#This Row],[التصنيف الرئيسي]]=\"وارد\",\"وارد - \"&Table10[[#This Row],[التصنيف الفرعي]],\"\")","v":""},{"$f":"Table10[[#This Row],[التاريخ]]","v":"00:00:00"}]
[69,null,null,null,null,{"$f":"IF(Table10[[#This Row],[التصنيف الرئيسي]]=\"وارد\",\"وارد - \"&Table10[[#This Row],[التصنيف الفرعي]],\"\")","v":""},{"$f":"Table10[[#This Row],[التاريخ]]","v":"00:00:00"}]
[70,null,null,null,null,{"$f":"IF(Table10[[#This Row],[التصنيف الرئيسي]]=\"وارد\",\"وارد - \"&Table10[[#This Row],[التصنيف الفرعي]],\"\")","v":""},{"$f":"Table10[[#This Row],[التاريخ]]","v":"00:00:00"}]
[71,null,null,null,null,{"$f":"IF(Table10[[#This Row],[التصنيف الرئيسي]]=\"وارد\",\"وارد - \"&Table10[[#This Row],[التصنيف الفرعي]],\"\")","v":""},{"$f":"Table10[[#This Row],[التاريخ]]","v":"00:00:00"}]
[72,null,null,null,null,{"$f":"IF(Table10[[#This Row],[التصنيف الرئيسي]]=\"وارد\",\"وارد - \"&Table10[[#This Row],[التصنيف الفرعي]],\"\")","v":""},{"$f":"Table10[[#This Row],[التاريخ]]","v":"00:00:00"}]
[73,null,null,null,null,{"$f":"IF(Table10[[#This Row],[التصنيف الرئيسي]]=\"وارد\",\"وارد - \"&Table10[[#This Row],[التصنيف الفرعي]],\"\")","v":""},{"$f":"Table10[[#This Row],[التاريخ]]","v":"00:00:00"}]
[74,null,null,null,null,{"$f":"IF(Table10[[#This Row],[التصنيف الرئيسي]]=\"وارد\",\"وارد - \"&Table10[[#This Row],[التصنيف الفرعي]],\"\")","v":""},{"$f":"Table10[[#This Row],[التاريخ]]","v":"00:00:00"}]
[75,null,null,null,null,{"$f":"IF(Table10[[#This Row],[التصنيف الرئيسي]]=\"وارد\",\"وارد - \"&Table10[[#This Row],[التصنيف الفرعي]],\"\")","v":""},{"$f":"Table10[[#This Row],[التاريخ]]","v":"00:00:00"}]
[76,null,null,null,null,{"$f":"IF(Table10[[#This Row],[التصنيف الرئيسي]]=\"وارد\",\"وارد - \"&Table10[[#This Row],[التصنيف الفرعي]],\"\")","v":""},{"$f":"Table10[[#This Row],[التاريخ]]","v":"00:00:00"}]
[77,null,null,null,null,{"$f":"IF(Table10[[#This Row],[التصنيف الرئيسي]]=\"وارد\",\"وارد - \"&Table10[[#This Row],[التصنيف الفرعي]],\"\")","v":""},{"$f":"Table10[[#This Row],[التاريخ]]","v":"00:00:00"}]
[78,null,null,null,null,{"$f":"IF(Table10[[#This Row],[التصنيف الرئيسي]]=\"وارد\",\"وارد - \"&Table10[[#This Row],[التصنيف الفرعي]],\"\")","v":""},{"$f":"Table10[[#This Row],[التاريخ]]","v":"00:00:00"}]
[79,null,null,null,null,{"$f":"IF(Table10[[#This Row],[التصنيف الرئيسي]]=\"وارد\",\"وارد - \"&Table10[[#This Row],[التصنيف الفرعي]],\"\")","v":""},{"$f":"Table10[[#This Row],[التاريخ]]","v":"00:00:00"}]
[80,null,null,null,null,{"$f":"IF(Table10[[#This Row],[التصنيف الرئيسي]]=\"وارد\",\"وارد - \"&Table10[[#This Row],[التصنيف الفرعي]],\"\")","v":""},{"$f":"Table10[[#This Row],[التاريخ]]","v":"00:00:00"}]
[81,null,null,null,null,{"$f":"IF(Table10[[#This Row],[التصنيف الرئيسي]]=\"وارد\",\"وارد - \"&Table10[[#This Row],[التصنيف الفرعي]],\"\")","v":""},{"$f":"Table10[[#This Row],[التاريخ]]","v":"00:00:00"}]
[82,null,null,null,null,{"$f":"IF(Table10[[#This Row],[التصنيف الرئيسي]]=\"وارد\",\"وارد - \"&Table10[[#This Row],[التصنيف الفرعي]],\"\")","v":""},{"$f":"Table10[[#This Row],[التاريخ]]","v":"00:00:00"}]
[83,null,null,null,null,{"$f":"IF(Table10[[#This Row],[التصنيف الرئيسي]]=\"وارد\",\"وارد - \"&Table10[[#This Row],[التصنيف الفرعي]],\"\")","v":""},{"$f":"Table10[[#This Row],[التاريخ]]","v":"00:00:00"}]
[84,null,null,null,null,{"$f":"IF(Table10[[#This Row],[التصنيف الرئيسي]]=\"وارد\",\"وارد - \"&Table10[[#This Row],[التصنيف الفرعي]],\"\")","v":""},{"$f":"Table10[[#This Row],[التاريخ]]","v":"00:00:00"}]
[85,null,null,null,null,{"$f":"IF(Table10[[#This Row],[التصنيف الرئيسي]]=\"وارد\",\"وارد - \"&Table10[[#This Row],[التصنيف الفرعي]],\"\")","v":""},{"$f":"Table10[[#This Row],[التاريخ]]","v":"00:00:00"}]
[86,null,null,null,null,{"$f":"IF(Table10[[#This Row],[التصنيف الرئيسي]]=\"وارد\",\"وارد - \"&Table10[[#This Row],[التصنيف الفرعي]],\"\")","v":""},{"$f":"Table10[[#This Row],[التاريخ]]","v":"00:00:00"}]
[87,null,null,null,null,{"$f":"IF(Table10[[#This Row],[التصنيف الرئيسي]]=\"وارد\",\"وارد - \"&Table10[[#This Row],[التصنيف الفرعي]],\"\")","v":""},{"$f":"Table10[[#This Row],[التاريخ]]","v":"00:00:00"}]
[88,null,null,null,null,{"$f":"IF(Table10[[#This Row],[التصنيف الرئيسي]]=\"وارد\",\"وارد - \"&Table10[[#This Row],[التصنيف الفرعي]],\"\")","v":""},{"$f":"Table10[[#This Row],[التاريخ]]","v":"00:00:00"}]
[89,null,null,null,null,{"$f":"IF(Table10[[#This Row],[التصنيف الرئيسي]]=\"وارد\",\"وارد - \"&Table10[[#This Row],[التصنيف الفرعي]],\"\")","v":""},{"$f":"Table10[[#This Row],[التاريخ]]","v":"00:00:00"}]
[90,null,null,null,null,{"$f":"IF(Table10[[#This Row],[التصنيف الرئيسي]]=\"وارد\",\"وارد - \"&Table10[[#This Row],[التصنيف الفرعي]],\"\")","v":""},{"$f":"Table10[[#This Row],[التاريخ]]","v":"00:00:00"}]
[91,null,null,null,null,{"$f":"IF(Table10[[#This Row],[التصنيف الرئيسي]]=\"وارد\",\"وارد - \"&Table10[[#This Row],[التصنيف الفرعي]],\"\")","v":""},{"$f":"Table10[[#This Row],[التاريخ]]","v":"00:00:00"}]
[92,null,null,null,null,{"$f":"IF(Table10[[#This Row],[التصنيف الرئيسي]]=\"وارد\",\"وارد - \"&Table10[[#This Row],[التصنيف الفرعي]],\"\")","v":""},{"$f":"Table10[[#This Row],[التاريخ]]","v":"00:00:00"}]
[93,null,null,null,null,{"$f":"IF(Table10[[#This Row],[التصنيف الرئيسي]]=\"وارد\",\"وارد - \"&Table10[[#This Row],[التصنيف الفرعي]],\"\")","v":""},{"$f":"Table10[[#This Row],[التاريخ]]","v":"00:00:00"}]
[94,null,null,null,null,{"$f":"IF(Table10[[#This Row],[التصنيف الرئيسي]]=\"وارد\",\"وارد - \"&Table10[[#This Row],[التصنيف الفرعي]],\"\")","v":""},{"$f":"Table10[[#This Row],[التاريخ]]","v":"00:00:00"}]
[95,null,null,null,null,{"$f":"IF(Table10[[#This Row],[التصنيف الرئيسي]]=\"وارد\",\"وارد - \"&Table10[[#This Row],[التصنيف الفرعي]],\"\")","v":""},{"$f":"Table10[[#This Row],[التاريخ]]","v":"00:00:00"}]
["Total",null,null,null,{"$f":"SUBTOTAL(109,Table10[القيمة])","v":0},null,{"$f":"SUBTOTAL(103,Table10[Column1])","v":95}]

{"sheet":"فبراير","index":1,"n_rows":100,"n_cols":7,"rows_kept":100,"cut":false,"hidden":false,"merged":[[0,0,2,5]]}
["2019-02-01"]
[]
[]
["الكود","التاريخ","التصنيف الرئيسي","التصنيف الفرعي","القيمة","البيان","Column1"]
[1,"2019-02-01","وارد","بدلات شهرية",6250,{"$f":"IF(Table11[[#This Row],[التصنيف الرئيسي]]=\"وارد\",\"وارد - \"&Table11[[#This Row],[التصنيف الفرعي]],\"\")","v":"وارد - بدلات شهرية"},{"$f":"Table11[[#This Row],[التاريخ]]","v":"2019-02-01"}]
[2,null,null,null,null,{"$f":"IF(Table11[[#This Row],[التصنيف الرئيسي]]=\"وارد\",\"وارد - \"&Table11[[#This Row],[التصنيف الفرعي]],\"\")","v":""},{"$f":"Table11[[#This Row],[التاريخ]]","v":"00:00:00"}]
[3,null,null,null,null,{"$f":"IF(Table11[[#This Row],[التصنيف الرئيسي]]=\"وارد\",\"وارد - \"&Table11[[#This Row],[التصنيف الفرعي]],\"\")","v":""},{"$f":"Table11[[#This Row],[التاريخ]]","v":"00:00:00"}]
[4,null,null,null,null,{"$f":"IF(Table11[[#This Row],[التصنيف الرئيسي]]=\"وارد\",\"وارد - \"&Table11[[#This Row],[التصنيف الفرعي]],\"\")","v":""},{"$f":"Table11[[#This Row],[التاريخ]]","v":"00:00:00"}]
[5,null,null,null,null,{"$f":"IF(Table11[[#This Row],[التصنيف الرئيسي]]=\"وارد\",\"وارد - \"&Table11[[#This Row],[التصنيف الفرعي]],\"\")","v":""},{"$f":"Table11[[#This Row],[التاريخ]]","v":"00:00:00"}]
[6,null,null,null,null,{"$f":"IF(Table11[[#This Row],[التصنيف الرئيسي]]=\"وارد\",\"وارد - \"&Table11[[#This Row],[التصنيف الفرعي]],\"\")","v":""},{"$f":"Table11[[#This Row],[التاريخ]]","v":"00:00:00"}]
[7,null,null,null,null,{"$f":"IF(Table11[[#This Row],[التصنيف الرئيسي]]=\"وارد\",\"وارد - \"&Table11[[#This Row],[التصنيف الفرعي]],\"\")","v":""},{"$f":"Table11[[#This Row],[التاريخ]]","v":"00:00:00"}]
[8,null,null,null,null,{"$f":"IF(Table11[[#This Row],[التصنيف الرئيسي]]=\"وارد\",\"وارد - \"&Table11[[#This Row],[التصنيف الفرعي]],\"\")","v":""},{"$f":"Table11[[#This Row],[التاريخ]]","v":"00:00:00"}]
[9,null,null,null,null,{"$f":"IF(Table11[[#This Row],[التصنيف الرئيسي]]=\"وارد\",\"وارد - \"&Table11[[#This Row],[التصنيف الفرعي]],\"\")","v":""},{"$f":"Table11[[#This Row],[التاريخ]]","v":"00:00:00"}]
[10,null,null,null,null,{"$f":"IF(Table11[[#This Row],[التصنيف الرئيسي]]=\"وارد\",\"وارد - \"&Table11[[#This Row],[التصنيف الفرعي]],\"\")","v":""},{"$f":"Table11[[#This Row],[التاريخ]]","v":"00:00:00"}]
[11,null,null,null,null,{"$f":"IF(Table11[[#This Row],[التصنيف الرئيسي]]=\"وارد\",\"وارد - \"&Table11[[#This Row],[التصنيف الفرعي]],\"\")","v":""},{"$f":"Table11[[#This Row],[التاريخ]]","v":"00:00:00"}]
[12,null,null,null,null,{"$f":"IF(Table11[[#This Row],[التصنيف الرئيسي]]=\"وارد\",\"وارد - \"&Table11[[#This Row],[التصنيف الفرعي]],\"\")","v":""},{"$f":"Table11[[#This Row],[التاريخ]]","v":"00:00:00"}]
[13,null,null,null,null,{"$f":"IF(Table11[[#This Row],[التصنيف الرئيسي]]=\"وارد\",\"وارد - \"&Table11[[#This Row],[التصنيف الفرعي]],\"\")","v":""},{"$f":"Table11[[#This Row],[التاريخ]]","v":"00:00:00"}]
[14,null,null,null,null,{"$f":"IF(Table11[[#This Row],[التصنيف الرئيسي]]=\"وارد\",\"وارد - \"&Table11[[#This Row],[التصنيف الفرعي]],\"\")","v":""},{"$f":"Table11[[#This Row],[التاريخ]]","v":"00:00:00"}]
[15,null,null,null,null,{"$f":"IF(Table11[[#This Row],[التصنيف الرئيسي]]=\"وارد\",\"وارد - \"&Table11[[#This Row],[التصنيف الفرعي]],\"\")","v":""},{"$f":"Table11[[#This Row],[التاريخ]]","v":"00:00:00"}]
[16,null,null,null,null,{"$f":"IF(Table11[[#This Row],[التصنيف الرئيسي]]=\"وارد\",\"وارد - \"&Table11[[#This Row],[التصنيف الفرعي]],\"\")","v":""},{"$f":"Table11[[#This Row],[التاريخ]]","v":"00:00:00"}]
[17,null,null,null,null,{"$f":"IF(Table11[[#This Row],[التصنيف الرئيسي]]=\"وارد\",\"وارد - \"&Table11[[#This Row],[التصنيف الفرعي]],\"\")","v":""},{"$f":"Table11[[#This Row],[التاريخ]]","v":"00:00:00"}]
[18,null,null,null,null,{"$f":"IF(Table11[[#This Row],[التصنيف الرئيسي]]=\"وارد\",\"وارد - \"&Table11[[#This Row],[التصنيف الفرعي]],\"\")","v":""},{"$f":"Table11[[#This Row],[التاريخ]]","v":"00:00:00"}]
[19,null,null,null,null,{"$f":"IF(Table11[[#This Row],[التصنيف الرئيسي]]=\"وارد\",\"وارد - \"&Table11[[#This Row],[التصنيف الفرعي]],\"\")","v":""},{"$f":"Table11[[#This Row],[التاريخ]]","v":"00:00:00"}]
[20,null,null,null,null,{"$f":"IF(Table11[[#This Row],[التصنيف الرئيسي]]=\"وارد\",\"وارد - \"&Table11[[#This Row],[التصنيف الفرعي]],\"\")","v":""},{"$f":"Table11[[#This Row],[التاريخ]]","v":"00:00:00"}]
[21,null,null,null,null,{"$f":"IF(Table11[[#This Row],[التصنيف الرئيسي]]=\"وارد\",\"وارد - \"&Table11[[#This Row],[التصنيف الفرعي]],\"\")","v":""},{"$f":"Table11[[#This Row],[التاريخ]]","v":"00:00:00"}]
[22,null,null,null,null,{"$f":"IF(Table11[[#This Row],[التصنيف الرئيسي]]=\"وارد\",\"وارد - \"&Table11[[#This Row],[التصنيف الفرعي]],\"\")","v":""},{"$f":"Table11[[#This Row],[التاريخ]]","v":"00:00:00"}]
[23,null,null,null,null,{"$f":"IF(Table11[[#This Row],[التصنيف الرئيسي]]=\"وارد\",\"وارد - \"&Table11[[#This Row],[التصنيف الفرعي]],\"\")","v":""},{"$f":"Table11[[#This Row],[التاريخ]]","v":"00:00:00"}]
[24,null,null,null,null,{"$f":"IF(Table11[[#This Row],[التصنيف الرئيسي]]=\"وارد\",\"وارد - \"&Table11[[#This Row],[التصنيف الفرعي]],\"\")","v":""},{"$f":"Table11[[#This Row],[التاريخ]]","v":"00:00:00"}]
[25,null,null,null,null,{"$f":"IF(Table11[[#This Row],[التصنيف الرئيسي]]=\"وارد\",\"وارد - \"&Table11[[#This Row],[التصنيف الفرعي]],\"\")","v":""},{"$f":"Table11[[#This Row],[التاريخ]]","v":"00:00:00"}]
[26,null,null,null,null,{"$f":"IF(Table11[[#This Row],[التصنيف الرئيسي]]=\"وارد\",\"وارد - \"&Table11[[#This Row],[التصنيف الفرعي]],\"\")","v":""},{"$f":"Table11[[#This Row],[التاريخ]]","v":"00:00:00"}]
[27,null,null,null,null,{"$f":"IF(Table11[[#This Row],[التصنيف الرئيسي]]=\"وارد\",\"وارد - \"&Table11[[#This Row],[التصنيف الفرعي]],\"\")","v":""},{"$f":"Table11[[#This Row],[التاريخ]]","v":"00:00:00"}]
[28,null,null,null,null,{"$f":"IF(Table11[[#This Row],[التصنيف الرئيسي]]=\"وارد\",\"وارد - \"&Table11[[#This Row],[التصنيف الفرعي]],\"\")","v":""},{"$f":"Table11[[#This Row],[التاريخ]]","v":"00:00:00"}]
[29,null,null,null,null,{"$f":"IF(Table11[[#This Row],[التصنيف الرئيسي]]=\"وارد\",\"وارد - \"&Table11[[#This Row],[التصنيف الفرعي]],\"\")","v":""},{"$f":"Table11[[#This Row],[التاريخ]]","v":"00:00:00"}]
[30,null,null,null,null,{"$f":"IF(Table11[[#This Row],[التصنيف الرئيسي]]=\"وارد\",\"وارد - \"&Table11[[#This Row],[التصنيف الفرعي]],\"\")","v":""},{"$f":"Table11[[#This Row],[التاريخ]]","v":"00:00:00"}]
[31,null,null,null,null,{"$f":"IF(Table11[[#This Row],[التصنيف الرئيسي]]=\"وارد\",\"وارد - \"&Table11[[#This Row],[التصنيف الفرعي]],\"\")","v":""},{"$f":"Table11[[#This Row],[التاريخ]]","v":"00:00:00"}]
[32,null,null,null,null,{"$f":"IF(Table11[[#This Row],[التصنيف الرئيسي]]=\"وارد\",\"وارد - \"&Table11[[#This Row],[التصنيف الفرعي]],\"\")","v":""},{"$f":"Table11[[#This Row],[التاريخ]]","v":"00:00:00"}]
[33,null,null,null,null,{"$f":"IF(Table11[[#This Row],[التصنيف الرئيسي]]=\"وارد\",\"وارد - \"&Table11[[#This Row],[التصنيف الفرعي]],\"\")","v":""},{"$f":"Table11[[#This Row],[التاريخ]]","v":"00:00:00"}]
[34,null,null,null,null,{"$f":"IF(Table11[[#This Row],[التصنيف الرئيسي]]=\"وارد\",\"وارد - \"&Table11[[#This Row],[التصنيف الفرعي]],\"\")","v":""},{"$f":"Table11[[#This Row],[التاريخ]]","v":"00:00:00"}]
[35,null,null,null,null,{"$f":"IF(Table11[[#This Row],[التصنيف الرئيسي]]=\"وارد\",\"وارد - \"&Table11[[#This Row],[التصنيف الفرعي]],\"\")","v":""},{"$f":"Table11[[#This Row],[التاريخ]]","v":"00:00:00"}]
[36,null,null,null,null,{"$f":"IF(Table11[[#This Row],[التصنيف الرئيسي]]=\"وارد\",\"وارد - \"&Table11[[#This Row],[التصنيف الفرعي]],\"\")","v":""},{"$f":"Table11[[#This Row],[التاريخ]]","v":"00:00:00"}]
[37,null,null,null,null,{"$f":"IF(Table11[[#This Row],[التصنيف الرئيسي]]=\"وارد\",\"وارد - \"&Table11[[#This Row],[التصنيف الفرعي]],\"\")","v":""},{"$f":"Table11[[#This Row],[التاريخ]]","v":"00:00:00"}]
[38,null,null,null,null,{"$f":"IF(Table11[[#This Row],[التصنيف الرئيسي]]=\"وارد\",\"وارد - \"&Table11[[#This Row],[التصنيف الفرعي]],\"\")","v":""},{"$f":"Table11[[#This Row],[التاريخ]]","v":"00:00:00"}]
[39,null,null,null,null,{"$f":"IF(Table11[[#This Row],[التصنيف الرئيسي]]=\"وارد\",\"وارد - \"&Table11[[#This Row],[التصنيف الفرعي]],\"\")","v":""},{"$f":"Table11[[#This Row],[التاريخ]]","v":"00:00:00"}]
[40,null,null,null,null,{"$f":"IF(Table11[[#This Row],[التصنيف الرئيسي]]=\"وارد\",\"وارد - \"&Table11[[#This Row],[التصنيف الفرعي]],\"\")","v":""},{"$f":"Table11[[#This Row],[التاريخ]]","v":"00:00:00"}]
[41,null,null,null,null,{"$f":"IF(Table11[[#This Row],[التصنيف الرئيسي]]=\"وارد\",\"وارد - \"&Table11[[#This Row],[التصنيف الفرعي]],\"\")","v":""},{"$f":"Table11[[#This Row],[التاريخ]]","v":"00:00:00"}]
[42,null,null,null,null,{"$f":"IF(Table11[[#This Row],[التصنيف الرئيسي]]=\"وارد\",\"وارد - \"&Table11[[#This Row],[التصنيف الفرعي]],\"\")","v":""},{"$f":"Table11[[#This Row],[التاريخ]]","v":"00:00:00"}]
[43,null,null,null,null,{"$f":"IF(Table11[[#This Row],[التصنيف الرئيسي]]=\"وارد\",\"وارد - \"&Table11[[#This Row],[التصنيف الفرعي]],\"\")","v":""},{"$f":"Table11[[#This Row],[التاريخ]]","v":"00:00:00"}]
[44,null,null,null,null,{"$f":"IF(Table11[[#This Row],[التصنيف الرئيسي]]=\"وارد\",\"وارد - \"&Table11[[#This Row],[التصنيف الفرعي]],\"\")","v":""},{"$f":"Table11[[#This Row],[التاريخ]]","v":"00:00:00"}]
[45,null,null,null,null,{"$f":"IF(Table11[[#This Row],[التصنيف الرئيسي]]=\"وارد\",\"وارد - \"&Table11[[#This Row],[التصنيف الفرعي]],\"\")","v":""},{"$f":"Table11[[#This Row],[التاريخ]]","v":"00:00:00"}]
[46,null,null,null,null,{"$f":"IF(Table11[[#This Row],[التصنيف الرئيسي]]=\"وارد\",\"وارد - \"&Table11[[#This Row],[التصنيف الفرعي]],\"\")","v":""},{"$f":"Table11[[#This Row],[التاريخ]]","v":"00:00:00"}]
[47,null,null,null,null,{"$f":"IF(Table11[[#This Row],[التصنيف الرئيسي]]=\"وارد\",\"وارد - \"&Table11[[#This Row],[التصنيف الفرعي]],\"\")","v":""},{"$f":"Table11[[#This Row],[التاريخ]]","v":"00:00:00"}]
[48,null,null,null,null,{"$f":"IF(Table11[[#This Row],[التصنيف الرئيسي]]=\"وارد\",\"وارد - \"&Table11[[#This Row],[التصنيف الفرعي]],\"\")","v":""},{"$f":"Table11[[#This Row],[التاريخ]]","v":"00:00:00"}]
[49,null,null,null,null,{"$f":"IF(Table11[[#This Row],[التصنيف الرئيسي]]=\"وارد\",\"وارد - \"&Table11[[#This Row],[التصنيف الفرعي]],\"\")","v":""},{"$f":"Table11[[#This Row],[التاريخ]]","v":"00:00:00"}]
[50,null,null,null,null,{"$f":"IF(Table11[[#This Row],[التصنيف الرئيسي]]=\"وارد\",\"وارد - \"&Table11[[#This Row],[التصنيف الفرعي]],\"\")","v":""},{"$f":"Table11[[#This Row],[التاريخ]]","v":"00:00:00"}]
[51,null,null,null,null,{"$f":"IF(Table11[[#This Row],[التصنيف الرئيسي]]=\"وارد\",\"وارد - \"&Table11[[#This Row],[التصنيف الفرعي]],\"\")","v":""},{"$f":"Table11[[#This Row],[التاريخ]]","v":"00:00:00"}]
[52,null,null,null,null,{"$f":"IF(Table11[[#This Row],[التصنيف الرئيسي]]=\"وارد\",\"وارد - \"&Table11[[#This Row],[التصنيف الفرعي]],\"\")","v":""},{"$f":"Table11[[#This Row],[التاريخ]]","v":"00:00:00"}]
[53,null,null,null,null,{"$f":"IF(Table11[[#This Row],[التصنيف الرئيسي]]=\"وارد\",\"وارد - \"&Table11[[#This Row],[التصنيف الفرعي]],\"\")","v":""},{"$f":"Table11[[#This Row],[التاريخ]]","v":"00:00:00"}]
[54,null,null,null,null,{"$f":"IF(Table11[[#This Row],[التصنيف الرئيسي]]=\"وارد\",\"وارد - \"&Table11[[#This Row],[التصنيف الفرعي]],\"\")","v":""},{"$f":"Table11[[#This Row],[التاريخ]]","v":"00:00:00"}]
[55,null,null,null,null,{"$f":"IF(Table11[[#This Row],[التصنيف الرئيسي]]=\"وارد\",\"وارد - \"&Table11[[#This Row],[التصنيف الفرعي]],\"\")","v":""},{"$f":"Table11[[#This Row],[التاريخ]]","v":"00:00:00"}]
[56,null,null,null,null,{"$f":"IF(Table11[[#This Row],[التصنيف الرئيسي]]=\"وارد\",\"وارد - \"&Table11[[#This Row],[التصنيف الفرعي]],\"\")","v":""},{"$f":"Table11[[#This Row],[التاريخ]]","v":"00:00:00"}]
[57,null,null,null,null,{"$f":"IF(Table11[[#This Row],[التصنيف الرئيسي]]=\"وارد\",\"وارد - \"&Table11[[#This Row],[التصنيف الفرعي]],\"\")","v":""},{"$f":"Table11[[#This Row],[التاريخ]]","v":"00:00:00"}]
[58,null,null,null,null,{"$f":"IF(Table11[[#This Row],[التصنيف الرئيسي]]=\"وارد\",\"وارد - \"&Table11[[#This Row],[التصنيف الفرعي]],\"\")","v":""},{"$f":"Table11[[#This Row],[التاريخ]]","v":"00:00:00"}]
[59,null,null,null,null,{"$f":"IF(Table11[[#This Row],[التصنيف الرئيسي]]=\"وارد\",\"وارد - \"&Table11[[#This Row],[التصنيف الفرعي]],\"\")","v":""},{"$f":"Table11[[#This Row],[التاريخ]]","v":"00:00:00"}]
[60,null,null,null,null,{"$f":"IF(Table11[[#This Row],[التصنيف الرئيسي]]=\"وارد\",\"وارد - \"&Table11[[#This Row],[التصنيف الفرعي]],\"\")","v":""},{"$f":"Table11[[#This Row],[التاريخ]]","v":"00:00:00"}]
[61,null,null,null,null,{"$f":"IF(Table11[[#This Row],[التصنيف الرئيسي]]=\"وارد\",\"وارد - \"&Table11[[#This Row],[التصنيف الفرعي]],\"\")","v":""},{"$f":"Table11[[#This Row],[التاريخ]]","v":"00:00:00"}]
[62,null,null,null,null,{"$f":"IF(Table11[[#This Row],[التصنيف الرئيسي]]=\"وارد\",\"وارد - \"&Table11[[#This Row],[التصنيف الفرعي]],\"\")","v":""},{"$f":"Table11[[#This Row],[التاريخ]]","v":"00:00:00"}]
[63,null,null,null,null,{"$f":"IF(Table11[[#This Row],[التصنيف الرئيسي]]=\"وارد\",\"وارد - \"&Table11[[#This Row],[التصنيف الفرعي]],\"\")","v":""},{"$f":"Table11[[#This Row],[التاريخ]]","v":"00:00:00"}]
[64,null,null,null,null,{"$f":"IF(Table11[[#This Row],[التصنيف الرئيسي]]=\"وارد\",\"وارد - \"&Table11[[#This Row],[التصنيف الفرعي]],\"\")","v":""},{"$f":"Table11[[#This Row],[التاريخ]]","v":"00:00:00"}]
[65,null,null,null,null,{"$f":"IF(Table11[[#This Row],[التصنيف الرئيسي]]=\"وارد\",\"وارد - \"&Table11[[#This Row],[التصنيف الفرعي]],\"\")","v":""},{"$f":"Table11[[#This Row],[التاريخ]]","v":"00:00:00"}]
[66,null,null,null,null,{"$f":"IF(Table11[[#This Row],[التصنيف الرئيسي]]=\"وارد\",\"وارد - \"&Table11[[#This Row],[التصنيف الفرعي]],\"\")","v":""},{"$f":"Table11[[#This Row],[التاريخ]]","v":"00:00:00"}]
[67,null,null,null,null,{"$f":"IF(Table11[[#This Row],[التصنيف الرئيسي]]=\"وارد\",\"وارد - \"&Table11[[#This Row],[التصنيف الفرعي]],\"\")","v":""},{"$f":"Table11[[#This Row],[التاريخ]]","v":"00:00:00"}]
[68,null,null,null,null,{"$f":"IF(Table11[[#This Row],[التصنيف الرئيسي]]=\"وارد\",\"وارد - \"&Table11[[#This Row],[التصنيف الفرعي]],\"\")","v":""},{"$f":"Table11[[#This Row],[التاريخ]]","v":"00:00:00"}]
[69,null,null,null,null,{"$f":"IF(Table11[[#This Row],[التصنيف الرئيسي]]=\"وارد\",\"وارد - \"&Table11[[#This Row],[التصنيف الفرعي]],\"\")","v":""},{"$f":"Table11[[#This Row],[التاريخ]]","v":"00:00:00"}]
[70,null,null,null,null,{"$f":"IF(Table11[[#This Row],[التصنيف الرئيسي]]=\"وارد\",\"وارد - \"&Table11[[#This Row],[التصنيف الفرعي]],\"\")","v":""},{"$f":"Table11[[#This Row],[التاريخ]]","v":"00:00:00"}]
[71,null,null,null,null,{"$f":"IF(Table11[[#This Row],[التصنيف الرئيسي]]=\"وارد\",\"وارد - \"&Table11[[#This Row],[التصنيف الفرعي]],\"\")","v":""},{"$f":"Table11[[#This Row],[التاريخ]]","v":"00:00:00"}]
[72,null,null,null,null,{"$f":"IF(Table11[[#This Row],[التصنيف الرئيسي]]=\"وارد\",\"وارد - \"&Table11[[#This Row],[التصنيف الفرعي]],\"\")","v":""},{"$f":"Table11[[#This Row],[التاريخ]]","v":"00:00:00"}]
[73,null,null,null,null,{"$f":"IF(Table11[[#This Row],[التصنيف الرئيسي]]=\"وارد\",\"وارد - \"&Table11[[#This Row],[التصنيف الفرعي]],\"\")","v":""},{"$f":"Table11[[#This Row],[التاريخ]]","v":"00:00:00"}]
[74,null,null,null,null,{"$f":"IF(Table11[[#This Row],[التصنيف الرئيسي]]=\"وارد\",\"وارد - \"&Table11[[#This Row],[التصنيف الفرعي]],\"\")","v":""},{"$f":"Table11[[#This Row],[التاريخ]]","v":"00:00:00"}]
[75,null,null,null,null,{"$f":"IF(Table11[[#This Row],[التصنيف الرئيسي]]=\"وارد\",\"وارد - \"&Table11[[#This Row],[التصنيف الفرعي]],\"\")","v":""},{"$f":"Table11[[#This Row],[التاريخ]]","v":"00:00:00"}]
[76,null,null,null,null,{"$f":"IF(Table11[[#This Row],[التصنيف الرئيسي]]=\"وارد\",\"وارد - \"&Table11[[#This Row],[التصنيف الفرعي]],\"\")","v":""},{"$f":"Table11[[#This Row],[التاريخ]]","v":"00:00:00"}]
[77,null,null,null,null,{"$f":"IF(Table11[[#This Row],[التصنيف الرئيسي]]=\"وارد\",\"وارد - \"&Table11[[#This Row],[التصنيف الفرعي]],\"\")","v":""},{"$f":"Table11[[#This Row],[التاريخ]]","v":"00:00:00"}]
[78,null,null,null,null,{"$f":"IF(Table11[[#This Row],[التصنيف الرئيسي]]=\"وارد\",\"وارد - \"&Table11[[#This Row],[التصنيف الفرعي]],\"\")","v":""},{"$f":"Table11[[#This Row],[التاريخ]]","v":"00:00:00"}]
[79,null,null,null,null,{"$f":"IF(Table11[[#This Row],[التصنيف الرئيسي]]=\"وارد\",\"وارد - \"&Table11[[#This Row],[التصنيف الفرعي]],\"\")","v":""},{"$f":"Table11[[#This Row],[التاريخ]]","v":"00:00:00"}]
[80,null,null,null,null,{"$f":"IF(Table11[[#This Row],[التصنيف الرئيسي]]=\"وارد\",\"وارد - \"&Table11[[#This Row],[التصنيف الفرعي]],\"\")","v":""},{"$f":"Table11[[#This Row],[التاريخ]]","v":"00:00:00"}]
[81,null,null,null,null,{"$f":"IF(Table11[[#This Row],[التصنيف الرئيسي]]=\"وارد\",\"وارد - \"&Table11[[#This Row],[التصنيف الفرعي]],\"\")","v":""},{"$f":"Table11[[#This Row],[التاريخ]]","v":"00:00:00"}]
[82,null,null,null,null,{"$f":"IF(Table11[[#This Row],[التصنيف الرئيسي]]=\"وارد\",\"وارد - \"&Table11[[#This Row],[التصنيف الفرعي]],\"\")","v":""},{"$f":"Table11[[#This Row],[التاريخ]]","v":"00:00:00"}]
[83,null,null,null,null,{"$f":"IF(Table11[[#This Row],[التصنيف الرئيسي]]=\"وارد\",\"وارد - \"&Table11[[#This Row],[التصنيف الفرعي]],\"\")","v":""},{"$f":"Table11[[#This Row],[التاريخ]]","v":"00:00:00"}]
[84,null,null,null,null,{"$f":"IF(Table11[[#This Row],[التصنيف الرئيسي]]=\"وارد\",\"وارد - \"&Table11[[#This Row],[التصنيف الفرعي]],\"\")","v":""},{"$f":"Table11[[#This Row],[التاريخ]]","v":"00:00:00"}]
[85,null,null,null,null,{"$f":"IF(Table11[[#This Row],[التصنيف الرئيسي]]=\"وارد\",\"وارد - \"&Table11[[#This Row],[التصنيف الفرعي]],\"\")","v":""},{"$f":"Table11[[#This Row],[التاريخ]]","v":"00:00:00"}]
[86,null,null,null,null,{"$f":"IF(Table11[[#This Row],[التصنيف الرئيسي]]=\"وارد\",\"وارد - \"&Table11[[#This Row],[التصنيف الفرعي]],\"\")","v":""},{"$f":"Table11[[#This Row],[التاريخ]]","v":"00:00:00"}]
[87,null,null,null,null,{"$f":"IF(Table11[[#This Row],[التصنيف الرئيسي]]=\"وارد\",\"وارد - \"&Table11[[#This Row],[التصنيف الفرعي]],\"\")","v":""},{"$f":"Table11[[#This Row],[التاريخ]]","v":"00:00:00"}]
[88,null,null,null,null,{"$f":"IF(Table11[[#This Row],[التصنيف الرئيسي]]=\"وارد\",\"وارد - \"&Table11[[#This Row],[التصنيف الفرعي]],\"\")","v":""},{"$f":"Table11[[#This Row],[التاريخ]]","v":"00:00:00"}]
[89,null,null,null,null,{"$f":"IF(Table11[[#This Row],[التصنيف الرئيسي]]=\"وارد\",\"وارد - \"&Table11[[#This Row],[التصنيف الفرعي]],\"\")","v":""},{"$f":"Table11[[#This Row],[التاريخ]]","v":"00:00:00"}]
[90,null,null,null,null,{"$f":"IF(Table11[[#This Row],[التصنيف الرئيسي]]=\"وارد\",\"وارد - \"&Table11[[#This Row],[التصنيف الفرعي]],\"\")","v":""},{"$f":"Table11[[#This Row],[التاريخ]]","v":"00:00:00"}]
[91,null,null,null,null,{"$f":"IF(Table11[[#This Row],[التصنيف الرئيسي]]=\"وارد\",\"وارد - \"&Table11[[#This Row],[التصنيف الفرعي]],\"\")","v":""},{"$f":"Table11[[#This Row],[التاريخ]]","v":"00:00:00"}]
[92,null,null,null,null,{"$f":"IF(Table11[[#This Row],[التصنيف الرئيسي]]=\"وارد\",\"وارد - \"&Table11[[#This Row],[التصنيف الفرعي]],\"\")","v":""},{"$f":"Table11[[#This Row],[التاريخ]]","v":"00:00:00"}]
[93,null,null,null,null,{"$f":"IF(Table11[[#This Row],[التصنيف الرئيسي]]=\"وارد\",\"وارد - \"&Table11[[#This Row],[التصنيف الفرعي]],\"\")","v":""},{"$f":"Table11[[#This Row],[التاريخ]]","v":"00:00:00"}]
[94,null,null,null,null,{"$f":"IF(Table11[[#This Row],[التصنيف الرئيسي]]=\"وارد\",\"وارد - \"&Table11[[#This Row],[التصنيف الفرعي]],\"\")","v":""},{"$f":"Table11[[#This Row],[التاريخ]]","v":"00:00:00"}]
[95,null,null,null,null,{"$f":"IF(Table11[[#This Row],[التصنيف الرئيسي]]=\"وارد\",\"وارد - \"&Table11[[#This Row],[التصنيف الفرعي]],\"\")","v":""},{"$f":"Table11[[#This Row],[التاريخ]]","v":"00:00:00"}]
["Total",null,null,null,{"$f":"SUBTOTAL(109,Table11[القيمة])","v":6250},{"$f":"SUBTOTAL(103,Table11[البيان])","v":95}]

{"sheet":"مارس","index":2,"n_rows":100,"n_cols":7,"rows_kept":100,"cut":false,"hidden":false,"merged":[[0,0,2,5]]}
["2019-03-01"]
[]
[]
["الكود","التاريخ","التصنيف الرئيسي","التصنيف الفرعي","القيمة","البيان","Column1"]
[1,"2019-03-01","وارد","مرتب",6250,{"$f":"IF(Table12[[#This Row],[التصنيف الرئيسي]]=\"وارد\",\"وارد - \"&Table12[[#This Row],[التصنيف الفرعي]],\"\")","v":"وارد - مرتب"},{"$f":"Table12[[#This Row],[التاريخ]]","v":"2019-03-01"}]
[2,"2019-03-01",null,null,null,{"$f":"IF(Table12[[#This Row],[التصنيف الرئيسي]]=\"وارد\",\"وارد - \"&Table12[[#This Row],[التصنيف الفرعي]],\"\")","v":""},{"$f":"Table12[[#This Row],[التاريخ]]","v":"2019-03-01"}]
[3,"2019-03-01",null,null,null,{"$f":"IF(Table12[[#This Row],[التصنيف الرئيسي]]=\"وارد\",\"وارد - \"&Table12[[#This Row],[التصنيف الفرعي]],\"\")","v":""},{"$f":"Table12[[#This Row],[التاريخ]]","v":"2019-03-01"}]
[4,null,null,null,null,{"$f":"IF(Table12[[#This Row],[التصنيف الرئيسي]]=\"وارد\",\"وارد - \"&Table12[[#This Row],[التصنيف الفرعي]],\"\")","v":""},{"$f":"Table12[[#This Row],[التاريخ]]","v":"00:00:00"}]
[5,null,null,null,null,{"$f":"IF(Table12[[#This Row],[التصنيف الرئيسي]]=\"وارد\",\"وارد - \"&Table12[[#This Row],[التصنيف الفرعي]],\"\")","v":""},{"$f":"Table12[[#This Row],[التاريخ]]","v":"00:00:00"}]
[6,null,null,null,null,{"$f":"IF(Table12[[#This Row],[التصنيف الرئيسي]]=\"وارد\",\"وارد - \"&Table12[[#This Row],[التصنيف الفرعي]],\"\")","v":""},{"$f":"Table12[[#This Row],[التاريخ]]","v":"00:00:00"}]
[7,null,null,null,null,{"$f":"IF(Table12[[#This Row],[التصنيف الرئيسي]]=\"وارد\",\"وارد - \"&Table12[[#This Row],[التصنيف الفرعي]],\"\")","v":""},{"$f":"Table12[[#This Row],[التاريخ]]","v":"00:00:00"}]
[8,null,null,null,null,{"$f":"IF(Table12[[#This Row],[التصنيف الرئيسي]]=\"وارد\",\"وارد - \"&Table12[[#This Row],[التصنيف الفرعي]],\"\")","v":""},{"$f":"Table12[[#This Row],[التاريخ]]","v":"00:00:00"}]
[9,null,null,null,null,{"$f":"IF(Table12[[#This Row],[التصنيف الرئيسي]]=\"وارد\",\"وارد - \"&Table12[[#This Row],[التصنيف الفرعي]],\"\")","v":""},{"$f":"Table12[[#This Row],[التاريخ]]","v":"00:00:00"}]
[10,null,null,null,null,{"$f":"IF(Table12[[#This Row],[التصنيف الرئيسي]]=\"وارد\",\"وارد - \"&Table12[[#This Row],[التصنيف الفرعي]],\"\")","v":""},{"$f":"Table12[[#This Row],[التاريخ]]","v":"00:00:00"}]
[11,null,null,null,null,{"$f":"IF(Table12[[#This Row],[التصنيف الرئيسي]]=\"وارد\",\"وارد - \"&Table12[[#This Row],[التصنيف الفرعي]],\"\")","v":""},{"$f":"Table12[[#This Row],[التاريخ]]","v":"00:00:00"}]
[12,null,null,null,null,{"$f":"IF(Table12[[#This Row],[التصنيف الرئيسي]]=\"وارد\",\"وارد - \"&Table12[[#This Row],[التصنيف الفرعي]],\"\")","v":""},{"$f":"Table12[[#This Row],[التاريخ]]","v":"00:00:00"}]
[13,null,null,null,null,{"$f":"IF(Table12[[#This Row],[التصنيف الرئيسي]]=\"وارد\",\"وارد - \"&Table12[[#This Row],[التصنيف الفرعي]],\"\")","v":""},{"$f":"Table12[[#This Row],[التاريخ]]","v":"00:00:00"}]
[14,null,null,null,null,{"$f":"IF(Table12[[#This Row],[التصنيف الرئيسي]]=\"وارد\",\"وارد - \"&Table12[[#This Row],[التصنيف الفرعي]],\"\")","v":""},{"$f":"Table12[[#This Row],[التاريخ]]","v":"00:00:00"}]
[15,null,null,null,null,{"$f":"IF(Table12[[#This Row],[التصنيف الرئيسي]]=\"وارد\",\"وارد - \"&Table12[[#This Row],[التصنيف الفرعي]],\"\")","v":""},{"$f":"Table12[[#This Row],[التاريخ]]","v":"00:00:00"}]
[16,null,null,null,null,{"$f":"IF(Table12[[#This Row],[التصنيف الرئيسي]]=\"وارد\",\"وارد - \"&Table12[[#This Row],[التصنيف الفرعي]],\"\")","v":""},{"$f":"Table12[[#This Row],[التاريخ]]","v":"00:00:00"}]
[17,null,null,null,null,{"$f":"IF(Table12[[#This Row],[التصنيف الرئيسي]]=\"وارد\",\"وارد - \"&Table12[[#This Row],[التصنيف الفرعي]],\"\")","v":""},{"$f":"Table12[[#This Row],[التاريخ]]","v":"00:00:00"}]
[18,null,null,null,null,{"$f":"IF(Table12[[#This Row],[التصنيف الرئيسي]]=\"وارد\",\"وارد - \"&Table12[[#This Row],[التصنيف الفرعي]],\"\")","v":""},{"$f":"Table12[[#This Row],[التاريخ]]","v":"00:00:00"}]
[19,null,null,null,null,{"$f":"IF(Table12[[#This Row],[التصنيف الرئيسي]]=\"وارد\",\"وارد - \"&Table12[[#This Row],[التصنيف الفرعي]],\"\")","v":""},{"$f":"Table12[[#This Row],[التاريخ]]","v":"00:00:00"}]
[20,null,null,null,null,{"$f":"IF(Table12[[#This Row],[التصنيف الرئيسي]]=\"وارد\",\"وارد - \"&Table12[[#This Row],[التصنيف الفرعي]],\"\")","v":""},{"$f":"Table12[[#This Row],[التاريخ]]","v":"00:00:00"}]
[21,null,null,null,null,{"$f":"IF(Table12[[#This Row],[التصنيف الرئيسي]]=\"وارد\",\"وارد - \"&Table12[[#This Row],[التصنيف الفرعي]],\"\")","v":""},{"$f":"Table12[[#This Row],[التاريخ]]","v":"00:00:00"}]
[22,null,null,null,null,{"$f":"IF(Table12[[#This Row],[التصنيف الرئيسي]]=\"وارد\",\"وارد - \"&Table12[[#This Row],[التصنيف الفرعي]],\"\")","v":""},{"$f":"Table12[[#This Row],[التاريخ]]","v":"00:00:00"}]
[23,null,null,null,null,{"$f":"IF(Table12[[#This Row],[التصنيف الرئيسي]]=\"وارد\",\"وارد - \"&Table12[[#This Row],[التصنيف الفرعي]],\"\")","v":""},{"$f":"Table12[[#This Row],[التاريخ]]","v":"00:00:00"}]
[24,null,null,null,null,{"$f":"IF(Table12[[#This Row],[التصنيف الرئيسي]]=\"وارد\",\"وارد - \"&Table12[[#This Row],[التصنيف الفرعي]],\"\")","v":""},{"$f":"Table12[[#This Row],[التاريخ]]","v":"00:00:00"}]
[25,null,null,null,null,{"$f":"IF(Table12[[#This Row],[التصنيف الرئيسي]]=\"وارد\",\"وارد - \"&Table12[[#This Row],[التصنيف الفرعي]],\"\")","v":""},{"$f":"Table12[[#This Row],[التاريخ]]","v":"00:00:00"}]
[26,null,null,null,null,{"$f":"IF(Table12[[#This Row],[التصنيف الرئيسي]]=\"وارد\",\"وارد - \"&Table12[[#This Row],[التصنيف الفرعي]],\"\")","v":""},{"$f":"Table12[[#This Row],[التاريخ]]","v":"00:00:00"}]
[27,null,null,null,null,{"$f":"IF(Table12[[#This Row],[التصنيف الرئيسي]]=\"وارد\",\"وارد - \"&Table12[[#This Row],[التصنيف الفرعي]],\"\")","v":""},{"$f":"Table12[[#This Row],[التاريخ]]","v":"00:00:00"}]
[28,null,null,null,null,{"$f":"IF(Table12[[#This Row],[التصنيف الرئيسي]]=\"وارد\",\"وارد - \"&Table12[[#This Row],[التصنيف الفرعي]],\"\")","v":""},{"$f":"Table12[[#This Row],[التاريخ]]","v":"00:00:00"}]
[29,null,null,null,null,{"$f":"IF(Table12[[#This Row],[التصنيف الرئيسي]]=\"وارد\",\"وارد - \"&Table12[[#This Row],[التصنيف الفرعي]],\"\")","v":""},{"$f":"Table12[[#This Row],[التاريخ]]","v":"00:00:00"}]
[30,null,null,null,null,{"$f":"IF(Table12[[#This Row],[التصنيف الرئيسي]]=\"وارد\",\"وارد - \"&Table12[[#This Row],[التصنيف الفرعي]],\"\")","v":""},{"$f":"Table12[[#This Row],[التاريخ]]","v":"00:00:00"}]
[31,null,null,null,null,{"$f":"IF(Table12[[#This Row],[التصنيف الرئيسي]]=\"وارد\",\"وارد - \"&Table12[[#This Row],[التصنيف الفرعي]],\"\")","v":""},{"$f":"Table12[[#This Row],[التاريخ]]","v":"00:00:00"}]
[32,null,null,null,null,{"$f":"IF(Table12[[#This Row],[التصنيف الرئيسي]]=\"وارد\",\"وارد - \"&Table12[[#This Row],[التصنيف الفرعي]],\"\")","v":""},{"$f":"Table12[[#This Row],[التاريخ]]","v":"00:00:00"}]
[33,null,null,null,null,{"$f":"IF(Table12[[#This Row],[التصنيف الرئيسي]]=\"وارد\",\"وارد - \"&Table12[[#This Row],[التصنيف الفرعي]],\"\")","v":""},{"$f":"Table12[[#This Row],[التاريخ]]","v":"00:00:00"}]
[34,null,null,null,null,{"$f":"IF(Table12[[#This Row],[التصنيف الرئيسي]]=\"وارد\",\"وارد - \"&Table12[[#This Row],[التصنيف الفرعي]],\"\")","v":""},{"$f":"Table12[[#This Row],[التاريخ]]","v":"00:00:00"}]
[35,null,null,null,null,{"$f":"IF(Table12[[#This Row],[التصنيف الرئيسي]]=\"وارد\",\"وارد - \"&Table12[[#This Row],[التصنيف الفرعي]],\"\")","v":""},{"$f":"Table12[[#This Row],[التاريخ]]","v":"00:00:00"}]
[36,null,null,null,null,{"$f":"IF(Table12[[#This Row],[التصنيف الرئيسي]]=\"وارد\",\"وارد - \"&Table12[[#This Row],[التصنيف الفرعي]],\"\")","v":""},{"$f":"Table12[[#This Row],[التاريخ]]","v":"00:00:00"}]
[37,null,null,null,null,{"$f":"IF(Table12[[#This Row],[التصنيف الرئيسي]]=\"وارد\",\"وارد - \"&Table12[[#This Row],[التصنيف الفرعي]],\"\")","v":""},{"$f":"Table12[[#This Row],[التاريخ]]","v":"00:00:00"}]
[38,null,null,null,null,{"$f":"IF(Table12[[#This Row],[التصنيف الرئيسي]]=\"وارد\",\"وارد - \"&Table12[[#This Row],[التصنيف الفرعي]],\"\")","v":""},{"$f":"Table12[[#This Row],[التاريخ]]","v":"00:00:00"}]
[39,null,null,null,null,{"$f":"IF(Table12[[#This Row],[التصنيف الرئيسي]]=\"وارد\",\"وارد - \"&Table12[[#This Row],[التصنيف الفرعي]],\"\")","v":""},{"$f":"Table12[[#This Row],[التاريخ]]","v":"00:00:00"}]
[40,null,null,null,null,{"$f":"IF(Table12[[#This Row],[التصنيف الرئيسي]]=\"وارد\",\"وارد - \"&Table12[[#This Row],[التصنيف الفرعي]],\"\")","v":""},{"$f":"Table12[[#This Row],[التاريخ]]","v":"00:00:00"}]
[41,null,null,null,null,{"$f":"IF(Table12[[#This Row],[التصنيف الرئيسي]]=\"وارد\",\"وارد - \"&Table12[[#This Row],[التصنيف الفرعي]],\"\")","v":""},{"$f":"Table12[[#This Row],[التاريخ]]","v":"00:00:00"}]
[42,null,null,null,null,{"$f":"IF(Table12[[#This Row],[التصنيف الرئيسي]]=\"وارد\",\"وارد - \"&Table12[[#This Row],[التصنيف الفرعي]],\"\")","v":""},{"$f":"Table12[[#This Row],[التاريخ]]","v":"00:00:00"}]
[43,null,null,null,null,{"$f":"IF(Table12[[#This Row],[التصنيف الرئيسي]]=\"وارد\",\"وارد - \"&Table12[[#This Row],[التصنيف الفرعي]],\"\")","v":""},{"$f":"Table12[[#This Row],[التاريخ]]","v":"00:00:00"}]
[44,null,null,null,null,{"$f":"IF(Table12[[#This Row],[التصنيف الرئيسي]]=\"وارد\",\"وارد - \"&Table12[[#This Row],[التصنيف الفرعي]],\"\")","v":""},{"$f":"Table12[[#This Row],[التاريخ]]","v":"00:00:00"}]
[45,null,null,null,null,{"$f":"IF(Table12[[#This Row],[التصنيف الرئيسي]]=\"وارد\",\"وارد - \"&Table12[[#This Row],[التصنيف الفرعي]],\"\")","v":""},{"$f":"Table12[[#This Row],[التاريخ]]","v":"00:00:00"}]
[46,null,null,null,null,{"$f":"IF(Table12[[#This Row],[التصنيف الرئيسي]]=\"وارد\",\"وارد - \"&Table12[[#This Row],[التصنيف الفرعي]],\"\")","v":""},{"$f":"Table12[[#This Row],[التاريخ]]","v":"00:00:00"}]
[47,null,null,null,null,{"$f":"IF(Table12[[#This Row],[التصنيف الرئيسي]]=\"وارد\",\"وارد - \"&Table12[[#This Row],[التصنيف الفرعي]],\"\")","v":""},{"$f":"Table12[[#This Row],[التاريخ]]","v":"00:00:00"}]
[48,null,null,null,null,{"$f":"IF(Table12[[#This Row],[التصنيف الرئيسي]]=\"وارد\",\"وارد - \"&Table12[[#This Row],[التصنيف الفرعي]],\"\")","v":""},{"$f":"Table12[[#This Row],[التاريخ]]","v":"00:00:00"}]
[49,null,null,null,null,{"$f":"IF(Table12[[#This Row],[التصنيف الرئيسي]]=\"وارد\",\"وارد - \"&Table12[[#This Row],[التصنيف الفرعي]],\"\")","v":""},{"$f":"Table12[[#This Row],[التاريخ]]","v":"00:00:00"}]
[50,null,null,null,null,{"$f":"IF(Table12[[#This Row],[التصنيف الرئيسي]]=\"وارد\",\"وارد - \"&Table12[[#This Row],[التصنيف الفرعي]],\"\")","v":""},{"$f":"Table12[[#This Row],[التاريخ]]","v":"00:00:00"}]
[51,null,null,null,null,{"$f":"IF(Table12[[#This Row],[التصنيف الرئيسي]]=\"وارد\",\"وارد - \"&Table12[[#This Row],[التصنيف الفرعي]],\"\")","v":""},{"$f":"Table12[[#This Row],[التاريخ]]","v":"00:00:00"}]
[52,null,null,null,null,{"$f":"IF(Table12[[#This Row],[التصنيف الرئيسي]]=\"وارد\",\"وارد - \"&Table12[[#This Row],[التصنيف الفرعي]],\"\")","v":""},{"$f":"Table12[[#This Row],[التاريخ]]","v":"00:00:00"}]
[53,null,null,null,null,{"$f":"IF(Table12[[#This Row],[التصنيف الرئيسي]]=\"وارد\",\"وارد - \"&Table12[[#This Row],[التصنيف الفرعي]],\"\")","v":""},{"$f":"Table12[[#This Row],[التاريخ]]","v":"00:00:00"}]
[54,null,null,null,null,{"$f":"IF(Table12[[#This Row],[التصنيف الرئيسي]]=\"وارد\",\"وارد - \"&Table12[[#This Row],[التصنيف الفرعي]],\"\")","v":""},{"$f":"Table12[[#This Row],[التاريخ]]","v":"00:00:00"}]
[55,null,null,null,null,{"$f":"IF(Table12[[#This Row],[التصنيف الرئيسي]]=\"وارد\",\"وارد - \"&Table12[[#This Row],[التصنيف الفرعي]],\"\")","v":""},{"$f":"Table12[[#This Row],[التاريخ]]","v":"00:00:00"}]
[56,null,null,null,null,{"$f":"IF(Table12[[#This Row],[التصنيف الرئيسي]]=\"وارد\",\"وارد - \"&Table12[[#This Row],[التصنيف الفرعي]],\"\")","v":""},{"$f":"Table12[[#This Row],[التاريخ]]","v":"00:00:00"}]
[57,null,null,null,null,{"$f":"IF(Table12[[#This Row],[التصنيف الرئيسي]]=\"وارد\",\"وارد - \"&Table12[[#This Row],[التصنيف الفرعي]],\"\")","v":""},{"$f":"Table12[[#This Row],[التاريخ]]","v":"00:00:00"}]
[58,null,null,null,null,{"$f":"IF(Table12[[#This Row],[التصنيف الرئيسي]]=\"وارد\",\"وارد - \"&Table12[[#This Row],[التصنيف الفرعي]],\"\")","v":""},{"$f":"Table12[[#This Row],[التاريخ]]","v":"00:00:00"}]
[59,null,null,null,null,{"$f":"IF(Table12[[#This Row],[التصنيف الرئيسي]]=\"وارد\",\"وارد - \"&Table12[[#This Row],[التصنيف الفرعي]],\"\")","v":""},{"$f":"Table12[[#This Row],[التاريخ]]","v":"00:00:00"}]
[60,null,null,null,null,{"$f":"IF(Table12[[#This Row],[التصنيف الرئيسي]]=\"وارد\",\"وارد - \"&Table12[[#This Row],[التصنيف الفرعي]],\"\")","v":""},{"$f":"Table12[[#This Row],[التاريخ]]","v":"00:00:00"}]
[61,null,null,null,null,{"$f":"IF(Table12[[#This Row],[التصنيف الرئيسي]]=\"وارد\",\"وارد - \"&Table12[[#This Row],[التصنيف الفرعي]],\"\")","v":""},{"$f":"Table12[[#This Row],[التاريخ]]","v":"00:00:00"}]
[62,null,null,null,null,{"$f":"IF(Table12[[#This Row],[التصنيف الرئيسي]]=\"وارد\",\"وارد - \"&Table12[[#This Row],[التصنيف الفرعي]],\"\")","v":""},{"$f":"Table12[[#This Row],[التاريخ]]","v":"00:00:00"}]
[63,null,null,null,null,{"$f":"IF(Table12[[#This Row],[التصنيف الرئيسي]]=\"وارد\",\"وارد - \"&Table12[[#This Row],[التصنيف الفرعي]],\"\")","v":""},{"$f":"Table12[[#This Row],[التاريخ]]","v":"00:00:00"}]
[64,null,null,null,null,{"$f":"IF(Table12[[#This Row],[التصنيف الرئيسي]]=\"وارد\",\"وارد - \"&Table12[[#This Row],[التصنيف الفرعي]],\"\")","v":""},{"$f":"Table12[[#This Row],[التاريخ]]","v":"00:00:00"}]
[65,null,null,null,null,{"$f":"IF(Table12[[#This Row],[التصنيف الرئيسي]]=\"وارد\",\"وارد - \"&Table12[[#This Row],[التصنيف الفرعي]],\"\")","v":""},{"$f":"Table12[[#This Row],[التاريخ]]","v":"00:00:00"}]
[66,null,null,null,null,{"$f":"IF(Table12[[#This Row],[التصنيف الرئيسي]]=\"وارد\",\"وارد - \"&Table12[[#This Row],[التصنيف الفرعي]],\"\")","v":""},{"$f":"Table12[[#This Row],[التاريخ]]","v":"00:00:00"}]
[67,null,null,null,null,{"$f":"IF(Table12[[#This Row],[التصنيف الرئيسي]]=\"وارد\",\"وارد - \"&Table12[[#This Row],[التصنيف الفرعي]],\"\")","v":""},{"$f":"Table12[[#This Row],[التاريخ]]","v":"00:00:00"}]
[68,null,null,null,null,{"$f":"IF(Table12[[#This Row],[التصنيف الرئيسي]]=\"وارد\",\"وارد - \"&Table12[[#This Row],[التصنيف الفرعي]],\"\")","v":""},{"$f":"Table12[[#This Row],[التاريخ]]","v":"00:00:00"}]
[69,null,null,null,null,{"$f":"IF(Table12[[#This Row],[التصنيف الرئيسي]]=\"وارد\",\"وارد - \"&Table12[[#This Row],[التصنيف الفرعي]],\"\")","v":""},{"$f":"Table12[[#This Row],[التاريخ]]","v":"00:00:00"}]
[70,null,null,null,null,{"$f":"IF(Table12[[#This Row],[التصنيف الرئيسي]]=\"وارد\",\"وارد - \"&Table12[[#This Row],[التصنيف الفرعي]],\"\")","v":""},{"$f":"Table12[[#This Row],[التاريخ]]","v":"00:00:00"}]
[71,null,null,null,null,{"$f":"IF(Table12[[#This Row],[التصنيف الرئيسي]]=\"وارد\",\"وارد - \"&Table12[[#This Row],[التصنيف الفرعي]],\"\")","v":""},{"$f":"Table12[[#This Row],[التاريخ]]","v":"00:00:00"}]
[72,null,null,null,null,{"$f":"IF(Table12[[#This Row],[التصنيف الرئيسي]]=\"وارد\",\"وارد - \"&Table12[[#This Row],[التصنيف الفرعي]],\"\")","v":""},{"$f":"Table12[[#This Row],[التاريخ]]","v":"00:00:00"}]
[73,null,null,null,null,{"$f":"IF(Table12[[#This Row],[التصنيف الرئيسي]]=\"وارد\",\"وارد - \"&Table12[[#This Row],[التصنيف الفرعي]],\"\")","v":""},{"$f":"Table12[[#This Row],[التاريخ]]","v":"00:00:00"}]
[74,null,null,null,null,{"$f":"IF(Table12[[#This Row],[التصنيف الرئيسي]]=\"وارد\",\"وارد - \"&Table12[[#This Row],[التصنيف الفرعي]],\"\")","v":""},{"$f":"Table12[[#This Row],[التاريخ]]","v":"00:00:00"}]
[75,null,null,null,null,{"$f":"IF(Table12[[#This Row],[التصنيف الرئيسي]]=\"وارد\",\"وارد - \"&Table12[[#This Row],[التصنيف الفرعي]],\"\")","v":""},{"$f":"Table12[[#This Row],[التاريخ]]","v":"00:00:00"}]
[76,null,null,null,null,{"$f":"IF(Table12[[#This Row],[التصنيف الرئيسي]]=\"وارد\",\"وارد - \"&Table12[[#This Row],[التصنيف الفرعي]],\"\")","v":""},{"$f":"Table12[[#This Row],[التاريخ]]","v":"00:00:00"}]
[77,null,null,null,null,{"$f":"IF(Table12[[#This Row],[التصنيف الرئيسي]]=\"وارد\",\"وارد - \"&Table12[[#This Row],[التصنيف الفرعي]],\"\")","v":""},{"$f":"Table12[[#This Row],[التاريخ]]","v":"00:00:00"}]
[78,null,null,null,null,{"$f":"IF(Table12[[#This Row],[التصنيف الرئيسي]]=\"وارد\",\"وارد - \"&Table12[[#This Row],[التصنيف الفرعي]],\"\")","v":""},{"$f":"Table12[[#This Row],[التاريخ]]","v":"00:00:00"}]
[79,null,null,null,null,{"$f":"IF(Table12[[#This Row],[التصنيف الرئيسي]]=\"وارد\",\"وارد - \"&Table12[[#This Row],[التصنيف الفرعي]],\"\")","v":""},{"$f":"Table12[[#This Row],[التاريخ]]","v":"00:00:00"}]
[80,null,null,null,null,{"$f":"IF(Table12[[#This Row],[التصنيف الرئيسي]]=\"وارد\",\"وارد - \"&Table12[[#This Row],[التصنيف الفرعي]],\"\")","v":""},{"$f":"Table12[[#This Row],[التاريخ]]","v":"00:00:00"}]
[81,null,null,null,null,{"$f":"IF(Table12[[#This Row],[التصنيف الرئيسي]]=\"وارد\",\"وارد - \"&Table12[[#This Row],[التصنيف الفرعي]],\"\")","v":""},{"$f":"Table12[[#This Row],[التاريخ]]","v":"00:00:00"}]
[82,null,null,null,null,{"$f":"IF(Table12[[#This Row],[التصنيف الرئيسي]]=\"وارد\",\"وارد - \"&Table12[[#This Row],[التصنيف الفرعي]],\"\")","v":""},{"$f":"Table12[[#This Row],[التاريخ]]","v":"00:00:00"}]
[83,null,null,null,null,{"$f":"IF(Table12[[#This Row],[التصنيف الرئيسي]]=\"وارد\",\"وارد - \"&Table12[[#This Row],[التصنيف الفرعي]],\"\")","v":""},{"$f":"Table12[[#This Row],[التاريخ]]","v":"00:00:00"}]
[84,null,null,null,null,{"$f":"IF(Table12[[#This Row],[التصنيف الرئيسي]]=\"وارد\",\"وارد - \"&Table12[[#This Row],[التصنيف الفرعي]],\"\")","v":""},{"$f":"Table12[[#This Row],[التاريخ]]","v":"00:00:00"}]
[85,null,null,null,null,{"$f":"IF(Table12[[#This Row],[التصنيف الرئيسي]]=\"وارد\",\"وارد - \"&Table12[[#This Row],[التصنيف الفرعي]],\"\")","v":""},{"$f":"Table12[[#This Row],[التاريخ]]","v":"00:00:00"}]
[86,null,null,null,null,{"$f":"IF(Table12[[#This Row],[التصنيف الرئيسي]]=\"وارد\",\"وارد - \"&Table12[[#This Row],[التصنيف الفرعي]],\"\")","v":""},{"$f":"Table12[[#This Row],[التاريخ]]","v":"00:00:00"}]
[87,null,null,null,null,{"$f":"IF(Table12[[#This Row],[التصنيف الرئيسي]]=\"وارد\",\"وارد - \"&Table12[[#This Row],[التصنيف الفرعي]],\"\")","v":""},{"$f":"Table12[[#This Row],[التاريخ]]","v":"00:00:00"}]
[88,null,null,null,null,{"$f":"IF(Table12[[#This Row],[التصنيف الرئيسي]]=\"وارد\",\"وارد - \"&Table12[[#This Row],[التصنيف الفرعي]],\"\")","v":""},{"$f":"Table12[[#This Row],[التاريخ]]","v":"00:00:00"}]
[89,null,null,null,null,{"$f":"IF(Table12[[#This Row],[التصنيف الرئيسي]]=\"وارد\",\"وارد - \"&Table12[[#This Row],[التصنيف الفرعي]],\"\")","v":""},{"$f":"Table12[[#This Row],[التاريخ]]","v":"00:00:00"}]
[90,null,null,null,null,{"$f":"IF(Table12[[#This Row],[التصنيف الرئيسي]]=\"وارد\",\"وارد - \"&Table12[[#This Row],[التصنيف الفرعي]],\"\")","v":""},{"$f":"Table12[[#This Row],[التاريخ]]","v":"00:00:00"}]
[91,null,null,null,null,{"$f":"IF(Table12[[#This Row],[التصنيف الرئيسي]]=\"وارد\",\"وارد - \"&Table12[[#This Row],[التصنيف الفرعي]],\"\")","v":""},{"$f":"Table12[[#This Row],[التاريخ]]","v":"00:00:00"}]
[92,null,null,null,null,{"$f":"IF(Table12[[#This Row],[التصنيف الرئيسي]]=\"وارد\",\"وارد - \"&Table12[[#This Row],[التصنيف الفرعي]],\"\")","v":""},{"$f":"Table12[[#This Row],[التاريخ]]","v":"00:00:00"}]
[93,null,null,null,null,{"$f":"IF(Table12[[#This Row],[التصنيف الرئيسي]]=\"وارد\",\"وارد - \"&Table12[[#This Row],[التصنيف الفرعي]],\"\")","v":""},{"$f":"Table12[[#This Row],[التاريخ]]","v":"00:00:00"}]
[94,null,null,null,null,{"$f":"IF(Table12[[#This Row],[التصنيف الرئيسي]]=\"وارد\",\"وارد - \"&Table12[[#This Row],[التصنيف الفرعي]],\"\")","v":""},{"$f":"Table12[[#This Row],[التاريخ]]","v":"00:00:00"}]
[95,null,null,null,null,{"$f":"IF(Table12[[#This Row],[التصنيف الرئيسي]]=\"وارد\",\"وارد - \"&Table12[[#This Row],[التصنيف الفرعي]],\"\")","v":""},{"$f":"Table12[[#This Row],[التاريخ]]","v":"00:00:00"}]
["Total",null,null,null,{"$f":"SUBTOTAL(109,Table12[القيمة])","v":6250},{"$f":"SUBTOTAL(103,Table12[البيان])","v":95}]

{"sheet":"أبريل","index":3,"n_rows":100,"n_cols":7,"rows_kept":100,"cut":false,"hidden":false,"merged":[[0,0,2,5]]}
["2019-04-01"]
[]
[]
["الكود","التاريخ","التصنيف الرئيسي","التصنيف الفرعي","القيمة","البيان","Column1"]
[1,"2019-04-01","وارد","مرتب",6250,{"$f":"IF(Table13[[#This Row],[التصنيف الرئيسي]]=\"وارد\",\"وارد - \"&Table13[[#This Row],[التصنيف الفرعي]],\"\")","v":"وارد - مرتب"},{"$f":"Table13[[#This Row],[التاريخ]]","v":"2019-04-01"}]
[2,null,null,null,null,{"$f":"IF(Table13[[#This Row],[التصنيف الرئيسي]]=\"وارد\",\"وارد - \"&Table13[[#This Row],[التصنيف الفرعي]],\"\")","v":""},{"$f":"Table13[[#This Row],[التاريخ]]","v":"00:00:00"}]
[3,null,null,null,null,{"$f":"IF(Table13[[#This Row],[التصنيف الرئيسي]]=\"وارد\",\"وارد - \"&Table13[[#This Row],[التصنيف الفرعي]],\"\")","v":""},{"$f":"Table13[[#This Row],[التاريخ]]","v":"00:00:00"}]
[4,null,null,null,null,{"$f":"IF(Table13[[#This Row],[التصنيف الرئيسي]]=\"وارد\",\"وارد - \"&Table13[[#This Row],[التصنيف الفرعي]],\"\")","v":""},{"$f":"Table13[[#This Row],[التاريخ]]","v":"00:00:00"}]
[5,null,null,null,null,{"$f":"IF(Table13[[#This Row],[التصنيف الرئيسي]]=\"وارد\",\"وارد - \"&Table13[[#This Row],[التصنيف الفرعي]],\"\")","v":""},{"$f":"Table13[[#This Row],[التاريخ]]","v":"00:00:00"}]
[6,null,null,null,null,{"$f":"IF(Table13[[#This Row],[التصنيف الرئيسي]]=\"وارد\",\"وارد - \"&Table13[[#This Row],[التصنيف الفرعي]],\"\")","v":""},{"$f":"Table13[[#This Row],[التاريخ]]","v":"00:00:00"}]
[7,null,null,null,null,{"$f":"IF(Table13[[#This Row],[التصنيف الرئيسي]]=\"وارد\",\"وارد - \"&Table13[[#This Row],[التصنيف الفرعي]],\"\")","v":""},{"$f":"Table13[[#This Row],[التاريخ]]","v":"00:00:00"}]
[8,null,null,null,null,{"$f":"IF(Table13[[#This Row],[التصنيف الرئيسي]]=\"وارد\",\"وارد - \"&Table13[[#This Row],[التصنيف الفرعي]],\"\")","v":""},{"$f":"Table13[[#This Row],[التاريخ]]","v":"00:00:00"}]
[9,null,null,null,null,{"$f":"IF(Table13[[#This Row],[التصنيف الرئيسي]]=\"وارد\",\"وارد - \"&Table13[[#This Row],[التصنيف الفرعي]],\"\")","v":""},{"$f":"Table13[[#This Row],[التاريخ]]","v":"00:00:00"}]
[10,null,null,null,null,{"$f":"IF(Table13[[#This Row],[التصنيف الرئيسي]]=\"وارد\",\"وارد - \"&Table13[[#This Row],[التصنيف الفرعي]],\"\")","v":""},{"$f":"Table13[[#This Row],[التاريخ]]","v":"00:00:00"}]
[11,null,null,null,null,{"$f":"IF(Table13[[#This Row],[التصنيف الرئيسي]]=\"وارد\",\"وارد - \"&Table13[[#This Row],[التصنيف الفرعي]],\"\")","v":""},{"$f":"Table13[[#This Row],[التاريخ]]","v":"00:00:00"}]
[12,null,null,null,null,{"$f":"IF(Table13[[#This Row],[التصنيف الرئيسي]]=\"وارد\",\"وارد - \"&Table13[[#This Row],[التصنيف الفرعي]],\"\")","v":""},{"$f":"Table13[[#This Row],[التاريخ]]","v":"00:00:00"}]
[13,null,null,null,null,{"$f":"IF(Table13[[#This Row],[التصنيف الرئيسي]]=\"وارد\",\"وارد - \"&Table13[[#This Row],[التصنيف الفرعي]],\"\")","v":""},{"$f":"Table13[[#This Row],[التاريخ]]","v":"00:00:00"}]
[14,null,null,null,null,{"$f":"IF(Table13[[#This Row],[التصنيف الرئيسي]]=\"وارد\",\"وارد - \"&Table13[[#This Row],[التصنيف الفرعي]],\"\")","v":""},{"$f":"Table13[[#This Row],[التاريخ]]","v":"00:00:00"}]
[15,null,null,null,null,{"$f":"IF(Table13[[#This Row],[التصنيف الرئيسي]]=\"وارد\",\"وارد - \"&Table13[[#This Row],[التصنيف الفرعي]],\"\")","v":""},{"$f":"Table13[[#This Row],[التاريخ]]","v":"00:00:00"}]
[16,null,null,null,null,{"$f":"IF(Table13[[#This Row],[التصنيف الرئيسي]]=\"وارد\",\"وارد - \"&Table13[[#This Row],[التصنيف الفرعي]],\"\")","v":""},{"$f":"Table13[[#This Row],[التاريخ]]","v":"00:00:00"}]
[17,null,null,null,null,{"$f":"IF(Table13[[#This Row],[التصنيف الرئيسي]]=\"وارد\",\"وارد - \"&Table13[[#This Row],[التصنيف الفرعي]],\"\")","v":""},{"$f":"Table13[[#This Row],[التاريخ]]","v":"00:00:00"}]
[18,null,null,null,null,{"$f":"IF(Table13[[#This Row],[التصنيف الرئيسي]]=\"وارد\",\"وارد - \"&Table13[[#This Row],[التصنيف الفرعي]],\"\")","v":""},{"$f":"Table13[[#This Row],[التاريخ]]","v":"00:00:00"}]
[19,null,null,null,null,{"$f":"IF(Table13[[#This Row],[التصنيف الرئيسي]]=\"وارد\",\"وارد - \"&Table13[[#This Row],[التصنيف الفرعي]],\"\")","v":""},{"$f":"Table13[[#This Row],[التاريخ]]","v":"00:00:00"}]
[20,null,null,null,null,{"$f":"IF(Table13[[#This Row],[التصنيف الرئيسي]]=\"وارد\",\"وارد - \"&Table13[[#This Row],[التصنيف الفرعي]],\"\")","v":""},{"$f":"Table13[[#This Row],[التاريخ]]","v":"00:00:00"}]
[21,null,null,null,null,{"$f":"IF(Table13[[#This Row],[التصنيف الرئيسي]]=\"وارد\",\"وارد - \"&Table13[[#This Row],[التصنيف الفرعي]],\"\")","v":""},{"$f":"Table13[[#This Row],[التاريخ]]","v":"00:00:00"}]
[22,null,null,null,null,{"$f":"IF(Table13[[#This Row],[التصنيف الرئيسي]]=\"وارد\",\"وارد - \"&Table13[[#This Row],[التصنيف الفرعي]],\"\")","v":""},{"$f":"Table13[[#This Row],[التاريخ]]","v":"00:00:00"}]
[23,null,null,null,null,{"$f":"IF(Table13[[#This Row],[التصنيف الرئيسي]]=\"وارد\",\"وارد - \"&Table13[[#This Row],[التصنيف الفرعي]],\"\")","v":""},{"$f":"Table13[[#This Row],[التاريخ]]","v":"00:00:00"}]
[24,null,null,null,null,{"$f":"IF(Table13[[#This Row],[التصنيف الرئيسي]]=\"وارد\",\"وارد - \"&Table13[[#This Row],[التصنيف الفرعي]],\"\")","v":""},{"$f":"Table13[[#This Row],[التاريخ]]","v":"00:00:00"}]
[25,null,null,null,null,{"$f":"IF(Table13[[#This Row],[التصنيف الرئيسي]]=\"وارد\",\"وارد - \"&Table13[[#This Row],[التصنيف الفرعي]],\"\")","v":""},{"$f":"Table13[[#This Row],[التاريخ]]","v":"00:00:00"}]
[26,null,null,null,null,{"$f":"IF(Table13[[#This Row],[التصنيف الرئيسي]]=\"وارد\",\"وارد - \"&Table13[[#This Row],[التصنيف الفرعي]],\"\")","v":""},{"$f":"Table13[[#This Row],[التاريخ]]","v":"00:00:00"}]
[27,null,null,null,null,{"$f":"IF(Table13[[#This Row],[التصنيف الرئيسي]]=\"وارد\",\"وارد - \"&Table13[[#This Row],[التصنيف الفرعي]],\"\")","v":""},{"$f":"Table13[[#This Row],[التاريخ]]","v":"00:00:00"}]
[28,null,null,null,null,{"$f":"IF(Table13[[#This Row],[التصنيف الرئيسي]]=\"وارد\",\"وارد - \"&Table13[[#This Row],[التصنيف الفرعي]],\"\")","v":""},{"$f":"Table13[[#This Row],[التاريخ]]","v":"00:00:00"}]
[29,null,null,null,null,{"$f":"IF(Table13[[#This Row],[التصنيف الرئيسي]]=\"وارد\",\"وارد - \"&Table13[[#This Row],[التصنيف الفرعي]],\"\")","v":""},{"$f":"Table13[[#This Row],[التاريخ]]","v":"00:00:00"}]
[30,null,null,null,null,{"$f":"IF(Table13[[#This Row],[التصنيف الرئيسي]]=\"وارد\",\"وارد - \"&Table13[[#This Row],[التصنيف الفرعي]],\"\")","v":""},{"$f":"Table13[[#This Row],[التاريخ]]","v":"00:00:00"}]
[31,null,null,null,null,{"$f":"IF(Table13[[#This Row],[التصنيف الرئيسي]]=\"وارد\",\"وارد - \"&Table13[[#This Row],[التصنيف الفرعي]],\"\")","v":""},{"$f":"Table13[[#This Row],[التاريخ]]","v":"00:00:00"}]
[32,null,null,null,null,{"$f":"IF(Table13[[#This Row],[التصنيف الرئيسي]]=\"وارد\",\"وارد - \"&Table13[[#This Row],[التصنيف الفرعي]],\"\")","v":""},{"$f":"Table13[[#This Row],[التاريخ]]","v":"00:00:00"}]
[33,null,null,null,null,{"$f":"IF(Table13[[#This Row],[التصنيف الرئيسي]]=\"وارد\",\"وارد - \"&Table13[[#This Row],[التصنيف الفرعي]],\"\")","v":""},{"$f":"Table13[[#This Row],[التاريخ]]","v":"00:00:00"}]
[34,null,null,null,null,{"$f":"IF(Table13[[#This Row],[التصنيف الرئيسي]]=\"وارد\",\"وارد - \"&Table13[[#This Row],[التصنيف الفرعي]],\"\")","v":""},{"$f":"Table13[[#This Row],[التاريخ]]","v":"00:00:00"}]
[35,null,null,null,null,{"$f":"IF(Table13[[#This Row],[التصنيف الرئيسي]]=\"وارد\",\"وارد - \"&Table13[[#This Row],[التصنيف الفرعي]],\"\")","v":""},{"$f":"Table13[[#This Row],[التاريخ]]","v":"00:00:00"}]
[36,null,null,null,null,{"$f":"IF(Table13[[#This Row],[التصنيف الرئيسي]]=\"وارد\",\"وارد - \"&Table13[[#This Row],[التصنيف الفرعي]],\"\")","v":""},{"$f":"Table13[[#This Row],[التاريخ]]","v":"00:00:00"}]
[37,null,null,null,null,{"$f":"IF(Table13[[#This Row],[التصنيف الرئيسي]]=\"وارد\",\"وارد - \"&Table13[[#This Row],[التصنيف الفرعي]],\"\")","v":""},{"$f":"Table13[[#This Row],[التاريخ]]","v":"00:00:00"}]
[38,null,null,null,null,{"$f":"IF(Table13[[#This Row],[التصنيف الرئيسي]]=\"وارد\",\"وارد - \"&Table13[[#This Row],[التصنيف الفرعي]],\"\")","v":""},{"$f":"Table13[[#This Row],[التاريخ]]","v":"00:00:00"}]
[39,null,null,null,null,{"$f":"IF(Table13[[#This Row],[التصنيف الرئيسي]]=\"وارد\",\"وارد - \"&Table13[[#This Row],[التصنيف الفرعي]],\"\")","v":""},{"$f":"Table13[[#This Row],[التاريخ]]","v":"00:00:00"}]
[40,null,null,null,null,{"$f":"IF(Table13[[#This Row],[التصنيف الرئيسي]]=\"وارد\",\"وارد - \"&Table13[[#This Row],[التصنيف الفرعي]],\"\")","v":""},{"$f":"Table13[[#This Row],[التاريخ]]","v":"00:00:00"}]
[41,null,null,null,null,{"$f":"IF(Table13[[#This Row],[التصنيف الرئيسي]]=\"وارد\",\"وارد - \"&Table13[[#This Row],[التصنيف الفرعي]],\"\")","v":""},{"$f":"Table13[[#This Row],[التاريخ]]","v":"00:00:00"}]
[42,null,null,null,null,{"$f":"IF(Table13[[#This Row],[التصنيف الرئيسي]]=\"وارد\",\"وارد - \"&Table13[[#This Row],[التصنيف الفرعي]],\"\")","v":""},{"$f":"Table13[[#This Row],[التاريخ]]","v":"00:00:00"}]
[43,null,null,null,null,{"$f":"IF(Table13[[#This Row],[التصنيف الرئيسي]]=\"وارد\",\"وارد - \"&Table13[[#This Row],[التصنيف الفرعي]],\"\")","v":""},{"$f":"Table13[[#This Row],[التاريخ]]","v":"00:00:00"}]
[44,null,null,null,null,{"$f":"IF(Table13[[#This Row],[التصنيف الرئيسي]]=\"وارد\",\"وارد - \"&Table13[[#This Row],[التصنيف الفرعي]],\"\")","v":""},{"$f":"Table13[[#This Row],[التاريخ]]","v":"00:00:00"}]
[45,null,null,null,null,{"$f":"IF(Table13[[#This Row],[التصنيف الرئيسي]]=\"وارد\",\"وارد - \"&Table13[[#This Row],[التصنيف الفرعي]],\"\")","v":""},{"$f":"Table13[[#This Row],[التاريخ]]","v":"00:00:00"}]
[46,null,null,null,null,{"$f":"IF(Table13[[#This Row],[التصنيف الرئيسي]]=\"وارد\",\"وارد - \"&Table13[[#This Row],[التصنيف الفرعي]],\"\")","v":""},{"$f":"Table13[[#This Row],[التاريخ]]","v":"00:00:00"}]
[47,null,null,null,null,{"$f":"IF(Table13[[#This Row],[التصنيف الرئيسي]]=\"وارد\",\"وارد - \"&Table13[[#This Row],[التصنيف الفرعي]],\"\")","v":""},{"$f":"Table13[[#This Row],[التاريخ]]","v":"00:00:00"}]
[48,null,null,null,null,{"$f":"IF(Table13[[#This Row],[التصنيف الرئيسي]]=\"وارد\",\"وارد - \"&Table13[[#This Row],[التصنيف الفرعي]],\"\")","v":""},{"$f":"Table13[[#This Row],[التاريخ]]","v":"00:00:00"}]
[49,null,null,null,null,{"$f":"IF(Table13[[#This Row],[التصنيف الرئيسي]]=\"وارد\",\"وارد - \"&Table13[[#This Row],[التصنيف الفرعي]],\"\")","v":""},{"$f":"Table13[[#This Row],[التاريخ]]","v":"00:00:00"}]
[50,null,null,null,null,{"$f":"IF(Table13[[#This Row],[التصنيف الرئيسي]]=\"وارد\",\"وارد - \"&Table13[[#This Row],[التصنيف الفرعي]],\"\")","v":""},{"$f":"Table13[[#This Row],[التاريخ]]","v":"00:00:00"}]
[51,null,null,null,null,{"$f":"IF(Table13[[#This Row],[التصنيف الرئيسي]]=\"وارد\",\"وارد - \"&Table13[[#This Row],[التصنيف الفرعي]],\"\")","v":""},{"$f":"Table13[[#This Row],[التاريخ]]","v":"00:00:00"}]
[52,null,null,null,null,{"$f":"IF(Table13[[#This Row],[التصنيف الرئيسي]]=\"وارد\",\"وارد - \"&Table13[[#This Row],[التصنيف الفرعي]],\"\")","v":""},{"$f":"Table13[[#This Row],[التاريخ]]","v":"00:00:00"}]
[53,null,null,null,null,{"$f":"IF(Table13[[#This Row],[التصنيف الرئيسي]]=\"وارد\",\"وارد - \"&Table13[[#This Row],[التصنيف الفرعي]],\"\")","v":""},{"$f":"Table13[[#This Row],[التاريخ]]","v":"00:00:00"}]
[54,null,null,null,null,{"$f":"IF(Table13[[#This Row],[التصنيف الرئيسي]]=\"وارد\",\"وارد - \"&Table13[[#This Row],[التصنيف الفرعي]],\"\")","v":""},{"$f":"Table13[[#This Row],[التاريخ]]","v":"00:00:00"}]
[55,null,null,null,null,{"$f":"IF(Table13[[#This Row],[التصنيف الرئيسي]]=\"وارد\",\"وارد - \"&Table13[[#This Row],[التصنيف الفرعي]],\"\")","v":""},{"$f":"Table13[[#This Row],[التاريخ]]","v":"00:00:00"}]
[56,null,null,null,null,{"$f":"IF(Table13[[#This Row],[التصنيف الرئيسي]]=\"وارد\",\"وارد - \"&Table13[[#This Row],[التصنيف الفرعي]],\"\")","v":""},{"$f":"Table13[[#This Row],[التاريخ]]","v":"00:00:00"}]
[57,null,null,null,null,{"$f":"IF(Table13[[#This Row],[التصنيف الرئيسي]]=\"وارد\",\"وارد - \"&Table13[[#This Row],[التصنيف الفرعي]],\"\")","v":""},{"$f":"Table13[[#This Row],[التاريخ]]","v":"00:00:00"}]
[58,null,null,null,null,{"$f":"IF(Table13[[#This Row],[التصنيف الرئيسي]]=\"وارد\",\"وارد - \"&Table13[[#This Row],[التصنيف الفرعي]],\"\")","v":""},{"$f":"Table13[[#This Row],[التاريخ]]","v":"00:00:00"}]
[59,null,null,null,null,{"$f":"IF(Table13[[#This Row],[التصنيف الرئيسي]]=\"وارد\",\"وارد - \"&Table13[[#This Row],[التصنيف الفرعي]],\"\")","v":""},{"$f":"Table13[[#This Row],[التاريخ]]","v":"00:00:00"}]
[60,null,null,null,null,{"$f":"IF(Table13[[#This Row],[التصنيف الرئيسي]]=\"وارد\",\"وارد - \"&Table13[[#This Row],[التصنيف الفرعي]],\"\")","v":""},{"$f":"Table13[[#This Row],[التاريخ]]","v":"00:00:00"}]
[61,null,null,null,null,{"$f":"IF(Table13[[#This Row],[التصنيف الرئيسي]]=\"وارد\",\"وارد - \"&Table13[[#This Row],[التصنيف الفرعي]],\"\")","v":""},{"$f":"Table13[[#This Row],[التاريخ]]","v":"00:00:00"}]
[62,null,null,null,null,{"$f":"IF(Table13[[#This Row],[التصنيف الرئيسي]]=\"وارد\",\"وارد - \"&Table13[[#This Row],[التصنيف الفرعي]],\"\")","v":""},{"$f":"Table13[[#This Row],[التاريخ]]","v":"00:00:00"}]
[63,null,null,null,null,{"$f":"IF(Table13[[#This Row],[التصنيف الرئيسي]]=\"وارد\",\"وارد - \"&Table13[[#This Row],[التصنيف الفرعي]],\"\")","v":""},{"$f":"Table13[[#This Row],[التاريخ]]","v":"00:00:00"}]
[64,null,null,null,null,{"$f":"IF(Table13[[#This Row],[التصنيف الرئيسي]]=\"وارد\",\"وارد - \"&Table13[[#This Row],[التصنيف الفرعي]],\"\")","v":""},{"$f":"Table13[[#This Row],[التاريخ]]","v":"00:00:00"}]
[65,null,null,null,null,{"$f":"IF(Table13[[#This Row],[التصنيف الرئيسي]]=\"وارد\",\"وارد - \"&Table13[[#This Row],[التصنيف الفرعي]],\"\")","v":""},{"$f":"Table13[[#This Row],[التاريخ]]","v":"00:00:00"}]
[66,null,null,null,null,{"$f":"IF(Table13[[#This Row],[التصنيف الرئيسي]]=\"وارد\",\"وارد - \"&Table13[[#This Row],[التصنيف الفرعي]],\"\")","v":""},{"$f":"Table13[[#This Row],[التاريخ]]","v":"00:00:00"}]
[67,null,null,null,null,{"$f":"IF(Table13[[#This Row],[التصنيف الرئيسي]]=\"وارد\",\"وارد - \"&Table13[[#This Row],[التصنيف الفرعي]],\"\")","v":""},{"$f":"Table13[[#This Row],[التاريخ]]","v":"00:00:00"}]
[68,null,null,null,null,{"$f":"IF(Table13[[#This Row],[التصنيف الرئيسي]]=\"وارد\",\"وارد - \"&Table13[[#This Row],[التصنيف الفرعي]],\"\")","v":""},{"$f":"Table13[[#This Row],[التاريخ]]","v":"00:00:00"}]
[69,null,null,null,null,{"$f":"IF(Table13[[#This Row],[التصنيف الرئيسي]]=\"وارد\",\"وارد - \"&Table13[[#This Row],[التصنيف الفرعي]],\"\")","v":""},{"$f":"Table13[[#This Row],[التاريخ]]","v":"00:00:00"}]
[70,null,null,null,null,{"$f":"IF(Table13[[#This Row],[التصنيف الرئيسي]]=\"وارد\",\"وارد - \"&Table13[[#This Row],[التصنيف الفرعي]],\"\")","v":""},{"$f":"Table13[[#This Row],[التاريخ]]","v":"00:00:00"}]
[71,null,null,null,null,{"$f":"IF(Table13[[#This Row],[التصنيف الرئيسي]]=\"وارد\",\"وارد - \"&Table13[[#This Row],[التصنيف الفرعي]],\"\")","v":""},{"$f":"Table13[[#This Row],[التاريخ]]","v":"00:00:00"}]
[72,null,null,null,null,{"$f":"IF(Table13[[#This Row],[التصنيف الرئيسي]]=\"وارد\",\"وارد - \"&Table13[[#This Row],[التصنيف الفرعي]],\"\")","v":""},{"$f":"Table13[[#This Row],[التاريخ]]","v":"00:00:00"}]
[73,null,null,null,null,{"$f":"IF(Table13[[#This Row],[التصنيف الرئيسي]]=\"وارد\",\"وارد - \"&Table13[[#This Row],[التصنيف الفرعي]],\"\")","v":""},{"$f":"Table13[[#This Row],[التاريخ]]","v":"00:00:00"}]
[74,null,null,null,null,{"$f":"IF(Table13[[#This Row],[التصنيف الرئيسي]]=\"وارد\",\"وارد - \"&Table13[[#This Row],[التصنيف الفرعي]],\"\")","v":""},{"$f":"Table13[[#This Row],[التاريخ]]","v":"00:00:00"}]
[75,null,null,null,null,{"$f":"IF(Table13[[#This Row],[التصنيف الرئيسي]]=\"وارد\",\"وارد - \"&Table13[[#This Row],[التصنيف الفرعي]],\"\")","v":""},{"$f":"Table13[[#This Row],[التاريخ]]","v":"00:00:00"}]
[76,null,null,null,null,{"$f":"IF(Table13[[#This Row],[التصنيف الرئيسي]]=\"وارد\",\"وارد - \"&Table13[[#This Row],[التصنيف الفرعي]],\"\")","v":""},{"$f":"Table13[[#This Row],[التاريخ]]","v":"00:00:00"}]
[77,null,null,null,null,{"$f":"IF(Table13[[#This Row],[التصنيف الرئيسي]]=\"وارد\",\"وارد - \"&Table13[[#This Row],[التصنيف الفرعي]],\"\")","v":""},{"$f":"Table13[[#This Row],[التاريخ]]","v":"00:00:00"}]
[78,null,null,null,null,{"$f":"IF(Table13[[#This Row],[التصنيف الرئيسي]]=\"وارد\",\"وارد - \"&Table13[[#This Row],[التصنيف الفرعي]],\"\")","v":""},{"$f":"Table13[[#This Row],[التاريخ]]","v":"00:00:00"}]
[79,null,null,null,null,{"$f":"IF(Table13[[#This Row],[التصنيف الرئيسي]]=\"وارد\",\"وارد - \"&Table13[[#This Row],[التصنيف الفرعي]],\"\")","v":""},{"$f":"Table13[[#This Row],[التاريخ]]","v":"00:00:00"}]
[80,null,null,null,null,{"$f":"IF(Table13[[#This Row],[التصنيف الرئيسي]]=\"وارد\",\"وارد - \"&Table13[[#This Row],[التصنيف الفرعي]],\"\")","v":""},{"$f":"Table13[[#This Row],[التاريخ]]","v":"00:00:00"}]
[81,null,null,null,null,{"$f":"IF(Table13[[#This Row],[التصنيف الرئيسي]]=\"وارد\",\"وارد - \"&Table13[[#This Row],[التصنيف الفرعي]],\"\")","v":""},{"$f":"Table13[[#This Row],[التاريخ]]","v":"00:00:00"}]
[82,null,null,null,null,{"$f":"IF(Table13[[#This Row],[التصنيف الرئيسي]]=\"وارد\",\"وارد - \"&Table13[[#This Row],[التصنيف الفرعي]],\"\")","v":""},{"$f":"Table13[[#This Row],[التاريخ]]","v":"00:00:00"}]
[83,null,null,null,null,{"$f":"IF(Table13[[#This Row],[التصنيف الرئيسي]]=\"وارد\",\"وارد - \"&Table13[[#This Row],[التصنيف الفرعي]],\"\")","v":""},{"$f":"Table13[[#This Row],[التاريخ]]","v":"00:00:00"}]
[84,null,null,null,null,{"$f":"IF(Table13[[#This Row],[التصنيف الرئيسي]]=\"وارد\",\"وارد - \"&Table13[[#This Row],[التصنيف الفرعي]],\"\")","v":""},{"$f":"Table13[[#This Row],[التاريخ]]","v":"00:00:00"}]
[85,null,null,null,null,{"$f":"IF(Table13[[#This Row],[التصنيف الرئيسي]]=\"وارد\",\"وارد - \"&Table13[[#This Row],[التصنيف الفرعي]],\"\")","v":""},{"$f":"Table13[[#This Row],[التاريخ]]","v":"00:00:00"}]
[86,null,null,null,null,{"$f":"IF(Table13[[#This Row],[التصنيف الرئيسي]]=\"وارد\",\"وارد - \"&Table13[[#This Row],[التصنيف الفرعي]],\"\")","v":""},{"$f":"Table13[[#This Row],[التاريخ]]","v":"00:00:00"}]
[87,null,null,null,null,{"$f":"IF(Table13[[#This Row],[التصنيف الرئيسي]]=\"وارد\",\"وارد - \"&Table13[[#This Row],[التصنيف الفرعي]],\"\")","v":""},{"$f":"Table13[[#This Row],[التاريخ]]","v":"00:00:00"}]
[88,null,null,null,null,{"$f":"IF(Table13[[#This Row],[التصنيف الرئيسي]]=\"وارد\",\"وارد - \"&Table13[[#This Row],[التصنيف الفرعي]],\"\")","v":""},{"$f":"Table13[[#This Row],[التاريخ]]","v":"00:00:00"}]
[89,null,null,null,null,{"$f":"IF(Table13[[#This Row],[التصنيف الرئيسي]]=\"وارد\",\"وارد - \"&Table13[[#This Row],[التصنيف الفرعي]],\"\")","v":""},{"$f":"Table13[[#This Row],[التاريخ]]","v":"00:00:00"}]
[90,null,null,null,null,{"$f":"IF(Table13[[#This Row],[التصنيف الرئيسي]]=\"وارد\",\"وارد - \"&Table13[[#This Row],[التصنيف الفرعي]],\"\")","v":""},{"$f":"Table13[[#This Row],[التاريخ]]","v":"00:00:00"}]
[91,null,null,null,null,{"$f":"IF(Table13[[#This Row],[التصنيف الرئيسي]]=\"وارد\",\"وارد - \"&Table13[[#This Row],[التصنيف الفرعي]],\"\")","v":""},{"$f":"Table13[[#This Row],[التاريخ]]","v":"00:00:00"}]
[92,null,null,null,null,{"$f":"IF(Table13[[#This Row],[التصنيف الرئيسي]]=\"وارد\",\"وارد - \"&Table13[[#This Row],[التصنيف الفرعي]],\"\")","v":""},{"$f":"Table13[[#This Row],[التاريخ]]","v":"00:00:00"}]
[93,null,null,null,null,{"$f":"IF(Table13[[#This Row],[التصنيف الرئيسي]]=\"وارد\",\"وارد - \"&Table13[[#This Row],[التصنيف الفرعي]],\"\")","v":""},{"$f":"Table13[[#This Row],[التاريخ]]","v":"00:00:00"}]
[94,null,null,null,null,{"$f":"IF(Table13[[#This Row],[التصنيف الرئيسي]]=\"وارد\",\"وارد - \"&Table13[[#This Row],[التصنيف الفرعي]],\"\")","v":""},{"$f":"Table13[[#This Row],[التاريخ]]","v":"00:00:00"}]
[95,null,null,null,null,{"$f":"IF(Table13[[#This Row],[التصنيف الرئيسي]]=\"وارد\",\"وارد - \"&Table13[[#This Row],[التصنيف الفرعي]],\"\")","v":""},{"$f":"Table13[[#This Row],[التاريخ]]","v":"00:00:00"}]
["Total",null,null,null,{"$f":"SUBTOTAL(109,Table13[القيمة])","v":6250},{"$f":"SUBTOTAL(103,Table13[البيان])","v":95}]

{"sheet":"مايو","index":4,"n_rows":100,"n_cols":7,"rows_kept":100,"cut":false,"hidden":false,"merged":[[0,0,2,5]]}
["2019-05-01"]
[]
[]
["الكود","التاريخ","التصنيف الرئيسي","التصنيف الفرعي","القيمة","البيان","Column1"]
[1,"2019-05-01","وارد","مرتب",6250,{"$f":"IF(Table14[[#This Row],[التصنيف الرئيسي]]=\"وارد\",\"وارد - \"&Table14[[#This Row],[التصنيف الفرعي]],\"\")","v":"وارد - مرتب"},{"$f":"Table14[[#This Row],[التاريخ]]","v":"2019-05-01"}]
[2,null,null,null,null,{"$f":"IF(Table14[[#This Row],[التصنيف الرئيسي]]=\"وارد\",\"وارد - \"&Table14[[#This Row],[التصنيف الفرعي]],\"\")","v":""},{"$f":"Table14[[#This Row],[التاريخ]]","v":"00:00:00"}]
[3,null,null,null,null,{"$f":"IF(Table14[[#This Row],[التصنيف الرئيسي]]=\"وارد\",\"وارد - \"&Table14[[#This Row],[التصنيف الفرعي]],\"\")","v":""},{"$f":"Table14[[#This Row],[التاريخ]]","v":"00:00:00"}]
[4,null,null,null,null,{"$f":"IF(Table14[[#This Row],[التصنيف الرئيسي]]=\"وارد\",\"وارد - \"&Table14[[#This Row],[التصنيف الفرعي]],\"\")","v":""},{"$f":"Table14[[#This Row],[التاريخ]]","v":"00:00:00"}]
[5,null,null,null,null,{"$f":"IF(Table14[[#This Row],[التصنيف الرئيسي]]=\"وارد\",\"وارد - \"&Table14[[#This Row],[التصنيف الفرعي]],\"\")","v":""},{"$f":"Table14[[#This Row],[التاريخ]]","v":"00:00:00"}]
[6,null,null,null,null,{"$f":"IF(Table14[[#This Row],[التصنيف الرئيسي]]=\"وارد\",\"وارد - \"&Table14[[#This Row],[التصنيف الفرعي]],\"\")","v":""},{"$f":"Table14[[#This Row],[التاريخ]]","v":"00:00:00"}]
[7,null,null,null,null,{"$f":"IF(Table14[[#This Row],[التصنيف الرئيسي]]=\"وارد\",\"وارد - \"&Table14[[#This Row],[التصنيف الفرعي]],\"\")","v":""},{"$f":"Table14[[#This Row],[التاريخ]]","v":"00:00:00"}]
[8,null,null,null,null,{"$f":"IF(Table14[[#This Row],[التصنيف الرئيسي]]=\"وارد\",\"وارد - \"&Table14[[#This Row],[التصنيف الفرعي]],\"\")","v":""},{"$f":"Table14[[#This Row],[التاريخ]]","v":"00:00:00"}]
[9,null,null,null,null,{"$f":"IF(Table14[[#This Row],[التصنيف الرئيسي]]=\"وارد\",\"وارد - \"&Table14[[#This Row],[التصنيف الفرعي]],\"\")","v":""},{"$f":"Table14[[#This Row],[التاريخ]]","v":"00:00:00"}]
[10,null,null,null,null,{"$f":"IF(Table14[[#This Row],[التصنيف الرئيسي]]=\"وارد\",\"وارد - \"&Table14[[#This Row],[التصنيف الفرعي]],\"\")","v":""},{"$f":"Table14[[#This Row],[التاريخ]]","v":"00:00:00"}]
[11,null,null,null,null,{"$f":"IF(Table14[[#This Row],[التصنيف الرئيسي]]=\"وارد\",\"وارد - \"&Table14[[#This Row],[التصنيف الفرعي]],\"\")","v":""},{"$f":"Table14[[#This Row],[التاريخ]]","v":"00:00:00"}]
[12,null,null,null,null,{"$f":"IF(Table14[[#This Row],[التصنيف الرئيسي]]=\"وارد\",\"وارد - \"&Table14[[#This Row],[التصنيف الفرعي]],\"\")","v":""},{"$f":"Table14[[#This Row],[التاريخ]]","v":"00:00:00"}]
[13,null,null,null,null,{"$f":"IF(Table14[[#This Row],[التصنيف الرئيسي]]=\"وارد\",\"وارد - \"&Table14[[#This Row],[التصنيف الفرعي]],\"\")","v":""},{"$f":"Table14[[#This Row],[التاريخ]]","v":"00:00:00"}]
[14,null,null,null,null,{"$f":"IF(Table14[[#This Row],[التصنيف الرئيسي]]=\"وارد\",\"وارد - \"&Table14[[#This Row],[التصنيف الفرعي]],\"\")","v":""},{"$f":"Table14[[#This Row],[التاريخ]]","v":"00:00:00"}]
[15,null,null,null,null,{"$f":"IF(Table14[[#This Row],[التصنيف الرئيسي]]=\"وارد\",\"وارد - \"&Table14[[#This Row],[التصنيف الفرعي]],\"\")","v":""},{"$f":"Table14[[#This Row],[التاريخ]]","v":"00:00:00"}]
[16,null,null,null,null,{"$f":"IF(Table14[[#This Row],[التصنيف الرئيسي]]=\"وارد\",\"وارد - \"&Table14[[#This Row],[التصنيف الفرعي]],\"\")","v":""},{"$f":"Table14[[#This Row],[التاريخ]]","v":"00:00:00"}]
[17,null,null,null,null,{"$f":"IF(Table14[[#This Row],[التصنيف الرئيسي]]=\"وارد\",\"وارد - \"&Table14[[#This Row],[التصنيف الفرعي]],\"\")","v":""},{"$f":"Table14[[#This Row],[التاريخ]]","v":"00:00:00"}]
[18,null,null,null,null,{"$f":"IF(Table14[[#This Row],[التصنيف الرئيسي]]=\"وارد\",\"وارد - \"&Table14[[#This Row],[التصنيف الفرعي]],\"\")","v":""},{"$f":"Table14[[#This Row],[التاريخ]]","v":"00:00:00"}]
[19,null,null,null,null,{"$f":"IF(Table14[[#This Row],[التصنيف الرئيسي]]=\"وارد\",\"وارد - \"&Table14[[#This Row],[التصنيف الفرعي]],\"\")","v":""},{"$f":"Table14[[#This Row],[التاريخ]]","v":"00:00:00"}]
[20,null,null,null,null,{"$f":"IF(Table14[[#This Row],[التصنيف الرئيسي]]=\"وارد\",\"وارد - \"&Table14[[#This Row],[التصنيف الفرعي]],\"\")","v":""},{"$f":"Table14[[#This Row],[التاريخ]]","v":"00:00:00"}]
[21,null,null,null,null,{"$f":"IF(Table14[[#This Row],[التصنيف الرئيسي]]=\"وارد\",\"وارد - \"&Table14[[#This Row],[التصنيف الفرعي]],\"\")","v":""},{"$f":"Table14[[#This Row],[التاريخ]]","v":"00:00:00"}]
[22,null,null,null,null,{"$f":"IF(Table14[[#This Row],[التصنيف الرئيسي]]=\"وارد\",\"وارد - \"&Table14[[#This Row],[التصنيف الفرعي]],\"\")","v":""},{"$f":"Table14[[#This Row],[التاريخ]]","v":"00:00:00"}]
[23,null,null,null,null,{"$f":"IF(Table14[[#This Row],[التصنيف الرئيسي]]=\"وارد\",\"وارد - \"&Table14[[#This Row],[التصنيف الفرعي]],\"\")","v":""},{"$f":"Table14[[#This Row],[التاريخ]]","v":"00:00:00"}]
[24,null,null,null,null,{"$f":"IF(Table14[[#This Row],[التصنيف الرئيسي]]=\"وارد\",\"وارد - \"&Table14[[#This Row],[التصنيف الفرعي]],\"\")","v":""},{"$f":"Table14[[#This Row],[التاريخ]]","v":"00:00:00"}]
[25,null,null,null,null,{"$f":"IF(Table14[[#This Row],[التصنيف الرئيسي]]=\"وارد\",\"وارد - \"&Table14[[#This Row],[التصنيف الفرعي]],\"\")","v":""},{"$f":"Table14[[#This Row],[التاريخ]]","v":"00:00:00"}]
[26,null,null,null,null,{"$f":"IF(Table14[[#This Row],[التصنيف الرئيسي]]=\"وارد\",\"وارد - \"&Table14[[#This Row],[التصنيف الفرعي]],\"\")","v":""},{"$f":"Table14[[#This Row],[التاريخ]]","v":"00:00:00"}]
[27,null,null,null,null,{"$f":"IF(Table14[[#This Row],[التصنيف الرئيسي]]=\"وارد\",\"وارد - \"&Table14[[#This Row],[التصنيف الفرعي]],\"\")","v":""},{"$f":"Table14[[#This Row],[التاريخ]]","v":"00:00:00"}]
[28,null,null,null,null,{"$f":"IF(Table14[[#This Row],[التصنيف الرئيسي]]=\"وارد\",\"وارد - \"&Table14[[#This Row],[التصنيف الفرعي]],\"\")","v":""},{"$f":"Table14[[#This Row],[التاريخ]]","v":"00:00:00"}]
[29,null,null,null,null,{"$f":"IF(Table14[[#This Row],[التصنيف الرئيسي]]=\"وارد\",\"وارد - \"&Table14[[#This Row],[التصنيف الفرعي]],\"\")","v":""},{"$f":"Table14[[#This Row],[التاريخ]]","v":"00:00:00"}]
[30,null,null,null,null,{"$f":"IF(Table14[[#This Row],[التصنيف الرئيسي]]=\"وارد\",\"وارد - \"&Table14[[#This Row],[التصنيف الفرعي]],\"\")","v":""},{"$f":"Table14[[#This Row],[التاريخ]]","v":"00:00:00"}]
[31,null,null,null,null,{"$f":"IF(Table14[[#This Row],[التصنيف الرئيسي]]=\"وارد\",\"وارد - \"&Table14[[#This Row],[التصنيف الفرعي]],\"\")","v":""},{"$f":"Table14[[#This Row],[التاريخ]]","v":"00:00:00"}]
[32,null,null,null,null,{"$f":"IF(Table14[[#This Row],[التصنيف الرئيسي]]=\"وارد\",\"وارد - \"&Table14[[#This Row],[التصنيف الفرعي]],\"\")","v":""},{"$f":"Table14[[#This Row],[التاريخ]]","v":"00:00:00"}]
[33,null,null,null,null,{"$f":"IF(Table14[[#This Row],[التصنيف الرئيسي]]=\"وارد\",\"وارد - \"&Table14[[#This Row],[التصنيف الفرعي]],\"\")","v":""},{"$f":"Table14[[#This Row],[التاريخ]]","v":"00:00:00"}]
[34,null,null,null,null,{"$f":"IF(Table14[[#This Row],[التصنيف الرئيسي]]=\"وارد\",\"وارد - \"&Table14[[#This Row],[التصنيف الفرعي]],\"\")","v":""},{"$f":"Table14[[#This Row],[التاريخ]]","v":"00:00:00"}]
[35,null,null,null,null,{"$f":"IF(Table14[[#This Row],[التصنيف الرئيسي]]=\"وارد\",\"وارد - \"&Table14[[#This Row],[التصنيف الفرعي]],\"\")","v":""},{"$f":"Table14[[#This Row],[التاريخ]]","v":"00:00:00"}]
[36,null,null,null,null,{"$f":"IF(Table14[[#This Row],[التصنيف الرئيسي]]=\"وارد\",\"وارد - \"&Table14[[#This Row],[التصنيف الفرعي]],\"\")","v":""},{"$f":"Table14[[#This Row],[التاريخ]]","v":"00:00:00"}]
[37,null,null,null,null,{"$f":"IF(Table14[[#This Row],[التصنيف الرئيسي]]=\"وارد\",\"وارد - \"&Table14[[#This Row],[التصنيف الفرعي]],\"\")","v":""},{"$f":"Table14[[#This Row],[التاريخ]]","v":"00:00:00"}]
[38,null,null,null,null,{"$f":"IF(Table14[[#This Row],[التصنيف الرئيسي]]=\"وارد\",\"وارد - \"&Table14[[#This Row],[التصنيف الفرعي]],\"\")","v":""},{"$f":"Table14[[#This Row],[التاريخ]]","v":"00:00:00"}]
[39,null,null,null,null,{"$f":"IF(Table14[[#This Row],[التصنيف الرئيسي]]=\"وارد\",\"وارد - \"&Table14[[#This Row],[التصنيف الفرعي]],\"\")","v":""},{"$f":"Table14[[#This Row],[التاريخ]]","v":"00:00:00"}]
[40,null,null,null,null,{"$f":"IF(Table14[[#This Row],[التصنيف الرئيسي]]=\"وارد\",\"وارد - \"&Table14[[#This Row],[التصنيف الفرعي]],\"\")","v":""},{"$f":"Table14[[#This Row],[التاريخ]]","v":"00:00:00"}]
[41,null,null,null,null,{"$f":"IF(Table14[[#This Row],[التصنيف الرئيسي]]=\"وارد\",\"وارد - \"&Table14[[#This Row],[التصنيف الفرعي]],\"\")","v":""},{"$f":"Table14[[#This Row],[التاريخ]]","v":"00:00:00"}]
[42,null,null,null,null,{"$f":"IF(Table14[[#This Row],[التصنيف الرئيسي]]=\"وارد\",\"وارد - \"&Table14[[#This Row],[التصنيف الفرعي]],\"\")","v":""},{"$f":"Table14[[#This Row],[التاريخ]]","v":"00:00:00"}]
[43,null,null,null,null,{"$f":"IF(Table14[[#This Row],[التصنيف الرئيسي]]=\"وارد\",\"وارد - \"&Table14[[#This Row],[التصنيف الفرعي]],\"\")","v":""},{"$f":"Table14[[#This Row],[التاريخ]]","v":"00:00:00"}]
[44,null,null,null,null,{"$f":"IF(Table14[[#This Row],[التصنيف الرئيسي]]=\"وارد\",\"وارد - \"&Table14[[#This Row],[التصنيف الفرعي]],\"\")","v":""},{"$f":"Table14[[#This Row],[التاريخ]]","v":"00:00:00"}]
[45,null,null,null,null,{"$f":"IF(Table14[[#This Row],[التصنيف الرئيسي]]=\"وارد\",\"وارد - \"&Table14[[#This Row],[التصنيف الفرعي]],\"\")","v":""},{"$f":"Table14[[#This Row],[التاريخ]]","v":"00:00:00"}]
[46,null,null,null,null,{"$f":"IF(Table14[[#This Row],[التصنيف الرئيسي]]=\"وارد\",\"وارد - \"&Table14[[#This Row],[التصنيف الفرعي]],\"\")","v":""},{"$f":"Table14[[#This Row],[التاريخ]]","v":"00:00:00"}]
[47,null,null,null,null,{"$f":"IF(Table14[[#This Row],[التصنيف الرئيسي]]=\"وارد\",\"وارد - \"&Table14[[#This Row],[التصنيف الفرعي]],\"\")","v":""},{"$f":"Table14[[#This Row],[التاريخ]]","v":"00:00:00"}]
[48,null,null,null,null,{"$f":"IF(Table14[[#This Row],[التصنيف الرئيسي]]=\"وارد\",\"وارد - \"&Table14[[#This Row],[التصنيف الفرعي]],\"\")","v":""},{"$f":"Table14[[#This Row],[التاريخ]]","v":"00:00:00"}]
[49,null,null,null,null,{"$f":"IF(Table14[[#This Row],[التصنيف الرئيسي]]=\"وارد\",\"وارد - \"&Table14[[#This Row],[التصنيف الفرعي]],\"\")","v":""},{"$f":"Table14[[#This Row],[التاريخ]]","v":"00:00:00"}]
[50,null,null,null,null,{"$f":"IF(Table14[[#This Row],[التصنيف الرئيسي]]=\"وارد\",\"وارد - \"&Table14[[#This Row],[التصنيف الفرعي]],\"\")","v":""},{"$f":"Table14[[#This Row],[التاريخ]]","v":"00:00:00"}]
[51,null,null,null,null,{"$f":"IF(Table14[[#This Row],[التصنيف الرئيسي]]=\"وارد\",\"وارد - \"&Table14[[#This Row],[التصنيف الفرعي]],\"\")","v":""},{"$f":"Table14[[#This Row],[التاريخ]]","v":"00:00:00"}]
[52,null,null,null,null,{"$f":"IF(Table14[[#This Row],[التصنيف الرئيسي]]=\"وارد\",\"وارد - \"&Table14[[#This Row],[التصنيف الفرعي]],\"\")","v":""},{"$f":"Table14[[#This Row],[التاريخ]]","v":"00:00:00"}]
[53,null,null,null,null,{"$f":"IF(Table14[[#This Row],[التصنيف الرئيسي]]=\"وارد\",\"وارد - \"&Table14[[#This Row],[التصنيف الفرعي]],\"\")","v":""},{"$f":"Table14[[#This Row],[التاريخ]]","v":"00:00:00"}]
[54,null,null,null,null,{"$f":"IF(Table14[[#This Row],[التصنيف الرئيسي]]=\"وارد\",\"وارد - \"&Table14[[#This Row],[التصنيف الفرعي]],\"\")","v":""},{"$f":"Table14[[#This Row],[التاريخ]]","v":"00:00:00"}]
[55,null,null,null,null,{"$f":"IF(Table14[[#This Row],[التصنيف الرئيسي]]=\"وارد\",\"وارد - \"&Table14[[#This Row],[التصنيف الفرعي]],\"\")","v":""},{"$f":"Table14[[#This Row],[التاريخ]]","v":"00:00:00"}]
[56,null,null,null,null,{"$f":"IF(Table14[[#This Row],[التصنيف الرئيسي]]=\"وارد\",\"وارد - \"&Table14[[#This Row],[التصنيف الفرعي]],\"\")","v":""},{"$f":"Table14[[#This Row],[التاريخ]]","v":"00:00:00"}]
[57,null,null,null,null,{"$f":"IF(Table14[[#This Row],[التصنيف الرئيسي]]=\"وارد\",\"وارد - \"&Table14[[#This Row],[التصنيف الفرعي]],\"\")","v":""},{"$f":"Table14[[#This Row],[التاريخ]]","v":"00:00:00"}]
[58,null,null,null,null,{"$f":"IF(Table14[[#This Row],[التصنيف الرئيسي]]=\"وارد\",\"وارد - \"&Table14[[#This Row],[التصنيف الفرعي]],\"\")","v":""},{"$f":"Table14[[#This Row],[التاريخ]]","v":"00:00:00"}]
[59,null,null,null,null,{"$f":"IF(Table14[[#This Row],[التصنيف الرئيسي]]=\"وارد\",\"وارد - \"&Table14[[#This Row],[التصنيف الفرعي]],\"\")","v":""},{"$f":"Table14[[#This Row],[التاريخ]]","v":"00:00:00"}]
[60,null,null,null,null,{"$f":"IF(Table14[[#This Row],[التصنيف الرئيسي]]=\"وارد\",\"وارد - \"&Table14[[#This Row],[التصنيف الفرعي]],\"\")","v":""},{"$f":"Table14[[#This Row],[التاريخ]]","v":"00:00:00"}]
[61,null,null,null,null,{"$f":"IF(Table14[[#This Row],[التصنيف الرئيسي]]=\"وارد\",\"وارد - \"&Table14[[#This Row],[التصنيف الفرعي]],\"\")","v":""},{"$f":"Table14[[#This Row],[التاريخ]]","v":"00:00:00"}]
[62,null,null,null,null,{"$f":"IF(Table14[[#This Row],[التصنيف الرئيسي]]=\"وارد\",\"وارد - \"&Table14[[#This Row],[التصنيف الفرعي]],\"\")","v":""},{"$f":"Table14[[#This Row],[التاريخ]]","v":"00:00:00"}]
[63,null,null,null,null,{"$f":"IF(Table14[[#This Row],[التصنيف الرئيسي]]=\"وارد\",\"وارد - \"&Table14[[#This Row],[التصنيف الفرعي]],\"\")","v":""},{"$f":"Table14[[#This Row],[التاريخ]]","v":"00:00:00"}]
[64,null,null,null,null,{"$f":"IF(Table14[[#This Row],[التصنيف الرئيسي]]=\"وارد\",\"وارد - \"&Table14[[#This Row],[التصنيف الفرعي]],\"\")","v":""},{"$f":"Table14[[#This Row],[التاريخ]]","v":"00:00:00"}]
[65,null,null,null,null,{"$f":"IF(Table14[[#This Row],[التصنيف الرئيسي]]=\"وارد\",\"وارد - \"&Table14[[#This Row],[التصنيف الفرعي]],\"\")","v":""},{"$f":"Table14[[#This Row],[التاريخ]]","v":"00:00:00"}]
[66,null,null,null,null,{"$f":"IF(Table14[[#This Row],[التصنيف الرئيسي]]=\"وارد\",\"وارد - \"&Table14[[#This Row],[التصنيف الفرعي]],\"\")","v":""},{"$f":"Table14[[#This Row],[التاريخ]]","v":"00:00:00"}]
[67,null,null,null,null,{"$f":"IF(Table14[[#This Row],[التصنيف الرئيسي]]=\"وارد\",\"وارد - \"&Table14[[#This Row],[التصنيف الفرعي]],\"\")","v":""},{"$f":"Table14[[#This Row],[التاريخ]]","v":"00:00:00"}]
[68,null,null,null,null,{"$f":"IF(Table14[[#This Row],[التصنيف الرئيسي]]=\"وارد\",\"وارد - \"&Table14[[#This Row],[التصنيف الفرعي]],\"\")","v":""},{"$f":"Table14[[#This Row],[التاريخ]]","v":"00:00:00"}]
[69,null,null,null,null,{"$f":"IF(Table14[[#This Row],[التصنيف الرئيسي]]=\"وارد\",\"وارد - \"&Table14[[#This Row],[التصنيف الفرعي]],\"\")","v":""},{"$f":"Table14[[#This Row],[التاريخ]]","v":"00:00:00"}]
[70,null,null,null,null,{"$f":"IF(Table14[[#This Row],[التصنيف الرئيسي]]=\"وارد\",\"وارد - \"&Table14[[#This Row],[التصنيف الفرعي]],\"\")","v":""},{"$f":"Table14[[#This Row],[التاريخ]]","v":"00:00:00"}]
[71,null,null,null,null,{"$f":"IF(Table14[[#This Row],[التصنيف الرئيسي]]=\"وارد\",\"وارد - \"&Table14[[#This Row],[التصنيف الفرعي]],\"\")","v":""},{"$f":"Table14[[#This Row],[التاريخ]]","v":"00:00:00"}]
[72,null,null,null,null,{"$f":"IF(Table14[[#This Row],[التصنيف الرئيسي]]=\"وارد\",\"وارد - \"&Table14[[#This Row],[التصنيف الفرعي]],\"\")","v":""},{"$f":"Table14[[#This Row],[التاريخ]]","v":"00:00:00"}]
[73,null,null,null,null,{"$f":"IF(Table14[[#This Row],[التصنيف الرئيسي]]=\"وارد\",\"وارد - \"&Table14[[#This Row],[التصنيف الفرعي]],\"\")","v":""},{"$f":"Table14[[#This Row],[التاريخ]]","v":"00:00:00"}]
[74,null,null,null,null,{"$f":"IF(Table14[[#This Row],[التصنيف الرئيسي]]=\"وارد\",\"وارد - \"&Table14[[#This Row],[التصنيف الفرعي]],\"\")","v":""},{"$f":"Table14[[#This Row],[التاريخ]]","v":"00:00:00"}]
[75,null,null,null,null,{"$f":"IF(Table14[[#This Row],[التصنيف الرئيسي]]=\"وارد\",\"وارد - \"&Table14[[#This Row],[التصنيف الفرعي]],\"\")","v":""},{"$f":"Table14[[#This Row],[التاريخ]]","v":"00:00:00"}]
[76,null,null,null,null,{"$f":"IF(Table14[[#This Row],[التصنيف الرئيسي]]=\"وارد\",\"وارد - \"&Table14[[#This Row],[التصنيف الفرعي]],\"\")","v":""},{"$f":"Table14[[#This Row],[التاريخ]]","v":"00:00:00"}]
[77,null,null,null,null,{"$f":"IF(Table14[[#This Row],[التصنيف الرئيسي]]=\"وارد\",\"وارد - \"&Table14[[#This Row],[التصنيف الفرعي]],\"\")","v":""},{"$f":"Table14[[#This Row],[التاريخ]]","v":"00:00:00"}]
[78,null,null,null,null,{"$f":"IF(Table14[[#This Row],[التصنيف الرئيسي]]=\"وارد\",\"وارد - \"&Table14[[#This Row],[التصنيف الفرعي]],\"\")","v":""},{"$f":"Table14[[#This Row],[التاريخ]]","v":"00:00:00"}]
[79,null,null,null,null,{"$f":"IF(Table14[[#This Row],[التصنيف الرئيسي]]=\"وارد\",\"وارد - \"&Table14[[#This Row],[التصنيف الفرعي]],\"\")","v":""},{"$f":"Table14[[#This Row],[التاريخ]]","v":"00:00:00"}]
[80,null,null,null,null,{"$f":"IF(Table14[[#This Row],[التصنيف الرئيسي]]=\"وارد\",\"وارد - \"&Table14[[#This Row],[التصنيف الفرعي]],\"\")","v":""},{"$f":"Table14[[#This Row],[التاريخ]]","v":"00:00:00"}]
[81,null,null,null,null,{"$f":"IF(Table14[[#This Row],[التصنيف الرئيسي]]=\"وارد\",\"وارد - \"&Table14[[#This Row],[التصنيف الفرعي]],\"\")","v":""},{"$f":"Table14[[#This Row],[التاريخ]]","v":"00:00:00"}]
[82,null,null,null,null,{"$f":"IF(Table14[[#This Row],[التصنيف الرئيسي]]=\"وارد\",\"وارد - \"&Table14[[#This Row],[التصنيف الفرعي]],\"\")","v":""},{"$f":"Table14[[#This Row],[التاريخ]]","v":"00:00:00"}]
[83,null,null,null,null,{"$f":"IF(Table14[[#This Row],[التصنيف الرئيسي]]=\"وارد\",\"وارد - \"&Table14[[#This Row],[التصنيف الفرعي]],\"\")","v":""},{"$f":"Table14[[#This Row],[التاريخ]]","v":"00:00:00"}]
[84,null,null,null,null,{"$f":"IF(Table14[[#This Row],[التصنيف الرئيسي]]=\"وارد\",\"وارد - \"&Table14[[#This Row],[التصنيف الفرعي]],\"\")","v":""},{"$f":"Table14[[#This Row],[التاريخ]]","v":"00:00:00"}]
[85,null,null,null,null,{"$f":"IF(Table14[[#This Row],[التصنيف الرئيسي]]=\"وارد\",\"وارد - \"&Table14[[#This Row],[التصنيف الفرعي]],\"\")","v":""},{"$f":"Table14[[#This Row],[التاريخ]]","v":"00:00:00"}]
[86,null,null,null,null,{"$f":"IF(Table14[[#This Row],[التصنيف الرئيسي]]=\"وارد\",\"وارد - \"&Table14[[#This Row],[التصنيف الفرعي]],\"\")","v":""},{"$f":"Table14[[#This Row],[التاريخ]]","v":"00:00:00"}]
[87,null,null,null,null,{"$f":"IF(Table14[[#This Row],[التصنيف الرئيسي]]=\"وارد\",\"وارد - \"&Table14[[#This Row],[التصنيف الفرعي]],\"\")","v":""},{"$f":"Table14[[#This Row],[التاريخ]]","v":"00:00:00"}]
[88,null,null,null,null,{"$f":"IF(Table14[[#This Row],[التصنيف الرئيسي]]=\"وارد\",\"وارد - \"&Table14[[#This Row],[التصنيف الفرعي]],\"\")","v":""},{"$f":"Table14[[#This Row],[التاريخ]]","v":"00:00:00"}]
[89,null,null,null,null,{"$f":"IF(Table14[[#This Row],[التصنيف الرئيسي]]=\"وارد\",\"وارد - \"&Table14[[#This Row],[التصنيف الفرعي]],\"\")","v":""},{"$f":"Table14[[#This Row],[التاريخ]]","v":"00:00:00"}]
[90,null,null,null,null,{"$f":"IF(Table14[[#This Row],[التصنيف الرئيسي]]=\"وارد\",\"وارد - \"&Table14[[#This Row],[التصنيف الفرعي]],\"\")","v":""},{"$f":"Table14[[#This Row],[التاريخ]]","v":"00:00:00"}]
[91,null,null,null,null,{"$f":"IF(Table14[[#This Row],[التصنيف الرئيسي]]=\"وارد\",\"وارد - \"&Table14[[#This Row],[التصنيف الفرعي]],\"\")","v":""},{"$f":"Table14[[#This Row],[التاريخ]]","v":"00:00:00"}]
[92,null,null,null,null,{"$f":"IF(Table14[[#This Row],[التصنيف الرئيسي]]=\"وارد\",\"وارد - \"&Table14[[#This Row],[التصنيف الفرعي]],\"\")","v":""},{"$f":"Table14[[#This Row],[التاريخ]]","v":"00:00:00"}]
[93,null,null,null,null,{"$f":"IF(Table14[[#This Row],[التصنيف الرئيسي]]=\"وارد\",\"وارد - \"&Table14[[#This Row],[التصنيف الفرعي]],\"\")","v":""},{"$f":"Table14[[#This Row],[التاريخ]]","v":"00:00:00"}]
[94,null,null,null,null,{"$f":"IF(Table14[[#This Row],[التصنيف الرئيسي]]=\"وارد\",\"وارد - \"&Table14[[#This Row],[التصنيف الفرعي]],\"\")","v":""},{"$f":"Table14[[#This Row],[التاريخ]]","v":"00:00:00"}]
[95,null,null,null,null,{"$f":"IF(Table14[[#This Row],[التصنيف الرئيسي]]=\"وارد\",\"وارد - \"&Table14[[#This Row],[التصنيف الفرعي]],\"\")","v":""},{"$f":"Table14[[#This Row],[التاريخ]]","v":"00:00:00"}]
["Total",null,null,null,{"$f":"SUBTOTAL(109,Table14[القيمة])","v":6250},{"$f":"SUBTOTAL(103,Table14[البيان])","v":95}]

{"sheet":"يونيو","index":5,"n_rows":100,"n_cols":7,"rows_kept":100,"cut":false,"hidden":false,"merged":[[0,0,2,5]]}
["2019-06-01"]
[]
[]
["الكود","التاريخ","التصنيف الرئيسي","التصنيف الفرعي","القيمة","البيان","Column1"]
[1,"2019-06-01","وارد","مرتب",6200,{"$f":"IF(Table15[[#This Row],[التصنيف الرئيسي]]=\"وارد\",\"وارد - \"&Table15[[#This Row],[التصنيف الفرعي]],\"\")","v":"وارد - مرتب"},{"$f":"Table15[[#This Row],[التاريخ]]","v":"2019-06-01"}]
[2,null,"اشتراكات",null,null,{"$f":"IF(Table15[[#This Row],[التصنيف الرئيسي]]=\"وارد\",\"وارد - \"&Table15[[#This Row],[التصنيف الفرعي]],\"\")","v":""},{"$f":"Table15[[#This Row],[التاريخ]]","v":"00:00:00"}]
[3,null,"ابناء",null,null,{"$f":"IF(Table15[[#This Row],[التصنيف الرئيسي]]=\"وارد\",\"وارد - \"&Table15[[#This Row],[التصنيف الفرعي]],\"\")","v":""},{"$f":"Table15[[#This Row],[التاريخ]]","v":"00:00:00"}]
[4,null,"دراسية",null,null,{"$f":"IF(Table15[[#This Row],[التصنيف الرئيسي]]=\"وارد\",\"وارد - \"&Table15[[#This Row],[التصنيف الفرعي]],\"\")","v":""},{"$f":"Table15[[#This Row],[التاريخ]]","v":"00:00:00"}]
[5,null,"صيانة",null,null,{"$f":"IF(Table15[[#This Row],[التصنيف الرئيسي]]=\"وارد\",\"وارد - \"&Table15[[#This Row],[التصنيف الفرعي]],\"\")","v":""},{"$f":"Table15[[#This Row],[التاريخ]]","v":"00:00:00"}]
[6,null,"بقالة",null,null,{"$f":"IF(Table15[[#This Row],[التصنيف الرئيسي]]=\"وارد\",\"وارد - \"&Table15[[#This Row],[التصنيف الفرعي]],\"\")","v":""},{"$f":"Table15[[#This Row],[التاريخ]]","v":"00:00:00"}]
[7,null,"لحوم",null,null,{"$f":"IF(Table15[[#This Row],[التصنيف الرئيسي]]=\"وارد\",\"وارد - \"&Table15[[#This Row],[التصنيف الفرعي]],\"\")","v":""},{"$f":"Table15[[#This Row],[التاريخ]]","v":"00:00:00"}]
[8,null,"طبابة",null,null,{"$f":"IF(Table15[[#This Row],[التصنيف الرئيسي]]=\"وارد\",\"وارد - \"&Table15[[#This Row],[التصنيف الفرعي]],\"\")","v":""},{"$f":"Table15[[#This Row],[التاريخ]]","v":"00:00:00"}]
[9,null,null,null,null,{"$f":"IF(Table15[[#This Row],[التصنيف الرئيسي]]=\"وارد\",\"وارد - \"&Table15[[#This Row],[التصنيف الفرعي]],\"\")","v":""},{"$f":"Table15[[#This Row],[التاريخ]]","v":"00:00:00"}]
[10,null,null,null,null,{"$f":"IF(Table15[[#This Row],[التصنيف الرئيسي]]=\"وارد\",\"وارد - \"&Table15[[#This Row],[التصنيف الفرعي]],\"\")","v":""},{"$f":"Table15[[#This Row],[التاريخ]]","v":"00:00:00"}]
[11,null,null,null,null,{"$f":"IF(Table15[[#This Row],[التصنيف الرئيسي]]=\"وارد\",\"وارد - \"&Table15[[#This Row],[التصنيف الفرعي]],\"\")","v":""},{"$f":"Table15[[#This Row],[التاريخ]]","v":"00:00:00"}]
[12,null,null,null,null,{"$f":"IF(Table15[[#This Row],[التصنيف الرئيسي]]=\"وارد\",\"وارد - \"&Table15[[#This Row],[التصنيف الفرعي]],\"\")","v":""},{"$f":"Table15[[#This Row],[التاريخ]]","v":"00:00:00"}]
[13,null,null,null,null,{"$f":"IF(Table15[[#This Row],[التصنيف الرئيسي]]=\"وارد\",\"وارد - \"&Table15[[#This Row],[التصنيف الفرعي]],\"\")","v":""},{"$f":"Table15[[#This Row],[التاريخ]]","v":"00:00:00"}]
[14,null,null,null,null,{"$f":"IF(Table15[[#This Row],[التصنيف الرئيسي]]=\"وارد\",\"وارد - \"&Table15[[#This Row],[التصنيف الفرعي]],\"\")","v":""},{"$f":"Table15[[#This Row],[التاريخ]]","v":"00:00:00"}]
[15,null,null,null,null,{"$f":"IF(Table15[[#This Row],[التصنيف الرئيسي]]=\"وارد\",\"وارد - \"&Table15[[#This Row],[التصنيف الفرعي]],\"\")","v":""},{"$f":"Table15[[#This Row],[التاريخ]]","v":"00:00:00"}]
[16,null,null,null,null,{"$f":"IF(Table15[[#This Row],[التصنيف الرئيسي]]=\"وارد\",\"وارد - \"&Table15[[#This Row],[التصنيف الفرعي]],\"\")","v":""},{"$f":"Table15[[#This Row],[التاريخ]]","v":"00:00:00"}]
[17,null,null,null,null,{"$f":"IF(Table15[[#This Row],[التصنيف الرئيسي]]=\"وارد\",\"وارد - \"&Table15[[#This Row],[التصنيف الفرعي]],\"\")","v":""},{"$f":"Table15[[#This Row],[التاريخ]]","v":"00:00:00"}]
[18,null,null,null,null,{"$f":"IF(Table15[[#This Row],[التصنيف الرئيسي]]=\"وارد\",\"وارد - \"&Table15[[#This Row],[التصنيف الفرعي]],\"\")","v":""},{"$f":"Table15[[#This Row],[التاريخ]]","v":"00:00:00"}]
[19,null,null,null,null,{"$f":"IF(Table15[[#This Row],[التصنيف الرئيسي]]=\"وارد\",\"وارد - \"&Table15[[#This Row],[التصنيف الفرعي]],\"\")","v":""},{"$f":"Table15[[#This Row],[التاريخ]]","v":"00:00:00"}]
[20,null,null,null,null,{"$f":"IF(Table15[[#This Row],[التصنيف الرئيسي]]=\"وارد\",\"وارد - \"&Table15[[#This Row],[التصنيف الفرعي]],\"\")","v":""},{"$f":"Table15[[#This Row],[التاريخ]]","v":"00:00:00"}]
[21,null,null,null,null,{"$f":"IF(Table15[[#This Row],[التصنيف الرئيسي]]=\"وارد\",\"وارد - \"&Table15[[#This Row],[التصنيف الفرعي]],\"\")","v":""},{"$f":"Table15[[#This Row],[التاريخ]]","v":"00:00:00"}]
[22,null,null,null,null,{"$f":"IF(Table15[[#This Row],[التصنيف الرئيسي]]=\"وارد\",\"وارد - \"&Table15[[#This Row],[التصنيف الفرعي]],\"\")","v":""},{"$f":"Table15[[#This Row],[التاريخ]]","v":"00:00:00"}]
[23,null,null,null,null,{"$f":"IF(Table15[[#This Row],[التصنيف الرئيسي]]=\"وارد\",\"وارد - \"&Table15[[#This Row],[التصنيف الفرعي]],\"\")","v":""},{"$f":"Table15[[#This Row],[التاريخ]]","v":"00:00:00"}]
[24,null,null,null,null,{"$f":"IF(Table15[[#This Row],[التصنيف الرئيسي]]=\"وارد\",\"وارد - \"&Table15[[#This Row],[التصنيف الفرعي]],\"\")","v":""},{"$f":"Table15[[#This Row],[التاريخ]]","v":"00:00:00"}]
[25,null,null,null,null,{"$f":"IF(Table15[[#This Row],[التصنيف الرئيسي]]=\"وارد\",\"وارد - \"&Table15[[#This Row],[التصنيف الفرعي]],\"\")","v":""},{"$f":"Table15[[#This Row],[التاريخ]]","v":"00:00:00"}]
[26,null,null,null,null,{"$f":"IF(Table15[[#This Row],[التصنيف الرئيسي]]=\"وارد\",\"وارد - \"&Table15[[#This Row],[التصنيف الفرعي]],\"\")","v":""},{"$f":"Table15[[#This Row],[التاريخ]]","v":"00:00:00"}]
[27,null,null,null,null,{"$f":"IF(Table15[[#This Row],[التصنيف الرئيسي]]=\"وارد\",\"وارد - \"&Table15[[#This Row],[التصنيف الفرعي]],\"\")","v":""},{"$f":"Table15[[#This Row],[التاريخ]]","v":"00:00:00"}]
[28,null,null,null,null,{"$f":"IF(Table15[[#This Row],[التصنيف الرئيسي]]=\"وارد\",\"وارد - \"&Table15[[#This Row],[التصنيف الفرعي]],\"\")","v":""},{"$f":"Table15[[#This Row],[التاريخ]]","v":"00:00:00"}]
[29,null,null,null,null,{"$f":"IF(Table15[[#This Row],[التصنيف الرئيسي]]=\"وارد\",\"وارد - \"&Table15[[#This Row],[التصنيف الفرعي]],\"\")","v":""},{"$f":"Table15[[#This Row],[التاريخ]]","v":"00:00:00"}]
[30,null,null,null,null,{"$f":"IF(Table15[[#This Row],[التصنيف الرئيسي]]=\"وارد\",\"وارد - \"&Table15[[#This Row],[التصنيف الفرعي]],\"\")","v":""},{"$f":"Table15[[#This Row],[التاريخ]]","v":"00:00:00"}]
[31,null,null,null,null,{"$f":"IF(Table15[[#This Row],[التصنيف الرئيسي]]=\"وارد\",\"وارد - \"&Table15[[#This Row],[التصنيف الفرعي]],\"\")","v":""},{"$f":"Table15[[#This Row],[التاريخ]]","v":"00:00:00"}]
[32,null,null,null,null,{"$f":"IF(Table15[[#This Row],[التصنيف الرئيسي]]=\"وارد\",\"وارد - \"&Table15[[#This Row],[التصنيف الفرعي]],\"\")","v":""},{"$f":"Table15[[#This Row],[التاريخ]]","v":"00:00:00"}]
[33,null,null,null,null,{"$f":"IF(Table15[[#This Row],[التصنيف الرئيسي]]=\"وارد\",\"وارد - \"&Table15[[#This Row],[التصنيف الفرعي]],\"\")","v":""},{"$f":"Table15[[#This Row],[التاريخ]]","v":"00:00:00"}]
[34,null,null,null,null,{"$f":"IF(Table15[[#This Row],[التصنيف الرئيسي]]=\"وارد\",\"وارد - \"&Table15[[#This Row],[التصنيف الفرعي]],\"\")","v":""},{"$f":"Table15[[#This Row],[التاريخ]]","v":"00:00:00"}]
[35,null,null,null,null,{"$f":"IF(Table15[[#This Row],[التصنيف الرئيسي]]=\"وارد\",\"وارد - \"&Table15[[#This Row],[التصنيف الفرعي]],\"\")","v":""},{"$f":"Table15[[#This Row],[التاريخ]]","v":"00:00:00"}]
[36,null,null,null,null,{"$f":"IF(Table15[[#This Row],[التصنيف الرئيسي]]=\"وارد\",\"وارد - \"&Table15[[#This Row],[التصنيف الفرعي]],\"\")","v":""},{"$f":"Table15[[#This Row],[التاريخ]]","v":"00:00:00"}]
[37,null,null,null,null,{"$f":"IF(Table15[[#This Row],[التصنيف الرئيسي]]=\"وارد\",\"وارد - \"&Table15[[#This Row],[التصنيف الفرعي]],\"\")","v":""},{"$f":"Table15[[#This Row],[التاريخ]]","v":"00:00:00"}]
[38,null,null,null,null,{"$f":"IF(Table15[[#This Row],[التصنيف الرئيسي]]=\"وارد\",\"وارد - \"&Table15[[#This Row],[التصنيف الفرعي]],\"\")","v":""},{"$f":"Table15[[#This Row],[التاريخ]]","v":"00:00:00"}]
[39,null,null,null,null,{"$f":"IF(Table15[[#This Row],[التصنيف الرئيسي]]=\"وارد\",\"وارد - \"&Table15[[#This Row],[التصنيف الفرعي]],\"\")","v":""},{"$f":"Table15[[#This Row],[التاريخ]]","v":"00:00:00"}]
[40,null,null,null,null,{"$f":"IF(Table15[[#This Row],[التصنيف الرئيسي]]=\"وارد\",\"وارد - \"&Table15[[#This Row],[التصنيف الفرعي]],\"\")","v":""},{"$f":"Table15[[#This Row],[التاريخ]]","v":"00:00:00"}]
[41,null,null,null,null,{"$f":"IF(Table15[[#This Row],[التصنيف الرئيسي]]=\"وارد\",\"وارد - \"&Table15[[#This Row],[التصنيف الفرعي]],\"\")","v":""},{"$f":"Table15[[#This Row],[التاريخ]]","v":"00:00:00"}]
[42,null,null,null,null,{"$f":"IF(Table15[[#This Row],[التصنيف الرئيسي]]=\"وارد\",\"وارد - \"&Table15[[#This Row],[التصنيف الفرعي]],\"\")","v":""},{"$f":"Table15[[#This Row],[التاريخ]]","v":"00:00:00"}]
[43,null,null,null,null,{"$f":"IF(Table15[[#This Row],[التصنيف الرئيسي]]=\"وارد\",\"وارد - \"&Table15[[#This Row],[التصنيف الفرعي]],\"\")","v":""},{"$f":"Table15[[#This Row],[التاريخ]]","v":"00:00:00"}]
[44,null,null,null,null,{"$f":"IF(Table15[[#This Row],[التصنيف الرئيسي]]=\"وارد\",\"وارد - \"&Table15[[#This Row],[التصنيف الفرعي]],\"\")","v":""},{"$f":"Table15[[#This Row],[التاريخ]]","v":"00:00:00"}]
[45,null,null,null,null,{"$f":"IF(Table15[[#This Row],[التصنيف الرئيسي]]=\"وارد\",\"وارد - \"&Table15[[#This Row],[التصنيف الفرعي]],\"\")","v":""},{"$f":"Table15[[#This Row],[التاريخ]]","v":"00:00:00"}]
[46,null,null,null,null,{"$f":"IF(Table15[[#This Row],[التصنيف الرئيسي]]=\"وارد\",\"وارد - \"&Table15[[#This Row],[التصنيف الفرعي]],\"\")","v":""},{"$f":"Table15[[#This Row],[التاريخ]]","v":"00:00:00"}]
[47,null,null,null,null,{"$f":"IF(Table15[[#This Row],[التصنيف الرئيسي]]=\"وارد\",\"وارد - \"&Table15[[#This Row],[التصنيف الفرعي]],\"\")","v":""},{"$f":"Table15[[#This Row],[التاريخ]]","v":"00:00:00"}]
[48,null,null,null,null,{"$f":"IF(Table15[[#This Row],[التصنيف الرئيسي]]=\"وارد\",\"وارد - \"&Table15[[#This Row],[التصنيف الفرعي]],\"\")","v":""},{"$f":"Table15[[#This Row],[التاريخ]]","v":"00:00:00"}]
[49,null,null,null,null,{"$f":"IF(Table15[[#This Row],[التصنيف الرئيسي]]=\"وارد\",\"وارد - \"&Table15[[#This Row],[التصنيف الفرعي]],\"\")","v":""},{"$f":"Table15[[#This Row],[التاريخ]]","v":"00:00:00"}]
[50,null,null,null,null,{"$f":"IF(Table15[[#This Row],[التصنيف الرئيسي]]=\"وارد\",\"وارد - \"&Table15[[#This Row],[التصنيف الفرعي]],\"\")","v":""},{"$f":"Table15[[#This Row],[التاريخ]]","v":"00:00:00"}]
[51,null,null,null,null,{"$f":"IF(Table15[[#This Row],[التصنيف الرئيسي]]=\"وارد\",\"وارد - \"&Table15[[#This Row],[التصنيف الفرعي]],\"\")","v":""},{"$f":"Table15[[#This Row],[التاريخ]]","v":"00:00:00"}]
[52,null,null,null,null,{"$f":"IF(Table15[[#This Row],[التصنيف الرئيسي]]=\"وارد\",\"وارد - \"&Table15[[#This Row],[التصنيف الفرعي]],\"\")","v":""},{"$f":"Table15[[#This Row],[التاريخ]]","v":"00:00:00"}]
[53,null,null,null,null,{"$f":"IF(Table15[[#This Row],[التصنيف الرئيسي]]=\"وارد\",\"وارد - \"&Table15[[#This Row],[التصنيف الفرعي]],\"\")","v":""},{"$f":"Table15[[#This Row],[التاريخ]]","v":"00:00:00"}]
[54,null,null,null,null,{"$f":"IF(Table15[[#This Row],[التصنيف الرئيسي]]=\"وارد\",\"وارد - \"&Table15[[#This Row],[التصنيف الفرعي]],\"\")","v":""},{"$f":"Table15[[#This Row],[التاريخ]]","v":"00:00:00"}]
[55,null,null,null,null,{"$f":"IF(Table15[[#This Row],[التصنيف الرئيسي]]=\"وارد\",\"وارد - \"&Table15[[#This Row],[التصنيف الفرعي]],\"\")","v":""},{"$f":"Table15[[#This Row],[التاريخ]]","v":"00:00:00"}]
[56,null,null,null,null,{"$f":"IF(Table15[[#This Row],[التصنيف الرئيسي]]=\"وارد\",\"وارد - \"&Table15[[#This Row],[التصنيف الفرعي]],\"\")","v":""},{"$f":"Table15[[#This Row],[التاريخ]]","v":"00:00:00"}]
[57,null,null,null,null,{"$f":"IF(Table15[[#This Row],[التصنيف الرئيسي]]=\"وارد\",\"وارد - \"&Table15[[#This Row],[التصنيف الفرعي]],\"\")","v":""},{"$f":"Table15[[#This Row],[التاريخ]]","v":"00:00:00"}]
[58,null,null,null,null,{"$f":"IF(Table15[[#This Row],[التصنيف الرئيسي]]=\"وارد\",\"وارد - \"&Table15[[#This Row],[التصنيف الفرعي]],\"\")","v":""},{"$f":"Table15[[#This Row],[التاريخ]]","v":"00:00:00"}]
[59,null,null,null,null,{"$f":"IF(Table15[[#This Row],[التصنيف الرئيسي]]=\"وارد\",\"وارد - \"&Table15[[#This Row],[التصنيف الفرعي]],\"\")","v":""},{"$f":"Table15[[#This Row],[التاريخ]]","v":"00:00:00"}]
[60,null,null,null,null,{"$f":"IF(Table15[[#This Row],[التصنيف الرئيسي]]=\"وارد\",\"وارد - \"&Table15[[#This Row],[التصنيف الفرعي]],\"\")","v":""},{"$f":"Table15[[#This Row],[التاريخ]]","v":"00:00:00"}]
[61,null,null,null,null,{"$f":"IF(Table15[[#This Row],[التصنيف الرئيسي]]=\"وارد\",\"وارد - \"&Table15[[#This Row],[التصنيف الفرعي]],\"\")","v":""},{"$f":"Table15[[#This Row],[التاريخ]]","v":"00:00:00"}]
[62,null,null,null,null,{"$f":"IF(Table15[[#This Row],[التصنيف الرئيسي]]=\"وارد\",\"وارد - \"&Table15[[#This Row],[التصنيف الفرعي]],\"\")","v":""},{"$f":"Table15[[#This Row],[التاريخ]]","v":"00:00:00"}]
[63,null,null,null,null,{"$f":"IF(Table15[[#This Row],[التصنيف الرئيسي]]=\"وارد\",\"وارد - \"&Table15[[#This Row],[التصنيف الفرعي]],\"\")","v":""},{"$f":"Table15[[#This Row],[التاريخ]]","v":"00:00:00"}]
[64,null,null,null,null,{"$f":"IF(Table15[[#This Row],[التصنيف الرئيسي]]=\"وارد\",\"وارد - \"&Table15[[#This Row],[التصنيف الفرعي]],\"\")","v":""},{"$f":"Table15[[#This Row],[التاريخ]]","v":"00:00:00"}]
[65,null,null,null,null,{"$f":"IF(Table15[[#This Row],[التصنيف الرئيسي]]=\"وارد\",\"وارد - \"&Table15[[#This Row],[التصنيف الفرعي]],\"\")","v":""},{"$f":"Table15[[#This Row],[التاريخ]]","v":"00:00:00"}]
[66,null,null,null,null,{"$f":"IF(Table15[[#This Row],[التصنيف الرئيسي]]=\"وارد\",\"وارد - \"&Table15[[#This Row],[التصنيف الفرعي]],\"\")","v":""},{"$f":"Table15[[#This Row],[التاريخ]]","v":"00:00:00"}]
[67,null,null,null,null,{"$f":"IF(Table15[[#This Row],[التصنيف الرئيسي]]=\"وارد\",\"وارد - \"&Table15[[#This Row],[التصنيف الفرعي]],\"\")","v":""},{"$f":"Table15[[#This Row],[التاريخ]]","v":"00:00:00"}]
[68,null,null,null,null,{"$f":"IF(Table15[[#This Row],[التصنيف الرئيسي]]=\"وارد\",\"وارد - \"&Table15[[#This Row],[التصنيف الفرعي]],\"\")","v":""},{"$f":"Table15[[#This Row],[التاريخ]]","v":"00:00:00"}]
[69,null,null,null,null,{"$f":"IF(Table15[[#This Row],[التصنيف الرئيسي]]=\"وارد\",\"وارد - \"&Table15[[#This Row],[التصنيف الفرعي]],\"\")","v":""},{"$f":"Table15[[#This Row],[التاريخ]]","v":"00:00:00"}]
[70,null,null,null,null,{"$f":"IF(Table15[[#This Row],[التصنيف الرئيسي]]=\"وارد\",\"وارد - \"&Table15[[#This Row],[التصنيف الفرعي]],\"\")","v":""},{"$f":"Table15[[#This Row],[التاريخ]]","v":"00:00:00"}]
[71,null,null,null,null,{"$f":"IF(Table15[[#This Row],[التصنيف الرئيسي]]=\"وارد\",\"وارد - \"&Table15[[#This Row],[التصنيف الفرعي]],\"\")","v":""},{"$f":"Table15[[#This Row],[التاريخ]]","v":"00:00:00"}]
[72,null,null,null,null,{"$f":"IF(Table15[[#This Row],[التصنيف الرئيسي]]=\"وارد\",\"وارد - \"&Table15[[#This Row],[التصنيف الفرعي]],\"\")","v":""},{"$f":"Table15[[#This Row],[التاريخ]]","v":"00:00:00"}]
[73,null,null,null,null,{"$f":"IF(Table15[[#This Row],[التصنيف الرئيسي]]=\"وارد\",\"وارد - \"&Table15[[#This Row],[التصنيف الفرعي]],\"\")","v":""},{"$f":"Table15[[#This Row],[التاريخ]]","v":"00:00:00"}]
[74,null,null,null,null,{"$f":"IF(Table15[[#This Row],[التصنيف الرئيسي]]=\"وارد\",\"وارد - \"&Table15[[#This Row],[التصنيف الفرعي]],\"\")","v":""},{"$f":"Table15[[#This Row],[التاريخ]]","v":"00:00:00"}]
[75,null,null,null,null,{"$f":"IF(Table15[[#This Row],[التصنيف الرئيسي]]=\"وارد\",\"وارد - \"&Table15[[#This Row],[التصنيف الفرعي]],\"\")","v":""},{"$f":"Table15[[#This Row],[التاريخ]]","v":"00:00:00"}]
[76,null,null,null,null,{"$f":"IF(Table15[[#This Row],[التصنيف الرئيسي]]=\"وارد\",\"وارد - \"&Table15[[#This Row],[التصنيف الفرعي]],\"\")","v":""},{"$f":"Table15[[#This Row],[التاريخ]]","v":"00:00:00"}]
[77,null,null,null,null,{"$f":"IF(Table15[[#This Row],[التصنيف الرئيسي]]=\"وارد\",\"وارد - \"&Table15[[#This Row],[التصنيف الفرعي]],\"\")","v":""},{"$f":"Table15[[#This Row],[التاريخ]]","v":"00:00:00"}]
[78,null,null,null,null,{"$f":"IF(Table15[[#This Row],[التصنيف الرئيسي]]=\"وارد\",\"وارد - \"&Table15[[#This Row],[التصنيف الفرعي]],\"\")","v":""},{"$f":"Table15[[#This Row],[التاريخ]]","v":"00:00:00"}]
[79,null,null,null,null,{"$f":"IF(Table15[[#This Row],[التصنيف الرئيسي]]=\"وارد\",\"وارد - \"&Table15[[#This Row],[التصنيف الفرعي]],\"\")","v":""},{"$f":"Table15[[#This Row],[التاريخ]]","v":"00:00:00"}]
[80,null,null,null,null,{"$f":"IF(Table15[[#This Row],[التصنيف الرئيسي]]=\"وارد\",\"وارد - \"&Table15[[#This Row],[التصنيف الفرعي]],\"\")","v":""},{"$f":"Table15[[#This Row],[التاريخ]]","v":"00:00:00"}]
[81,null,null,null,null,{"$f":"IF(Table15[[#This Row],[التصنيف الرئيسي]]=\"وارد\",\"وارد - \"&Table15[[#This Row],[التصنيف الفرعي]],\"\")","v":""},{"$f":"Table15[[#This Row],[التاريخ]]","v":"00:00:00"}]
[82,null,null,null,null,{"$f":"IF(Table15[[#This Row],[التصنيف الرئيسي]]=\"وارد\",\"وارد - \"&Table15[[#This Row],[التصنيف الفرعي]],\"\")","v":""},{"$f":"Table15[[#This Row],[التاريخ]]","v":"00:00:00"}]
[83,null,null,null,null,{"$f":"IF(Table15[[#This Row],[التصنيف الرئيسي]]=\"وارد\",\"وارد - \"&Table15[[#This Row],[التصنيف الفرعي]],\"\")","v":""},{"$f":"Table15[[#This Row],[التاريخ]]","v":"00:00:00"}]
[84,null,null,null,null,{"$f":"IF(Table15[[#This Row],[التصنيف الرئيسي]]=\"وارد\",\"وارد - \"&Table15[[#This Row],[التصنيف الفرعي]],\"\")","v":""},{"$f":"Table15[[#This Row],[التاريخ]]","v":"00:00:00"}]
[85,null,null,null,null,{"$f":"IF(Table15[[#This Row],[التصنيف الرئيسي]]=\"وارد\",\"وارد - \"&Table15[[#This Row],[التصنيف الفرعي]],\"\")","v":""},{"$f":"Table15[[#This Row],[التاريخ]]","v":"00:00:00"}]
[86,null,null,null,null,{"$f":"IF(Table15[[#This Row],[التصنيف الرئيسي]]=\"وارد\",\"وارد - \"&Table15[[#This Row],[التصنيف الفرعي]],\"\")","v":""},{"$f":"Table15[[#This Row],[التاريخ]]","v":"00:00:00"}]
[87,null,null,null,null,{"$f":"IF(Table15[[#This Row],[التصنيف الرئيسي]]=\"وارد\",\"وارد - \"&Table15[[#This Row],[التصنيف الفرعي]],\"\")","v":""},{"$f":"Table15[[#This Row],[التاريخ]]","v":"00:00:00"}]
[88,null,null,null,null,{"$f":"IF(Table15[[#This Row],[التصنيف الرئيسي]]=\"وارد\",\"وارد - \"&Table15[[#This Row],[التصنيف الفرعي]],\"\")","v":""},{"$f":"Table15[[#This Row],[التاريخ]]","v":"00:00:00"}]
[89,null,null,null,null,{"$f":"IF(Table15[[#This Row],[التصنيف الرئيسي]]=\"وارد\",\"وارد - \"&Table15[[#This Row],[التصنيف الفرعي]],\"\")","v":""},{"$f":"Table15[[#This Row],[التاريخ]]","v":"00:00:00"}]
[90,null,null,null,null,{"$f":"IF(Table15[[#This Row],[التصنيف الرئيسي]]=\"وارد\",\"وارد - \"&Table15[[#This Row],[التصنيف الفرعي]],\"\")","v":""},{"$f":"Table15[[#This Row],[التاريخ]]","v":"00:00:00"}]
[91,null,null,null,null,{"$f":"IF(Table15[[#This Row],[التصنيف الرئيسي]]=\"وارد\",\"وارد - \"&Table15[[#This Row],[التصنيف الفرعي]],\"\")","v":""},{"$f":"Table15[[#This Row],[التاريخ]]","v":"00:00:00"}]
[92,null,null,null,null,{"$f":"IF(Table15[[#This Row],[التصنيف الرئيسي]]=\"وارد\",\"وارد - \"&Table15[[#This Row],[التصنيف الفرعي]],\"\")","v":""},{"$f":"Table15[[#This Row],[التاريخ]]","v":"00:00:00"}]
[93,null,null,null,null,{"$f":"IF(Table15[[#This Row],[التصنيف الرئيسي]]=\"وارد\",\"وارد - \"&Table15[[#This Row],[التصنيف الفرعي]],\"\")","v":""},{"$f":"Table15[[#This Row],[التاريخ]]","v":"00:00:00"}]
[94,null,null,null,null,{"$f":"IF(Table15[[#This Row],[التصنيف الرئيسي]]=\"وارد\",\"وارد - \"&Table15[[#This Row],[التصنيف الفرعي]],\"\")","v":""},{"$f":"Table15[[#This Row],[التاريخ]]","v":"00:00:00"}]
[95,null,null,null,null,{"$f":"IF(Table15[[#This Row],[التصنيف الرئيسي]]=\"وارد\",\"وارد - \"&Table15[[#This Row],[التصنيف الفرعي]],\"\")","v":""},{"$f":"Table15[[#This Row],[التاريخ]]","v":"00:00:00"}]
["Total",null,null,null,{"$f":"SUBTOTAL(109,Table15[القيمة])","v":6200},{"$f":"SUBTOTAL(103,Table15[البيان])","v":95}]

{"sheet":"يوليو","index":6,"n_rows":100,"n_cols":7,"rows_kept":100,"cut":false,"hidden":false,"merged":[[0,0,2,5]]}
["2019-07-01"]
[]
[]
["الكود","التاريخ","التصنيف الرئيسي","التصنيف الفرعي","القيمة","البيان","Column1"]
[1,"2019-07-01","وارد","مرتب",null,{"$f":"IF(Table16[[#This Row],[التصنيف الرئيسي]]=\"وارد\",\"وارد - \"&Table16[[#This Row],[التصنيف الفرعي]],\"\")","v":"وارد - مرتب"},{"$f":"B5","v":"2019-07-01"}]
[2,null,null,null,null,{"$f":"IF(Table16[[#This Row],[التصنيف الرئيسي]]=\"وارد\",\"وارد - \"&Table16[[#This Row],[التصنيف الفرعي]],\"\")","v":""},"00:00:00"]
[3,null,null,null,null,{"$f":"IF(Table16[[#This Row],[التصنيف الرئيسي]]=\"وارد\",\"وارد - \"&Table16[[#This Row],[التصنيف الفرعي]],\"\")","v":""},"00:00:00"]
[4,null,null,null,null,{"$f":"IF(Table16[[#This Row],[التصنيف الرئيسي]]=\"وارد\",\"وارد - \"&Table16[[#This Row],[التصنيف الفرعي]],\"\")","v":""},"00:00:00"]
[5,null,null,null,null,{"$f":"IF(Table16[[#This Row],[التصنيف الرئيسي]]=\"وارد\",\"وارد - \"&Table16[[#This Row],[التصنيف الفرعي]],\"\")","v":""},"00:00:00"]
[6,null,null,null,null,{"$f":"IF(Table16[[#This Row],[التصنيف الرئيسي]]=\"وارد\",\"وارد - \"&Table16[[#This Row],[التصنيف الفرعي]],\"\")","v":""},"00:00:00"]
[7,null,null,null,null,{"$f":"IF(Table16[[#This Row],[التصنيف الرئيسي]]=\"وارد\",\"وارد - \"&Table16[[#This Row],[التصنيف الفرعي]],\"\")","v":""},"00:00:00"]
[8,null,null,null,null,{"$f":"IF(Table16[[#This Row],[التصنيف الرئيسي]]=\"وارد\",\"وارد - \"&Table16[[#This Row],[التصنيف الفرعي]],\"\")","v":""},"00:00:00"]
[9,null,null,null,null,{"$f":"IF(Table16[[#This Row],[التصنيف الرئيسي]]=\"وارد\",\"وارد - \"&Table16[[#This Row],[التصنيف الفرعي]],\"\")","v":""},"00:00:00"]
[10,null,null,null,null,{"$f":"IF(Table16[[#This Row],[التصنيف الرئيسي]]=\"وارد\",\"وارد - \"&Table16[[#This Row],[التصنيف الفرعي]],\"\")","v":""},"00:00:00"]
[11,null,null,null,null,{"$f":"IF(Table16[[#This Row],[التصنيف الرئيسي]]=\"وارد\",\"وارد - \"&Table16[[#This Row],[التصنيف الفرعي]],\"\")","v":""},"00:00:00"]
[12,null,null,null,null,{"$f":"IF(Table16[[#This Row],[التصنيف الرئيسي]]=\"وارد\",\"وارد - \"&Table16[[#This Row],[التصنيف الفرعي]],\"\")","v":""},"00:00:00"]
[13,null,null,null,null,{"$f":"IF(Table16[[#This Row],[التصنيف الرئيسي]]=\"وارد\",\"وارد - \"&Table16[[#This Row],[التصنيف الفرعي]],\"\")","v":""},"00:00:00"]
[14,null,null,null,null,{"$f":"IF(Table16[[#This Row],[التصنيف الرئيسي]]=\"وارد\",\"وارد - \"&Table16[[#This Row],[التصنيف الفرعي]],\"\")","v":""},"00:00:00"]
[15,null,null,null,null,{"$f":"IF(Table16[[#This Row],[التصنيف الرئيسي]]=\"وارد\",\"وارد - \"&Table16[[#This Row],[التصنيف الفرعي]],\"\")","v":""},"00:00:00"]
[16,null,null,null,null,{"$f":"IF(Table16[[#This Row],[التصنيف الرئيسي]]=\"وارد\",\"وارد - \"&Table16[[#This Row],[التصنيف الفرعي]],\"\")","v":""},"00:00:00"]
[17,null,null,null,null,{"$f":"IF(Table16[[#This Row],[التصنيف الرئيسي]]=\"وارد\",\"وارد - \"&Table16[[#This Row],[التصنيف الفرعي]],\"\")","v":""},"00:00:00"]
[18,null,null,null,null,{"$f":"IF(Table16[[#This Row],[التصنيف الرئيسي]]=\"وارد\",\"وارد - \"&Table16[[#This Row],[التصنيف الفرعي]],\"\")","v":""},"00:00:00"]
[19,null,null,null,null,{"$f":"IF(Table16[[#This Row],[التصنيف الرئيسي]]=\"وارد\",\"وارد - \"&Table16[[#This Row],[التصنيف الفرعي]],\"\")","v":""},"00:00:00"]
[20,null,null,null,null,{"$f":"IF(Table16[[#This Row],[التصنيف الرئيسي]]=\"وارد\",\"وارد - \"&Table16[[#This Row],[التصنيف الفرعي]],\"\")","v":""},"00:00:00"]
[21,null,null,null,null,{"$f":"IF(Table16[[#This Row],[التصنيف الرئيسي]]=\"وارد\",\"وارد - \"&Table16[[#This Row],[التصنيف الفرعي]],\"\")","v":""},"00:00:00"]
[22,null,null,null,null,{"$f":"IF(Table16[[#This Row],[التصنيف الرئيسي]]=\"وارد\",\"وارد - \"&Table16[[#This Row],[التصنيف الفرعي]],\"\")","v":""},"00:00:00"]
[23,null,null,null,null,{"$f":"IF(Table16[[#This Row],[التصنيف الرئيسي]]=\"وارد\",\"وارد - \"&Table16[[#This Row],[التصنيف الفرعي]],\"\")","v":""},"00:00:00"]
[24,null,null,null,null,{"$f":"IF(Table16[[#This Row],[التصنيف الرئيسي]]=\"وارد\",\"وارد - \"&Table16[[#This Row],[التصنيف الفرعي]],\"\")","v":""},"00:00:00"]
[25,null,null,null,null,{"$f":"IF(Table16[[#This Row],[التصنيف الرئيسي]]=\"وارد\",\"وارد - \"&Table16[[#This Row],[التصنيف الفرعي]],\"\")","v":""},"00:00:00"]
[26,null,null,null,null,{"$f":"IF(Table16[[#This Row],[التصنيف الرئيسي]]=\"وارد\",\"وارد - \"&Table16[[#This Row],[التصنيف الفرعي]],\"\")","v":""},"00:00:00"]
[27,null,null,null,null,{"$f":"IF(Table16[[#This Row],[التصنيف الرئيسي]]=\"وارد\",\"وارد - \"&Table16[[#This Row],[التصنيف الفرعي]],\"\")","v":""},"00:00:00"]
[28,null,null,null,null,{"$f":"IF(Table16[[#This Row],[التصنيف الرئيسي]]=\"وارد\",\"وارد - \"&Table16[[#This Row],[التصنيف الفرعي]],\"\")","v":""},"00:00:00"]
[29,null,null,null,null,{"$f":"IF(Table16[[#This Row],[التصنيف الرئيسي]]=\"وارد\",\"وارد - \"&Table16[[#This Row],[التصنيف الفرعي]],\"\")","v":""},"00:00:00"]
[30,null,null,null,null,{"$f":"IF(Table16[[#This Row],[التصنيف الرئيسي]]=\"وارد\",\"وارد - \"&Table16[[#This Row],[التصنيف الفرعي]],\"\")","v":""},"00:00:00"]
[31,null,null,null,null,{"$f":"IF(Table16[[#This Row],[التصنيف الرئيسي]]=\"وارد\",\"وارد - \"&Table16[[#This Row],[التصنيف الفرعي]],\"\")","v":""},"00:00:00"]
[32,null,null,null,null,{"$f":"IF(Table16[[#This Row],[التصنيف الرئيسي]]=\"وارد\",\"وارد - \"&Table16[[#This Row],[التصنيف الفرعي]],\"\")","v":""},"00:00:00"]
[33,null,null,null,null,{"$f":"IF(Table16[[#This Row],[التصنيف الرئيسي]]=\"وارد\",\"وارد - \"&Table16[[#This Row],[التصنيف الفرعي]],\"\")","v":""},{"$f":"B37","v":"00:00:00"}]
[34,null,null,null,null,{"$f":"IF(Table16[[#This Row],[التصنيف الرئيسي]]=\"وارد\",\"وارد - \"&Table16[[#This Row],[التصنيف الفرعي]],\"\")","v":""},"00:00:00"]
[35,null,null,null,null,{"$f":"IF(Table16[[#This Row],[التصنيف الرئيسي]]=\"وارد\",\"وارد - \"&Table16[[#This Row],[التصنيف الفرعي]],\"\")","v":""},"00:00:00"]
[36,null,null,null,null,{"$f":"IF(Table16[[#This Row],[التصنيف الرئيسي]]=\"وارد\",\"وارد - \"&Table16[[#This Row],[التصنيف الفرعي]],\"\")","v":""},"00:00:00"]
[37,null,null,null,null,{"$f":"IF(Table16[[#This Row],[التصنيف الرئيسي]]=\"وارد\",\"وارد - \"&Table16[[#This Row],[التصنيف الفرعي]],\"\")","v":""},"00:00:00"]
[38,null,null,null,null,{"$f":"IF(Table16[[#This Row],[التصنيف الرئيسي]]=\"وارد\",\"وارد - \"&Table16[[#This Row],[التصنيف الفرعي]],\"\")","v":""},"00:00:00"]
[39,null,null,null,null,{"$f":"IF(Table16[[#This Row],[التصنيف الرئيسي]]=\"وارد\",\"وارد - \"&Table16[[#This Row],[التصنيف الفرعي]],\"\")","v":""},"00:00:00"]
[40,null,null,null,null,{"$f":"IF(Table16[[#This Row],[التصنيف الرئيسي]]=\"وارد\",\"وارد - \"&Table16[[#This Row],[التصنيف الفرعي]],\"\")","v":""},"00:00:00"]
[41,null,null,null,null,{"$f":"IF(Table16[[#This Row],[التصنيف الرئيسي]]=\"وارد\",\"وارد - \"&Table16[[#This Row],[التصنيف الفرعي]],\"\")","v":""},"00:00:00"]
[42,null,null,null,null,{"$f":"IF(Table16[[#This Row],[التصنيف الرئيسي]]=\"وارد\",\"وارد - \"&Table16[[#This Row],[التصنيف الفرعي]],\"\")","v":""},"00:00:00"]
[43,null,null,null,null,{"$f":"IF(Table16[[#This Row],[التصنيف الرئيسي]]=\"وارد\",\"وارد - \"&Table16[[#This Row],[التصنيف الفرعي]],\"\")","v":""},"00:00:00"]
[44,null,null,null,null,{"$f":"IF(Table16[[#This Row],[التصنيف الرئيسي]]=\"وارد\",\"وارد - \"&Table16[[#This Row],[التصنيف الفرعي]],\"\")","v":""},"00:00:00"]
[45,null,null,null,null,{"$f":"IF(Table16[[#This Row],[التصنيف الرئيسي]]=\"وارد\",\"وارد - \"&Table16[[#This Row],[التصنيف الفرعي]],\"\")","v":""},"00:00:00"]
[46,null,null,null,null,{"$f":"IF(Table16[[#This Row],[التصنيف الرئيسي]]=\"وارد\",\"وارد - \"&Table16[[#This Row],[التصنيف الفرعي]],\"\")","v":""},"00:00:00"]
[47,null,null,null,null,{"$f":"IF(Table16[[#This Row],[التصنيف الرئيسي]]=\"وارد\",\"وارد - \"&Table16[[#This Row],[التصنيف الفرعي]],\"\")","v":""},"00:00:00"]
[48,null,null,null,null,{"$f":"IF(Table16[[#This Row],[التصنيف الرئيسي]]=\"وارد\",\"وارد - \"&Table16[[#This Row],[التصنيف الفرعي]],\"\")","v":""},"00:00:00"]
[49,null,null,null,null,{"$f":"IF(Table16[[#This Row],[التصنيف الرئيسي]]=\"وارد\",\"وارد - \"&Table16[[#This Row],[التصنيف الفرعي]],\"\")","v":""},"00:00:00"]
[50,null,null,null,null,{"$f":"IF(Table16[[#This Row],[التصنيف الرئيسي]]=\"وارد\",\"وارد - \"&Table16[[#This Row],[التصنيف الفرعي]],\"\")","v":""},"00:00:00"]
[51,null,null,null,null,{"$f":"IF(Table16[[#This Row],[التصنيف الرئيسي]]=\"وارد\",\"وارد - \"&Table16[[#This Row],[التصنيف الفرعي]],\"\")","v":""},"00:00:00"]
[52,null,null,null,null,{"$f":"IF(Table16[[#This Row],[التصنيف الرئيسي]]=\"وارد\",\"وارد - \"&Table16[[#This Row],[التصنيف الفرعي]],\"\")","v":""},"00:00:00"]
[53,null,null,null,null,{"$f":"IF(Table16[[#This Row],[التصنيف الرئيسي]]=\"وارد\",\"وارد - \"&Table16[[#This Row],[التصنيف الفرعي]],\"\")","v":""},"00:00:00"]
[54,null,null,null,null,{"$f":"IF(Table16[[#This Row],[التصنيف الرئيسي]]=\"وارد\",\"وارد - \"&Table16[[#This Row],[التصنيف الفرعي]],\"\")","v":""},"00:00:00"]
[55,null,null,null,null,{"$f":"IF(Table16[[#This Row],[التصنيف الرئيسي]]=\"وارد\",\"وارد - \"&Table16[[#This Row],[التصنيف الفرعي]],\"\")","v":""},"00:00:00"]
[56,null,null,null,null,{"$f":"IF(Table16[[#This Row],[التصنيف الرئيسي]]=\"وارد\",\"وارد - \"&Table16[[#This Row],[التصنيف الفرعي]],\"\")","v":""},"00:00:00"]
[57,null,null,null,null,{"$f":"IF(Table16[[#This Row],[التصنيف الرئيسي]]=\"وارد\",\"وارد - \"&Table16[[#This Row],[التصنيف الفرعي]],\"\")","v":""},"00:00:00"]
[58,null,null,null,null,{"$f":"IF(Table16[[#This Row],[التصنيف الرئيسي]]=\"وارد\",\"وارد - \"&Table16[[#This Row],[التصنيف الفرعي]],\"\")","v":""},"00:00:00"]
[59,null,null,null,null,{"$f":"IF(Table16[[#This Row],[التصنيف الرئيسي]]=\"وارد\",\"وارد - \"&Table16[[#This Row],[التصنيف الفرعي]],\"\")","v":""},"00:00:00"]
[60,null,null,null,null,{"$f":"IF(Table16[[#This Row],[التصنيف الرئيسي]]=\"وارد\",\"وارد - \"&Table16[[#This Row],[التصنيف الفرعي]],\"\")","v":""},"00:00:00"]
[61,null,null,null,null,{"$f":"IF(Table16[[#This Row],[التصنيف الرئيسي]]=\"وارد\",\"وارد - \"&Table16[[#This Row],[التصنيف الفرعي]],\"\")","v":""},"00:00:00"]
[62,null,null,null,null,{"$f":"IF(Table16[[#This Row],[التصنيف الرئيسي]]=\"وارد\",\"وارد - \"&Table16[[#This Row],[التصنيف الفرعي]],\"\")","v":""},"00:00:00"]
[63,null,null,null,null,{"$f":"IF(Table16[[#This Row],[التصنيف الرئيسي]]=\"وارد\",\"وارد - \"&Table16[[#This Row],[التصنيف الفرعي]],\"\")","v":""},"00:00:00"]
[64,null,null,null,null,{"$f":"IF(Table16[[#This Row],[التصنيف الرئيسي]]=\"وارد\",\"وارد - \"&Table16[[#This Row],[التصنيف الفرعي]],\"\")","v":""},"00:00:00"]
[65,null,null,null,null,{"$f":"IF(Table16[[#This Row],[التصنيف الرئيسي]]=\"وارد\",\"وارد - \"&Table16[[#This Row],[التصنيف الفرعي]],\"\")","v":""},{"$f":"B69","v":"00:00:00"}]
[66,null,null,null,null,{"$f":"IF(Table16[[#This Row],[التصنيف الرئيسي]]=\"وارد\",\"وارد - \"&Table16[[#This Row],[التصنيف الفرعي]],\"\")","v":""},"00:00:00"]
[67,null,null,null,null,{"$f":"IF(Table16[[#This Row],[التصنيف الرئيسي]]=\"وارد\",\"وارد - \"&Table16[[#This Row],[التصنيف الفرعي]],\"\")","v":""},"00:00:00"]
[68,null,null,null,null,{"$f":"IF(Table16[[#This Row],[التصنيف الرئيسي]]=\"وارد\",\"وارد - \"&Table16[[#This Row],[التصنيف الفرعي]],\"\")","v":""},"00:00:00"]
[69,null,null,null,null,{"$f":"IF(Table16[[#This Row],[التصنيف الرئيسي]]=\"وارد\",\"وارد - \"&Table16[[#This Row],[التصنيف الفرعي]],\"\")","v":""},"00:00:00"]
[70,null,null,null,null,{"$f":"IF(Table16[[#This Row],[التصنيف الرئيسي]]=\"وارد\",\"وارد - \"&Table16[[#This Row],[التصنيف الفرعي]],\"\")","v":""},"00:00:00"]
[71,null,null,null,null,{"$f":"IF(Table16[[#This Row],[التصنيف الرئيسي]]=\"وارد\",\"وارد - \"&Table16[[#This Row],[التصنيف الفرعي]],\"\")","v":""},"00:00:00"]
[72,null,null,null,null,{"$f":"IF(Table16[[#This Row],[التصنيف الرئيسي]]=\"وارد\",\"وارد - \"&Table16[[#This Row],[التصنيف الفرعي]],\"\")","v":""},"00:00:00"]
[73,null,null,null,null,{"$f":"IF(Table16[[#This Row],[التصنيف الرئيسي]]=\"وارد\",\"وارد - \"&Table16[[#This Row],[التصنيف الفرعي]],\"\")","v":""},"00:00:00"]
[74,null,null,null,null,{"$f":"IF(Table16[[#This Row],[التصنيف الرئيسي]]=\"وارد\",\"وارد - \"&Table16[[#This Row],[التصنيف الفرعي]],\"\")","v":""},"00:00:00"]
[75,null,null,null,null,{"$f":"IF(Table16[[#This Row],[التصنيف الرئيسي]]=\"وارد\",\"وارد - \"&Table16[[#This Row],[التصنيف الفرعي]],\"\")","v":""},"00:00:00"]
[76,null,null,null,null,{"$f":"IF(Table16[[#This Row],[التصنيف الرئيسي]]=\"وارد\",\"وارد - \"&Table16[[#This Row],[التصنيف الفرعي]],\"\")","v":""},"00:00:00"]
[77,null,null,null,null,{"$f":"IF(Table16[[#This Row],[التصنيف الرئيسي]]=\"وارد\",\"وارد - \"&Table16[[#This Row],[التصنيف الفرعي]],\"\")","v":""},"00:00:00"]
[78,null,null,null,null,{"$f":"IF(Table16[[#This Row],[التصنيف الرئيسي]]=\"وارد\",\"وارد - \"&Table16[[#This Row],[التصنيف الفرعي]],\"\")","v":""},"00:00:00"]
[79,null,null,null,null,{"$f":"IF(Table16[[#This Row],[التصنيف الرئيسي]]=\"وارد\",\"وارد - \"&Table16[[#This Row],[التصنيف الفرعي]],\"\")","v":""},"00:00:00"]
[80,null,null,null,null,{"$f":"IF(Table16[[#This Row],[التصنيف الرئيسي]]=\"وارد\",\"وارد - \"&Table16[[#This Row],[التصنيف الفرعي]],\"\")","v":""},"00:00:00"]
[81,null,null,null,null,{"$f":"IF(Table16[[#This Row],[التصنيف الرئيسي]]=\"وارد\",\"وارد - \"&Table16[[#This Row],[التصنيف الفرعي]],\"\")","v":""},"00:00:00"]
[82,null,null,null,null,{"$f":"IF(Table16[[#This Row],[التصنيف الرئيسي]]=\"وارد\",\"وارد - \"&Table16[[#This Row],[التصنيف الفرعي]],\"\")","v":""},"00:00:00"]
[83,null,null,null,null,{"$f":"IF(Table16[[#This Row],[التصنيف الرئيسي]]=\"وارد\",\"وارد - \"&Table16[[#This Row],[التصنيف الفرعي]],\"\")","v":""},"00:00:00"]
[84,null,null,null,null,{"$f":"IF(Table16[[#This Row],[التصنيف الرئيسي]]=\"وارد\",\"وارد - \"&Table16[[#This Row],[التصنيف الفرعي]],\"\")","v":""},"00:00:00"]
[85,null,null,null,null,{"$f":"IF(Table16[[#This Row],[التصنيف الرئيسي]]=\"وارد\",\"وارد - \"&Table16[[#This Row],[التصنيف الفرعي]],\"\")","v":""},"00:00:00"]
[86,null,null,null,null,{"$f":"IF(Table16[[#This Row],[التصنيف الرئيسي]]=\"وارد\",\"وارد - \"&Table16[[#This Row],[التصنيف الفرعي]],\"\")","v":""},"00:00:00"]
[87,null,null,null,null,{"$f":"IF(Table16[[#This Row],[التصنيف الرئيسي]]=\"وارد\",\"وارد - \"&Table16[[#This Row],[التصنيف الفرعي]],\"\")","v":""},"00:00:00"]
[88,null,null,null,null,{"$f":"IF(Table16[[#This Row],[التصنيف الرئيسي]]=\"وارد\",\"وارد - \"&Table16[[#This Row],[التصنيف الفرعي]],\"\")","v":""},"00:00:00"]
[89,null,null,null,null,{"$f":"IF(Table16[[#This Row],[التصنيف الرئيسي]]=\"وارد\",\"وارد - \"&Table16[[#This Row],[التصنيف الفرعي]],\"\")","v":""},"00:00:00"]
[90,null,null,null,null,{"$f":"IF(Table16[[#This Row],[التصنيف الرئيسي]]=\"وارد\",\"وارد - \"&Table16[[#This Row],[التصنيف الفرعي]],\"\")","v":""},"00:00:00"]
[91,null,null,null,null,{"$f":"IF(Table16[[#This Row],[التصنيف الرئيسي]]=\"وارد\",\"وارد - \"&Table16[[#This Row],[التصنيف الفرعي]],\"\")","v":""},"00:00:00"]
[92,null,null,null,null,{"$f":"IF(Table16[[#This Row],[التصنيف الرئيسي]]=\"وارد\",\"وارد - \"&Table16[[#This Row],[التصنيف الفرعي]],\"\")","v":""},"00:00:00"]
[93,null,null,null,null,{"$f":"IF(Table16[[#This Row],[التصنيف الرئيسي]]=\"وارد\",\"وارد - \"&Table16[[#This Row],[التصنيف الفرعي]],\"\")","v":""},"00:00:00"]
[94,null,null,null,null,{"$f":"IF(Table16[[#This Row],[التصنيف الرئيسي]]=\"وارد\",\"وارد - \"&Table16[[#This Row],[التصنيف الفرعي]],\"\")","v":""},"00:00:00"]
[95,null,null,null,null,{"$f":"IF(Table16[[#This Row],[التصنيف الرئيسي]]=\"وارد\",\"وارد - \"&Table16[[#This Row],[التصنيف الفرعي]],\"\")","v":""},"00:00:00"]
["Total",null,null,null,{"$f":"SUBTOTAL(109,Table16[القيمة])","v":0},null,{"$f":"SUBTOTAL(103,Table16[Column1])","v":95}]

{"sheet":"أغسطس","index":7,"n_rows":100,"n_cols":7,"rows_kept":100,"cut":false,"hidden":false,"merged":[[0,0,2,5]]}
["2019-08-01"]
[]
[]
["الكود","التاريخ","التصنيف الرئيسي","التصنيف الفرعي","القيمة","البيان","Column1"]
[1,"2019-08-01","وارد","مرتب",null,{"$f":"IF(Table17[[#This Row],[التصنيف الرئيسي]]=\"وارد\",\"وارد - \"&Table17[[#This Row],[التصنيف الفرعي]],\"\")","v":"وارد - مرتب"},{"$f":"Table17[[#This Row],[التاريخ]]","v":"2019-08-01"}]
[2,null,null,null,null,{"$f":"IF(Table17[[#This Row],[التصنيف الرئيسي]]=\"وارد\",\"وارد - \"&Table17[[#This Row],[التصنيف الفرعي]],\"\")","v":""},{"$f":"Table17[[#This Row],[التاريخ]]","v":"00:00:00"}]
[3,null,null,null,null,{"$f":"IF(Table17[[#This Row],[التصنيف الرئيسي]]=\"وارد\",\"وارد - \"&Table17[[#This Row],[التصنيف الفرعي]],\"\")","v":""},{"$f":"Table17[[#This Row],[التاريخ]]","v":"00:00:00"}]
[4,null,null,null,null,{"$f":"IF(Table17[[#This Row],[التصنيف الرئيسي]]=\"وارد\",\"وارد - \"&Table17[[#This Row],[التصنيف الفرعي]],\"\")","v":""},{"$f":"Table17[[#This Row],[التاريخ]]","v":"00:00:00"}]
[5,null,null,null,null,{"$f":"IF(Table17[[#This Row],[التصنيف الرئيسي]]=\"وارد\",\"وارد - \"&Table17[[#This Row],[التصنيف الفرعي]],\"\")","v":""},{"$f":"Table17[[#This Row],[التاريخ]]","v":"00:00:00"}]
[6,null,null,null,null,{"$f":"IF(Table17[[#This Row],[التصنيف الرئيسي]]=\"وارد\",\"وارد - \"&Table17[[#This Row],[التصنيف الفرعي]],\"\")","v":""},{"$f":"Table17[[#This Row],[التاريخ]]","v":"00:00:00"}]
[7,null,null,null,null,{"$f":"IF(Table17[[#This Row],[التصنيف الرئيسي]]=\"وارد\",\"وارد - \"&Table17[[#This Row],[التصنيف الفرعي]],\"\")","v":""},{"$f":"Table17[[#This Row],[التاريخ]]","v":"00:00:00"}]
[8,null,null,null,null,{"$f":"IF(Table17[[#This Row],[التصنيف الرئيسي]]=\"وارد\",\"وارد - \"&Table17[[#This Row],[التصنيف الفرعي]],\"\")","v":""},{"$f":"Table17[[#This Row],[التاريخ]]","v":"00:00:00"}]
[9,null,null,null,null,{"$f":"IF(Table17[[#This Row],[التصنيف الرئيسي]]=\"وارد\",\"وارد - \"&Table17[[#This Row],[التصنيف الفرعي]],\"\")","v":""},{"$f":"Table17[[#This Row],[التاريخ]]","v":"00:00:00"}]
[10,null,null,null,null,{"$f":"IF(Table17[[#This Row],[التصنيف الرئيسي]]=\"وارد\",\"وارد - \"&Table17[[#This Row],[التصنيف الفرعي]],\"\")","v":""},{"$f":"Table17[[#This Row],[التاريخ]]","v":"00:00:00"}]
[11,null,null,null,null,{"$f":"IF(Table17[[#This Row],[التصنيف الرئيسي]]=\"وارد\",\"وارد - \"&Table17[[#This Row],[التصنيف الفرعي]],\"\")","v":""},{"$f":"Table17[[#This Row],[التاريخ]]","v":"00:00:00"}]
[12,null,null,null,null,{"$f":"IF(Table17[[#This Row],[التصنيف الرئيسي]]=\"وارد\",\"وارد - \"&Table17[[#This Row],[التصنيف الفرعي]],\"\")","v":""},{"$f":"Table17[[#This Row],[التاريخ]]","v":"00:00:00"}]
[13,null,null,null,null,{"$f":"IF(Table17[[#This Row],[التصنيف الرئيسي]]=\"وارد\",\"وارد - \"&Table17[[#This Row],[التصنيف الفرعي]],\"\")","v":""},{"$f":"Table17[[#This Row],[التاريخ]]","v":"00:00:00"}]
[14,null,null,null,null,{"$f":"IF(Table17[[#This Row],[التصنيف الرئيسي]]=\"وارد\",\"وارد - \"&Table17[[#This Row],[التصنيف الفرعي]],\"\")","v":""},{"$f":"Table17[[#This Row],[التاريخ]]","v":"00:00:00"}]
[15,null,null,null,null,{"$f":"IF(Table17[[#This Row],[التصنيف الرئيسي]]=\"وارد\",\"وارد - \"&Table17[[#This Row],[التصنيف الفرعي]],\"\")","v":""},{"$f":"Table17[[#This Row],[التاريخ]]","v":"00:00:00"}]
[16,null,null,null,null,{"$f":"IF(Table17[[#This Row],[التصنيف الرئيسي]]=\"وارد\",\"وارد - \"&Table17[[#This Row],[التصنيف الفرعي]],\"\")","v":""},{"$f":"Table17[[#This Row],[التاريخ]]","v":"00:00:00"}]
[17,null,null,null,null,{"$f":"IF(Table17[[#This Row],[التصنيف الرئيسي]]=\"وارد\",\"وارد - \"&Table17[[#This Row],[التصنيف الفرعي]],\"\")","v":""},{"$f":"Table17[[#This Row],[التاريخ]]","v":"00:00:00"}]
[18,null,null,null,null,{"$f":"IF(Table17[[#This Row],[التصنيف الرئيسي]]=\"وارد\",\"وارد - \"&Table17[[#This Row],[التصنيف الفرعي]],\"\")","v":""},{"$f":"Table17[[#This Row],[التاريخ]]","v":"00:00:00"}]
[19,null,null,null,null,{"$f":"IF(Table17[[#This Row],[التصنيف الرئيسي]]=\"وارد\",\"وارد - \"&Table17[[#This Row],[التصنيف الفرعي]],\"\")","v":""},{"$f":"Table17[[#This Row],[التاريخ]]","v":"00:00:00"}]
[20,null,null,null,null,{"$f":"IF(Table17[[#This Row],[التصنيف الرئيسي]]=\"وارد\",\"وارد - \"&Table17[[#This Row],[التصنيف الفرعي]],\"\")","v":""},{"$f":"Table17[[#This Row],[التاريخ]]","v":"00:00:00"}]
[21,null,null,null,null,{"$f":"IF(Table17[[#This Row],[التصنيف الرئيسي]]=\"وارد\",\"وارد - \"&Table17[[#This Row],[التصنيف الفرعي]],\"\")","v":""},{"$f":"Table17[[#This Row],[التاريخ]]","v":"00:00:00"}]
[22,null,null,null,null,{"$f":"IF(Table17[[#This Row],[التصنيف الرئيسي]]=\"وارد\",\"وارد - \"&Table17[[#This Row],[التصنيف الفرعي]],\"\")","v":""},{"$f":"Table17[[#This Row],[التاريخ]]","v":"00:00:00"}]
[23,null,null,null,null,{"$f":"IF(Table17[[#This Row],[التصنيف الرئيسي]]=\"وارد\",\"وارد - \"&Table17[[#This Row],[التصنيف الفرعي]],\"\")","v":""},{"$f":"Table17[[#This Row],[التاريخ]]","v":"00:00:00"}]
[24,null,null,null,null,{"$f":"IF(Table17[[#This Row],[التصنيف الرئيسي]]=\"وارد\",\"وارد - \"&Table17[[#This Row],[التصنيف الفرعي]],\"\")","v":""},{"$f":"Table17[[#This Row],[التاريخ]]","v":"00:00:00"}]
[25,null,null,null,null,{"$f":"IF(Table17[[#This Row],[التصنيف الرئيسي]]=\"وارد\",\"وارد - \"&Table17[[#This Row],[التصنيف الفرعي]],\"\")","v":""},{"$f":"Table17[[#This Row],[التاريخ]]","v":"00:00:00"}]
[26,null,null,null,null,{"$f":"IF(Table17[[#This Row],[التصنيف الرئيسي]]=\"وارد\",\"وارد - \"&Table17[[#This Row],[التصنيف الفرعي]],\"\")","v":""},{"$f":"Table17[[#This Row],[التاريخ]]","v":"00:00:00"}]
[27,null,null,null,null,{"$f":"IF(Table17[[#This Row],[التصنيف الرئيسي]]=\"وارد\",\"وارد - \"&Table17[[#This Row],[التصنيف الفرعي]],\"\")","v":""},{"$f":"Table17[[#This Row],[التاريخ]]","v":"00:00:00"}]
[28,null,null,null,null,{"$f":"IF(Table17[[#This Row],[التصنيف الرئيسي]]=\"وارد\",\"وارد - \"&Table17[[#This Row],[التصنيف الفرعي]],\"\")","v":""},{"$f":"Table17[[#This Row],[التاريخ]]","v":"00:00:00"}]
[29,null,null,null,null,{"$f":"IF(Table17[[#This Row],[التصنيف الرئيسي]]=\"وارد\",\"وارد - \"&Table17[[#This Row],[التصنيف الفرعي]],\"\")","v":""},{"$f":"Table17[[#This Row],[التاريخ]]","v":"00:00:00"}]
[30,null,null,null,null,{"$f":"IF(Table17[[#This Row],[التصنيف الرئيسي]]=\"وارد\",\"وارد - \"&Table17[[#This Row],[التصنيف الفرعي]],\"\")","v":""},{"$f":"Table17[[#This Row],[التاريخ]]","v":"00:00:00"}]
[31,null,null,null,null,{"$f":"IF(Table17[[#This Row],[التصنيف الرئيسي]]=\"وارد\",\"وارد - \"&Table17[[#This Row],[التصنيف الفرعي]],\"\")","v":""},{"$f":"Table17[[#This Row],[التاريخ]]","v":"00:00:00"}]
[32,null,null,null,null,{"$f":"IF(Table17[[#This Row],[التصنيف الرئيسي]]=\"وارد\",\"وارد - \"&Table17[[#This Row],[التصنيف الفرعي]],\"\")","v":""},{"$f":"Table17[[#This Row],[التاريخ]]","v":"00:00:00"}]
[33,null,null,null,null,{"$f":"IF(Table17[[#This Row],[التصنيف الرئيسي]]=\"وارد\",\"وارد - \"&Table17[[#This Row],[التصنيف الفرعي]],\"\")","v":""},{"$f":"Table17[[#This Row],[التاريخ]]","v":"00:00:00"}]
[34,null,null,null,null,{"$f":"IF(Table17[[#This Row],[التصنيف الرئيسي]]=\"وارد\",\"وارد - \"&Table17[[#This Row],[التصنيف الفرعي]],\"\")","v":""},{"$f":"Table17[[#This Row],[التاريخ]]","v":"00:00:00"}]
[35,null,null,null,null,{"$f":"IF(Table17[[#This Row],[التصنيف الرئيسي]]=\"وارد\",\"وارد - \"&Table17[[#This Row],[التصنيف الفرعي]],\"\")","v":""},{"$f":"Table17[[#This Row],[التاريخ]]","v":"00:00:00"}]
[36,null,null,null,null,{"$f":"IF(Table17[[#This Row],[التصنيف الرئيسي]]=\"وارد\",\"وارد - \"&Table17[[#This Row],[التصنيف الفرعي]],\"\")","v":""},{"$f":"Table17[[#This Row],[التاريخ]]","v":"00:00:00"}]
[37,null,null,null,null,{"$f":"IF(Table17[[#This Row],[التصنيف الرئيسي]]=\"وارد\",\"وارد - \"&Table17[[#This Row],[التصنيف الفرعي]],\"\")","v":""},{"$f":"Table17[[#This Row],[التاريخ]]","v":"00:00:00"}]
[38,null,null,null,null,{"$f":"IF(Table17[[#This Row],[التصنيف الرئيسي]]=\"وارد\",\"وارد - \"&Table17[[#This Row],[التصنيف الفرعي]],\"\")","v":""},{"$f":"Table17[[#This Row],[التاريخ]]","v":"00:00:00"}]
[39,null,null,null,null,{"$f":"IF(Table17[[#This Row],[التصنيف الرئيسي]]=\"وارد\",\"وارد - \"&Table17[[#This Row],[التصنيف الفرعي]],\"\")","v":""},{"$f":"Table17[[#This Row],[التاريخ]]","v":"00:00:00"}]
[40,null,null,null,null,{"$f":"IF(Table17[[#This Row],[التصنيف الرئيسي]]=\"وارد\",\"وارد - \"&Table17[[#This Row],[التصنيف الفرعي]],\"\")","v":""},{"$f":"Table17[[#This Row],[التاريخ]]","v":"00:00:00"}]
[41,null,null,null,null,{"$f":"IF(Table17[[#This Row],[التصنيف الرئيسي]]=\"وارد\",\"وارد - \"&Table17[[#This Row],[التصنيف الفرعي]],\"\")","v":""},{"$f":"Table17[[#This Row],[التاريخ]]","v":"00:00:00"}]
[42,null,null,null,null,{"$f":"IF(Table17[[#This Row],[التصنيف الرئيسي]]=\"وارد\",\"وارد - \"&Table17[[#This Row],[التصنيف الفرعي]],\"\")","v":""},{"$f":"Table17[[#This Row],[التاريخ]]","v":"00:00:00"}]
[43,null,null,null,null,{"$f":"IF(Table17[[#This Row],[التصنيف الرئيسي]]=\"وارد\",\"وارد - \"&Table17[[#This Row],[التصنيف الفرعي]],\"\")","v":""},{"$f":"Table17[[#This Row],[التاريخ]]","v":"00:00:00"}]
[44,null,null,null,null,{"$f":"IF(Table17[[#This Row],[التصنيف الرئيسي]]=\"وارد\",\"وارد - \"&Table17[[#This Row],[التصنيف الفرعي]],\"\")","v":""},{"$f":"Table17[[#This Row],[التاريخ]]","v":"00:00:00"}]
[45,null,null,null,null,{"$f":"IF(Table17[[#This Row],[التصنيف الرئيسي]]=\"وارد\",\"وارد - \"&Table17[[#This Row],[التصنيف الفرعي]],\"\")","v":""},{"$f":"Table17[[#This Row],[التاريخ]]","v":"00:00:00"}]
[46,null,null,null,null,{"$f":"IF(Table17[[#This Row],[التصنيف الرئيسي]]=\"وارد\",\"وارد - \"&Table17[[#This Row],[التصنيف الفرعي]],\"\")","v":""},{"$f":"Table17[[#This Row],[التاريخ]]","v":"00:00:00"}]
[47,null,null,null,null,{"$f":"IF(Table17[[#This Row],[التصنيف الرئيسي]]=\"وارد\",\"وارد - \"&Table17[[#This Row],[التصنيف الفرعي]],\"\")","v":""},{"$f":"Table17[[#This Row],[التاريخ]]","v":"00:00:00"}]
[48,null,null,null,null,{"$f":"IF(Table17[[#This Row],[التصنيف الرئيسي]]=\"وارد\",\"وارد - \"&Table17[[#This Row],[التصنيف الفرعي]],\"\")","v":""},{"$f":"Table17[[#This Row],[التاريخ]]","v":"00:00:00"}]
[49,null,null,null,null,{"$f":"IF(Table17[[#This Row],[التصنيف الرئيسي]]=\"وارد\",\"وارد - \"&Table17[[#This Row],[التصنيف الفرعي]],\"\")","v":""},{"$f":"Table17[[#This Row],[التاريخ]]","v":"00:00:00"}]
[50,null,null,null,null,{"$f":"IF(Table17[[#This Row],[التصنيف الرئيسي]]=\"وارد\",\"وارد - \"&Table17[[#This Row],[التصنيف الفرعي]],\"\")","v":""},{"$f":"Table17[[#This Row],[التاريخ]]","v":"00:00:00"}]
[51,null,null,null,null,{"$f":"IF(Table17[[#This Row],[التصنيف الرئيسي]]=\"وارد\",\"وارد - \"&Table17[[#This Row],[التصنيف الفرعي]],\"\")","v":""},{"$f":"Table17[[#This Row],[التاريخ]]","v":"00:00:00"}]
[52,null,null,null,null,{"$f":"IF(Table17[[#This Row],[التصنيف الرئيسي]]=\"وارد\",\"وارد - \"&Table17[[#This Row],[التصنيف الفرعي]],\"\")","v":""},{"$f":"Table17[[#This Row],[التاريخ]]","v":"00:00:00"}]
[53,null,null,null,null,{"$f":"IF(Table17[[#This Row],[التصنيف الرئيسي]]=\"وارد\",\"وارد - \"&Table17[[#This Row],[التصنيف الفرعي]],\"\")","v":""},{"$f":"Table17[[#This Row],[التاريخ]]","v":"00:00:00"}]
[54,null,null,null,null,{"$f":"IF(Table17[[#This Row],[التصنيف الرئيسي]]=\"وارد\",\"وارد - \"&Table17[[#This Row],[التصنيف الفرعي]],\"\")","v":""},{"$f":"Table17[[#This Row],[التاريخ]]","v":"00:00:00"}]
[55,null,null,null,null,{"$f":"IF(Table17[[#This Row],[التصنيف الرئيسي]]=\"وارد\",\"وارد - \"&Table17[[#This Row],[التصنيف الفرعي]],\"\")","v":""},{"$f":"Table17[[#This Row],[التاريخ]]","v":"00:00:00"}]
[56,null,null,null,null,{"$f":"IF(Table17[[#This Row],[التصنيف الرئيسي]]=\"وارد\",\"وارد - \"&Table17[[#This Row],[التصنيف الفرعي]],\"\")","v":""},{"$f":"Table17[[#This Row],[التاريخ]]","v":"00:00:00"}]
[57,null,null,null,null,{"$f":"IF(Table17[[#This Row],[التصنيف الرئيسي]]=\"وارد\",\"وارد - \"&Table17[[#This Row],[التصنيف الفرعي]],\"\")","v":""},{"$f":"Table17[[#This Row],[التاريخ]]","v":"00:00:00"}]
[58,null,null,null,null,{"$f":"IF(Table17[[#This Row],[التصنيف الرئيسي]]=\"وارد\",\"وارد - \"&Table17[[#This Row],[التصنيف الفرعي]],\"\")","v":""},{"$f":"Table17[[#This Row],[التاريخ]]","v":"00:00:00"}]
[59,null,null,null,null,{"$f":"IF(Table17[[#This Row],[التصنيف الرئيسي]]=\"وارد\",\"وارد - \"&Table17[[#This Row],[التصنيف الفرعي]],\"\")","v":""},{"$f":"Table17[[#This Row],[التاريخ]]","v":"00:00:00"}]
[60,null,null,null,null,{"$f":"IF(Table17[[#This Row],[التصنيف الرئيسي]]=\"وارد\",\"وارد - \"&Table17[[#This Row],[التصنيف الفرعي]],\"\")","v":""},{"$f":"Table17[[#This Row],[التاريخ]]","v":"00:00:00"}]
[61,null,null,null,null,{"$f":"IF(Table17[[#This Row],[التصنيف الرئيسي]]=\"وارد\",\"وارد - \"&Table17[[#This Row],[التصنيف الفرعي]],\"\")","v":""},{"$f":"Table17[[#This Row],[التاريخ]]","v":"00:00:00"}]
[62,null,null,null,null,{"$f":"IF(Table17[[#This Row],[التصنيف الرئيسي]]=\"وارد\",\"وارد - \"&Table17[[#This Row],[التصنيف الفرعي]],\"\")","v":""},{"$f":"Table17[[#This Row],[التاريخ]]","v":"00:00:00"}]
[63,null,null,null,null,{"$f":"IF(Table17[[#This Row],[التصنيف الرئيسي]]=\"وارد\",\"وارد - \"&Table17[[#This Row],[التصنيف الفرعي]],\"\")","v":""},{"$f":"Table17[[#This Row],[التاريخ]]","v":"00:00:00"}]
[64,null,null,null,null,{"$f":"IF(Table17[[#This Row],[التصنيف الرئيسي]]=\"وارد\",\"وارد - \"&Table17[[#This Row],[التصنيف الفرعي]],\"\")","v":""},{"$f":"Table17[[#This Row],[التاريخ]]","v":"00:00:00"}]
[65,null,null,null,null,{"$f":"IF(Table17[[#This Row],[التصنيف الرئيسي]]=\"وارد\",\"وارد - \"&Table17[[#This Row],[التصنيف الفرعي]],\"\")","v":""},{"$f":"Table17[[#This Row],[التاريخ]]","v":"00:00:00"}]
[66,null,null,null,null,{"$f":"IF(Table17[[#This Row],[التصنيف الرئيسي]]=\"وارد\",\"وارد - \"&Table17[[#This Row],[التصنيف الفرعي]],\"\")","v":""},{"$f":"Table17[[#This Row],[التاريخ]]","v":"00:00:00"}]
[67,null,null,null,null,{"$f":"IF(Table17[[#This Row],[التصنيف الرئيسي]]=\"وارد\",\"وارد - \"&Table17[[#This Row],[التصنيف الفرعي]],\"\")","v":""},{"$f":"Table17[[#This Row],[التاريخ]]","v":"00:00:00"}]
[68,null,null,null,null,{"$f":"IF(Table17[[#This Row],[التصنيف الرئيسي]]=\"وارد\",\"وارد - \"&Table17[[#This Row],[التصنيف الفرعي]],\"\")","v":""},{"$f":"Table17[[#This Row],[التاريخ]]","v":"00:00:00"}]
[69,null,null,null,null,{"$f":"IF(Table17[[#This Row],[التصنيف الرئيسي]]=\"وارد\",\"وارد - \"&Table17[[#This Row],[التصنيف الفرعي]],\"\")","v":""},{"$f":"Table17[[#This Row],[التاريخ]]","v":"00:00:00"}]
[70,null,null,null,null,{"$f":"IF(Table17[[#This Row],[التصنيف الرئيسي]]=\"وارد\",\"وارد - \"&Table17[[#This Row],[التصنيف الفرعي]],\"\")","v":""},{"$f":"Table17[[#This Row],[التاريخ]]","v":"00:00:00"}]
[71,null,null,null,null,{"$f":"IF(Table17[[#This Row],[التصنيف الرئيسي]]=\"وارد\",\"وارد - \"&Table17[[#This Row],[التصنيف الفرعي]],\"\")","v":""},{"$f":"Table17[[#This Row],[التاريخ]]","v":"00:00:00"}]
[72,null,null,null,null,{"$f":"IF(Table17[[#This Row],[التصنيف الرئيسي]]=\"وارد\",\"وارد - \"&Table17[[#This Row],[التصنيف الفرعي]],\"\")","v":""},{"$f":"Table17[[#This Row],[التاريخ]]","v":"00:00:00"}]
[73,null,null,null,null,{"$f":"IF(Table17[[#This Row],[التصنيف الرئيسي]]=\"وارد\",\"وارد - \"&Table17[[#This Row],[التصنيف الفرعي]],\"\")","v":""},{"$f":"Table17[[#This Row],[التاريخ]]","v":"00:00:00"}]
[74,null,null,null,null,{"$f":"IF(Table17[[#This Row],[التصنيف الرئيسي]]=\"وارد\",\"وارد - \"&Table17[[#This Row],[التصنيف الفرعي]],\"\")","v":""},{"$f":"Table17[[#This Row],[التاريخ]]","v":"00:00:00"}]
[75,null,null,null,null,{"$f":"IF(Table17[[#This Row],[التصنيف الرئيسي]]=\"وارد\",\"وارد - \"&Table17[[#This Row],[التصنيف الفرعي]],\"\")","v":""},{"$f":"Table17[[#This Row],[التاريخ]]","v":"00:00:00"}]
[76,null,null,null,null,{"$f":"IF(Table17[[#This Row],[التصنيف الرئيسي]]=\"وارد\",\"وارد - \"&Table17[[#This Row],[التصنيف الفرعي]],\"\")","v":""},{"$f":"Table17[[#This Row],[التاريخ]]","v":"00:00:00"}]
[77,null,null,null,null,{"$f":"IF(Table17[[#This Row],[التصنيف الرئيسي]]=\"وارد\",\"وارد - \"&Table17[[#This Row],[التصنيف الفرعي]],\"\")","v":""},{"$f":"Table17[[#This Row],[التاريخ]]","v":"00:00:00"}]
[78,null,null,null,null,{"$f":"IF(Table17[[#This Row],[التصنيف الرئيسي]]=\"وارد\",\"وارد - \"&Table17[[#This Row],[التصنيف الفرعي]],\"\")","v":""},{"$f":"Table17[[#This Row],[التاريخ]]","v":"00:00:00"}]
[79,null,null,null,null,{"$f":"IF(Table17[[#This Row],[التصنيف الرئيسي]]=\"وارد\",\"وارد - \"&Table17[[#This Row],[التصنيف الفرعي]],\"\")","v":""},{"$f":"Table17[[#This Row],[التاريخ]]","v":"00:00:00"}]
[80,null,null,null,null,{"$f":"IF(Table17[[#This Row],[التصنيف الرئيسي]]=\"وارد\",\"وارد - \"&Table17[[#This Row],[التصنيف الفرعي]],\"\")","v":""},{"$f":"Table17[[#This Row],[التاريخ]]","v":"00:00:00"}]
[81,null,null,null,null,{"$f":"IF(Table17[[#This Row],[التصنيف الرئيسي]]=\"وارد\",\"وارد - \"&Table17[[#This Row],[التصنيف الفرعي]],\"\")","v":""},{"$f":"Table17[[#This Row],[التاريخ]]","v":"00:00:00"}]
[82,null,null,null,null,{"$f":"IF(Table17[[#This Row],[التصنيف الرئيسي]]=\"وارد\",\"وارد - \"&Table17[[#This Row],[التصنيف الفرعي]],\"\")","v":""},{"$f":"Table17[[#This Row],[التاريخ]]","v":"00:00:00"}]
[83,null,null,null,null,{"$f":"IF(Table17[[#This Row],[التصنيف الرئيسي]]=\"وارد\",\"وارد - \"&Table17[[#This Row],[التصنيف الفرعي]],\"\")","v":""},{"$f":"Table17[[#This Row],[التاريخ]]","v":"00:00:00"}]
[84,null,null,null,null,{"$f":"IF(Table17[[#This Row],[التصنيف الرئيسي]]=\"وارد\",\"وارد - \"&Table17[[#This Row],[التصنيف الفرعي]],\"\")","v":""},{"$f":"Table17[[#This Row],[التاريخ]]","v":"00:00:00"}]
[85,null,null,null,null,{"$f":"IF(Table17[[#This Row],[التصنيف الرئيسي]]=\"وارد\",\"وارد - \"&Table17[[#This Row],[التصنيف الفرعي]],\"\")","v":""},{"$f":"Table17[[#This Row],[التاريخ]]","v":"00:00:00"}]
[86,null,null,null,null,{"$f":"IF(Table17[[#This Row],[التصنيف الرئيسي]]=\"وارد\",\"وارد - \"&Table17[[#This Row],[التصنيف الفرعي]],\"\")","v":""},{"$f":"Table17[[#This Row],[التاريخ]]","v":"00:00:00"}]
[87,null,null,null,null,{"$f":"IF(Table17[[#This Row],[التصنيف الرئيسي]]=\"وارد\",\"وارد - \"&Table17[[#This Row],[التصنيف الفرعي]],\"\")","v":""},{"$f":"Table17[[#This Row],[التاريخ]]","v":"00:00:00"}]
[88,null,null,null,null,{"$f":"IF(Table17[[#This Row],[التصنيف الرئيسي]]=\"وارد\",\"وارد - \"&Table17[[#This Row],[التصنيف الفرعي]],\"\")","v":""},{"$f":"Table17[[#This Row],[التاريخ]]","v":"00:00:00"}]
[89,null,null,null,null,{"$f":"IF(Table17[[#This Row],[التصنيف الرئيسي]]=\"وارد\",\"وارد - \"&Table17[[#This Row],[التصنيف الفرعي]],\"\")","v":""},{"$f":"Table17[[#This Row],[التاريخ]]","v":"00:00:00"}]
[90,null,null,null,null,{"$f":"IF(Table17[[#This Row],[التصنيف الرئيسي]]=\"وارد\",\"وارد - \"&Table17[[#This Row],[التصنيف الفرعي]],\"\")","v":""},{"$f":"Table17[[#This Row],[التاريخ]]","v":"00:00:00"}]
[91,null,null,null,null,{"$f":"IF(Table17[[#This Row],[التصنيف الرئيسي]]=\"وارد\",\"وارد - \"&Table17[[#This Row],[التصنيف الفرعي]],\"\")","v":""},{"$f":"Table17[[#This Row],[التاريخ]]","v":"00:00:00"}]
[92,null,null,null,null,{"$f":"IF(Table17[[#This Row],[التصنيف الرئيسي]]=\"وارد\",\"وارد - \"&Table17[[#This Row],[التصنيف الفرعي]],\"\")","v":""},{"$f":"Table17[[#This Row],[التاريخ]]","v":"00:00:00"}]
[93,null,null,null,null,{"$f":"IF(Table17[[#This Row],[التصنيف الرئيسي]]=\"وارد\",\"وارد - \"&Table17[[#This Row],[التصنيف الفرعي]],\"\")","v":""},{"$f":"Table17[[#This Row],[التاريخ]]","v":"00:00:00"}]
[94,null,null,null,null,{"$f":"IF(Table17[[#This Row],[التصنيف الرئيسي]]=\"وارد\",\"وارد - \"&Table17[[#This Row],[التصنيف الفرعي]],\"\")","v":""},{"$f":"Table17[[#This Row],[التاريخ]]","v":"00:00:00"}]
[95,null,null,null,null,{"$f":"IF(Table17[[#This Row],[التصنيف الرئيسي]]=\"وارد\",\"وارد - \"&Table17[[#This Row],[التصنيف الفرعي]],\"\")","v":""},{"$f":"Table17[[#This Row],[التاريخ]]","v":"00:00:00"}]
["Total",null,null,null,{"$f":"SUBTOTAL(109,Table17[القيمة])","v":0},null,{"$f":"SUBTOTAL(103,Table17[Column1])","v":95}]

{"sheet":"سبتمبر","index":8,"n_rows":100,"n_cols":7,"rows_kept":100,"cut":false,"hidden":false,"merged":[[0,0,2,5]]}
["2019-09-01"]
[]
[]
["الكود","التاريخ","التصنيف الرئيسي","التصنيف الفرعي","القيمة","البيان","Column1"]
[1,"2019-09-01","وارد","مرتب",null,{"$f":"IF(Table18[[#This Row],[التصنيف الرئيسي]]=\"وارد\",\"وارد - \"&Table18[[#This Row],[التصنيف الفرعي]],\"\")","v":"وارد - مرتب"},{"$f":"Table18[[#This Row],[التاريخ]]","v":"2019-09-01"}]
[2,null,null,null,null,{"$f":"IF(Table18[[#This Row],[التصنيف الرئيسي]]=\"وارد\",\"وارد - \"&Table18[[#This Row],[التصنيف الفرعي]],\"\")","v":""},{"$f":"Table18[[#This Row],[التاريخ]]","v":"00:00:00"}]
[3,null,null,null,null,{"$f":"IF(Table18[[#This Row],[التصنيف الرئيسي]]=\"وارد\",\"وارد - \"&Table18[[#This Row],[التصنيف الفرعي]],\"\")","v":""},{"$f":"Table18[[#This Row],[التاريخ]]","v":"00:00:00"}]
[4,null,null,null,null,{"$f":"IF(Table18[[#This Row],[التصنيف الرئيسي]]=\"وارد\",\"وارد - \"&Table18[[#This Row],[التصنيف الفرعي]],\"\")","v":""},{"$f":"Table18[[#This Row],[التاريخ]]","v":"00:00:00"}]
[5,null,null,null,null,{"$f":"IF(Table18[[#This Row],[التصنيف الرئيسي]]=\"وارد\",\"وارد - \"&Table18[[#This Row],[التصنيف الفرعي]],\"\")","v":""},{"$f":"Table18[[#This Row],[التاريخ]]","v":"00:00:00"}]
[6,null,null,null,null,{"$f":"IF(Table18[[#This Row],[التصنيف الرئيسي]]=\"وارد\",\"وارد - \"&Table18[[#This Row],[التصنيف الفرعي]],\"\")","v":""},{"$f":"Table18[[#This Row],[التاريخ]]","v":"00:00:00"}]
[7,null,null,null,null,{"$f":"IF(Table18[[#This Row],[التصنيف الرئيسي]]=\"وارد\",\"وارد - \"&Table18[[#This Row],[التصنيف الفرعي]],\"\")","v":""},{"$f":"Table18[[#This Row],[التاريخ]]","v":"00:00:00"}]
[8,null,null,null,null,{"$f":"IF(Table18[[#This Row],[التصنيف الرئيسي]]=\"وارد\",\"وارد - \"&Table18[[#This Row],[التصنيف الفرعي]],\"\")","v":""},{"$f":"Table18[[#This Row],[التاريخ]]","v":"00:00:00"}]
[9,null,null,null,null,{"$f":"IF(Table18[[#This Row],[التصنيف الرئيسي]]=\"وارد\",\"وارد - \"&Table18[[#This Row],[التصنيف الفرعي]],\"\")","v":""},{"$f":"Table18[[#This Row],[التاريخ]]","v":"00:00:00"}]
[10,null,null,null,null,{"$f":"IF(Table18[[#This Row],[التصنيف الرئيسي]]=\"وارد\",\"وارد - \"&Table18[[#This Row],[التصنيف الفرعي]],\"\")","v":""},{"$f":"Table18[[#This Row],[التاريخ]]","v":"00:00:00"}]
[11,null,null,null,null,{"$f":"IF(Table18[[#This Row],[التصنيف الرئيسي]]=\"وارد\",\"وارد - \"&Table18[[#This Row],[التصنيف الفرعي]],\"\")","v":""},{"$f":"Table18[[#This Row],[التاريخ]]","v":"00:00:00"}]
[12,null,null,null,null,{"$f":"IF(Table18[[#This Row],[التصنيف الرئيسي]]=\"وارد\",\"وارد - \"&Table18[[#This Row],[التصنيف الفرعي]],\"\")","v":""},{"$f":"Table18[[#This Row],[التاريخ]]","v":"00:00:00"}]
[13,null,null,null,null,{"$f":"IF(Table18[[#This Row],[التصنيف الرئيسي]]=\"وارد\",\"وارد - \"&Table18[[#This Row],[التصنيف الفرعي]],\"\")","v":""},{"$f":"Table18[[#This Row],[التاريخ]]","v":"00:00:00"}]
[14,null,null,null,null,{"$f":"IF(Table18[[#This Row],[التصنيف الرئيسي]]=\"وارد\",\"وارد - \"&Table18[[#This Row],[التصنيف الفرعي]],\"\")","v":""},{"$f":"Table18[[#This Row],[التاريخ]]","v":"00:00:00"}]
[15,null,null,null,null,{"$f":"IF(Table18[[#This Row],[التصنيف الرئيسي]]=\"وارد\",\"وارد - \"&Table18[[#This Row],[التصنيف الفرعي]],\"\")","v":""},{"$f":"Table18[[#This Row],[التاريخ]]","v":"00:00:00"}]
[16,null,null,null,null,{"$f":"IF(Table18[[#This Row],[التصنيف الرئيسي]]=\"وارد\",\"وارد - \"&Table18[[#This Row],[التصنيف الفرعي]],\"\")","v":""},{"$f":"Table18[[#This Row],[التاريخ]]","v":"00:00:00"}]
[17,null,null,null,null,{"$f":"IF(Table18[[#This Row],[التصنيف الرئيسي]]=\"وارد\",\"وارد - \"&Table18[[#This Row],[التصنيف الفرعي]],\"\")","v":""},{"$f":"Table18[[#This Row],[التاريخ]]","v":"00:00:00"}]
[18,null,null,null,null,{"$f":"IF(Table18[[#This Row],[التصنيف الرئيسي]]=\"وارد\",\"وارد - \"&Table18[[#This Row],[التصنيف الفرعي]],\"\")","v":""},{"$f":"Table18[[#This Row],[التاريخ]]","v":"00:00:00"}]
[19,null,null,null,null,{"$f":"IF(Table18[[#This Row],[التصنيف الرئيسي]]=\"وارد\",\"وارد - \"&Table18[[#This Row],[التصنيف الفرعي]],\"\")","v":""},{"$f":"Table18[[#This Row],[التاريخ]]","v":"00:00:00"}]
[20,null,null,null,null,{"$f":"IF(Table18[[#This Row],[التصنيف الرئيسي]]=\"وارد\",\"وارد - \"&Table18[[#This Row],[التصنيف الفرعي]],\"\")","v":""},{"$f":"Table18[[#This Row],[التاريخ]]","v":"00:00:00"}]
[21,null,null,null,null,{"$f":"IF(Table18[[#This Row],[التصنيف الرئيسي]]=\"وارد\",\"وارد - \"&Table18[[#This Row],[التصنيف الفرعي]],\"\")","v":""},{"$f":"Table18[[#This Row],[التاريخ]]","v":"00:00:00"}]
[22,null,null,null,null,{"$f":"IF(Table18[[#This Row],[التصنيف الرئيسي]]=\"وارد\",\"وارد - \"&Table18[[#This Row],[التصنيف الفرعي]],\"\")","v":""},{"$f":"Table18[[#This Row],[التاريخ]]","v":"00:00:00"}]
[23,null,null,null,null,{"$f":"IF(Table18[[#This Row],[التصنيف الرئيسي]]=\"وارد\",\"وارد - \"&Table18[[#This Row],[التصنيف الفرعي]],\"\")","v":""},{"$f":"Table18[[#This Row],[التاريخ]]","v":"00:00:00"}]
[24,null,null,null,null,{"$f":"IF(Table18[[#This Row],[التصنيف الرئيسي]]=\"وارد\",\"وارد - \"&Table18[[#This Row],[التصنيف الفرعي]],\"\")","v":""},{"$f":"Table18[[#This Row],[التاريخ]]","v":"00:00:00"}]
[25,null,null,null,null,{"$f":"IF(Table18[[#This Row],[التصنيف الرئيسي]]=\"وارد\",\"وارد - \"&Table18[[#This Row],[التصنيف الفرعي]],\"\")","v":""},{"$f":"Table18[[#This Row],[التاريخ]]","v":"00:00:00"}]
[26,null,null,null,null,{"$f":"IF(Table18[[#This Row],[التصنيف الرئيسي]]=\"وارد\",\"وارد - \"&Table18[[#This Row],[التصنيف الفرعي]],\"\")","v":""},{"$f":"Table18[[#This Row],[التاريخ]]","v":"00:00:00"}]
[27,null,null,null,null,{"$f":"IF(Table18[[#This Row],[التصنيف الرئيسي]]=\"وارد\",\"وارد - \"&Table18[[#This Row],[التصنيف الفرعي]],\"\")","v":""},{"$f":"Table18[[#This Row],[التاريخ]]","v":"00:00:00"}]
[28,null,null,null,null,{"$f":"IF(Table18[[#This Row],[التصنيف الرئيسي]]=\"وارد\",\"وارد - \"&Table18[[#This Row],[التصنيف الفرعي]],\"\")","v":""},{"$f":"Table18[[#This Row],[التاريخ]]","v":"00:00:00"}]
[29,null,null,null,null,{"$f":"IF(Table18[[#This Row],[التصنيف الرئيسي]]=\"وارد\",\"وارد - \"&Table18[[#This Row],[التصنيف الفرعي]],\"\")","v":""},{"$f":"Table18[[#This Row],[التاريخ]]","v":"00:00:00"}]
[30,null,null,null,null,{"$f":"IF(Table18[[#This Row],[التصنيف الرئيسي]]=\"وارد\",\"وارد - \"&Table18[[#This Row],[التصنيف الفرعي]],\"\")","v":""},{"$f":"Table18[[#This Row],[التاريخ]]","v":"00:00:00"}]
[31,null,null,null,null,{"$f":"IF(Table18[[#This Row],[التصنيف الرئيسي]]=\"وارد\",\"وارد - \"&Table18[[#This Row],[التصنيف الفرعي]],\"\")","v":""},{"$f":"Table18[[#This Row],[التاريخ]]","v":"00:00:00"}]
[32,null,null,null,null,{"$f":"IF(Table18[[#This Row],[التصنيف الرئيسي]]=\"وارد\",\"وارد - \"&Table18[[#This Row],[التصنيف الفرعي]],\"\")","v":""},{"$f":"Table18[[#This Row],[التاريخ]]","v":"00:00:00"}]
[33,null,null,null,null,{"$f":"IF(Table18[[#This Row],[التصنيف الرئيسي]]=\"وارد\",\"وارد - \"&Table18[[#This Row],[التصنيف الفرعي]],\"\")","v":""},{"$f":"Table18[[#This Row],[التاريخ]]","v":"00:00:00"}]
[34,null,null,null,null,{"$f":"IF(Table18[[#This Row],[التصنيف الرئيسي]]=\"وارد\",\"وارد - \"&Table18[[#This Row],[التصنيف الفرعي]],\"\")","v":""},{"$f":"Table18[[#This Row],[التاريخ]]","v":"00:00:00"}]
[35,null,null,null,null,{"$f":"IF(Table18[[#This Row],[التصنيف الرئيسي]]=\"وارد\",\"وارد - \"&Table18[[#This Row],[التصنيف الفرعي]],\"\")","v":""},{"$f":"Table18[[#This Row],[التاريخ]]","v":"00:00:00"}]
[36,null,null,null,null,{"$f":"IF(Table18[[#This Row],[التصنيف الرئيسي]]=\"وارد\",\"وارد - \"&Table18[[#This Row],[التصنيف الفرعي]],\"\")","v":""},{"$f":"Table18[[#This Row],[التاريخ]]","v":"00:00:00"}]
[37,null,null,null,null,{"$f":"IF(Table18[[#This Row],[التصنيف الرئيسي]]=\"وارد\",\"وارد - \"&Table18[[#This Row],[التصنيف الفرعي]],\"\")","v":""},{"$f":"Table18[[#This Row],[التاريخ]]","v":"00:00:00"}]
[38,null,null,null,null,{"$f":"IF(Table18[[#This Row],[التصنيف الرئيسي]]=\"وارد\",\"وارد - \"&Table18[[#This Row],[التصنيف الفرعي]],\"\")","v":""},{"$f":"Table18[[#This Row],[التاريخ]]","v":"00:00:00"}]
[39,null,null,null,null,{"$f":"IF(Table18[[#This Row],[التصنيف الرئيسي]]=\"وارد\",\"وارد - \"&Table18[[#This Row],[التصنيف الفرعي]],\"\")","v":""},{"$f":"Table18[[#This Row],[التاريخ]]","v":"00:00:00"}]
[40,null,null,null,null,{"$f":"IF(Table18[[#This Row],[التصنيف الرئيسي]]=\"وارد\",\"وارد - \"&Table18[[#This Row],[التصنيف الفرعي]],\"\")","v":""},{"$f":"Table18[[#This Row],[التاريخ]]","v":"00:00:00"}]
[41,null,null,null,null,{"$f":"IF(Table18[[#This Row],[التصنيف الرئيسي]]=\"وارد\",\"وارد - \"&Table18[[#This Row],[التصنيف الفرعي]],\"\")","v":""},{"$f":"Table18[[#This Row],[التاريخ]]","v":"00:00:00"}]
[42,null,null,null,null,{"$f":"IF(Table18[[#This Row],[التصنيف الرئيسي]]=\"وارد\",\"وارد - \"&Table18[[#This Row],[التصنيف الفرعي]],\"\")","v":""},{"$f":"Table18[[#This Row],[التاريخ]]","v":"00:00:00"}]
[43,null,null,null,null,{"$f":"IF(Table18[[#This Row],[التصنيف الرئيسي]]=\"وارد\",\"وارد - \"&Table18[[#This Row],[التصنيف الفرعي]],\"\")","v":""},{"$f":"Table18[[#This Row],[التاريخ]]","v":"00:00:00"}]
[44,null,null,null,null,{"$f":"IF(Table18[[#This Row],[التصنيف الرئيسي]]=\"وارد\",\"وارد - \"&Table18[[#This Row],[التصنيف الفرعي]],\"\")","v":""},{"$f":"Table18[[#This Row],[التاريخ]]","v":"00:00:00"}]
[45,null,null,null,null,{"$f":"IF(Table18[[#This Row],[التصنيف الرئيسي]]=\"وارد\",\"وارد - \"&Table18[[#This Row],[التصنيف الفرعي]],\"\")","v":""},{"$f":"Table18[[#This Row],[التاريخ]]","v":"00:00:00"}]
[46,null,null,null,null,{"$f":"IF(Table18[[#This Row],[التصنيف الرئيسي]]=\"وارد\",\"وارد - \"&Table18[[#This Row],[التصنيف الفرعي]],\"\")","v":""},{"$f":"Table18[[#This Row],[التاريخ]]","v":"00:00:00"}]
[47,null,null,null,null,{"$f":"IF(Table18[[#This Row],[التصنيف الرئيسي]]=\"وارد\",\"وارد - \"&Table18[[#This Row],[التصنيف الفرعي]],\"\")","v":""},{"$f":"Table18[[#This Row],[التاريخ]]","v":"00:00:00"}]
[48,null,null,null,null,{"$f":"IF(Table18[[#This Row],[التصنيف الرئيسي]]=\"وارد\",\"وارد - \"&Table18[[#This Row],[التصنيف الفرعي]],\"\")","v":""},{"$f":"Table18[[#This Row],[التاريخ]]","v":"00:00:00"}]
[49,null,null,null,null,{"$f":"IF(Table18[[#This Row],[التصنيف الرئيسي]]=\"وارد\",\"وارد - \"&Table18[[#This Row],[التصنيف الفرعي]],\"\")","v":""},{"$f":"Table18[[#This Row],[التاريخ]]","v":"00:00:00"}]
[50,null,null,null,null,{"$f":"IF(Table18[[#This Row],[التصنيف الرئيسي]]=\"وارد\",\"وارد - \"&Table18[[#This Row],[التصنيف الفرعي]],\"\")","v":""},{"$f":"Table18[[#This Row],[التاريخ]]","v":"00:00:00"}]
[51,null,null,null,null,{"$f":"IF(Table18[[#This Row],[التصنيف الرئيسي]]=\"وارد\",\"وارد - \"&Table18[[#This Row],[التصنيف الفرعي]],\"\")","v":""},{"$f":"Table18[[#This Row],[التاريخ]]","v":"00:00:00"}]
[52,null,null,null,null,{"$f":"IF(Table18[[#This Row],[التصنيف الرئيسي]]=\"وارد\",\"وارد - \"&Table18[[#This Row],[التصنيف الفرعي]],\"\")","v":""},{"$f":"Table18[[#This Row],[التاريخ]]","v":"00:00:00"}]
[53,null,null,null,null,{"$f":"IF(Table18[[#This Row],[التصنيف الرئيسي]]=\"وارد\",\"وارد - \"&Table18[[#This Row],[التصنيف الفرعي]],\"\")","v":""},{"$f":"Table18[[#This Row],[التاريخ]]","v":"00:00:00"}]
[54,null,null,null,null,{"$f":"IF(Table18[[#This Row],[التصنيف الرئيسي]]=\"وارد\",\"وارد - \"&Table18[[#This Row],[التصنيف الفرعي]],\"\")","v":""},{"$f":"Table18[[#This Row],[التاريخ]]","v":"00:00:00"}]
[55,null,null,null,null,{"$f":"IF(Table18[[#This Row],[التصنيف الرئيسي]]=\"وارد\",\"وارد - \"&Table18[[#This Row],[التصنيف الفرعي]],\"\")","v":""},{"$f":"Table18[[#This Row],[التاريخ]]","v":"00:00:00"}]
[56,null,null,null,null,{"$f":"IF(Table18[[#This Row],[التصنيف الرئيسي]]=\"وارد\",\"وارد - \"&Table18[[#This Row],[التصنيف الفرعي]],\"\")","v":""},{"$f":"Table18[[#This Row],[التاريخ]]","v":"00:00:00"}]
[57,null,null,null,null,{"$f":"IF(Table18[[#This Row],[التصنيف الرئيسي]]=\"وارد\",\"وارد - \"&Table18[[#This Row],[التصنيف الفرعي]],\"\")","v":""},{"$f":"Table18[[#This Row],[التاريخ]]","v":"00:00:00"}]
[58,null,null,null,null,{"$f":"IF(Table18[[#This Row],[التصنيف الرئيسي]]=\"وارد\",\"وارد - \"&Table18[[#This Row],[التصنيف الفرعي]],\"\")","v":""},{"$f":"Table18[[#This Row],[التاريخ]]","v":"00:00:00"}]
[59,null,null,null,null,{"$f":"IF(Table18[[#This Row],[التصنيف الرئيسي]]=\"وارد\",\"وارد - \"&Table18[[#This Row],[التصنيف الفرعي]],\"\")","v":""},{"$f":"Table18[[#This Row],[التاريخ]]","v":"00:00:00"}]
[60,null,null,null,null,{"$f":"IF(Table18[[#This Row],[التصنيف الرئيسي]]=\"وارد\",\"وارد - \"&Table18[[#This Row],[التصنيف الفرعي]],\"\")","v":""},{"$f":"Table18[[#This Row],[التاريخ]]","v":"00:00:00"}]
[61,null,null,null,null,{"$f":"IF(Table18[[#This Row],[التصنيف الرئيسي]]=\"وارد\",\"وارد - \"&Table18[[#This Row],[التصنيف الفرعي]],\"\")","v":""},{"$f":"Table18[[#This Row],[التاريخ]]","v":"00:00:00"}]
[62,null,null,null,null,{"$f":"IF(Table18[[#This Row],[التصنيف الرئيسي]]=\"وارد\",\"وارد - \"&Table18[[#This Row],[التصنيف الفرعي]],\"\")","v":""},{"$f":"Table18[[#This Row],[التاريخ]]","v":"00:00:00"}]
[63,null,null,null,null,{"$f":"IF(Table18[[#This Row],[التصنيف الرئيسي]]=\"وارد\",\"وارد - \"&Table18[[#This Row],[التصنيف الفرعي]],\"\")","v":""},{"$f":"Table18[[#This Row],[التاريخ]]","v":"00:00:00"}]
[64,null,null,null,null,{"$f":"IF(Table18[[#This Row],[التصنيف الرئيسي]]=\"وارد\",\"وارد - \"&Table18[[#This Row],[التصنيف الفرعي]],\"\")","v":""},{"$f":"Table18[[#This Row],[التاريخ]]","v":"00:00:00"}]
[65,null,null,null,null,{"$f":"IF(Table18[[#This Row],[التصنيف الرئيسي]]=\"وارد\",\"وارد - \"&Table18[[#This Row],[التصنيف الفرعي]],\"\")","v":""},{"$f":"Table18[[#This Row],[التاريخ]]","v":"00:00:00"}]
[66,null,null,null,null,{"$f":"IF(Table18[[#This Row],[التصنيف الرئيسي]]=\"وارد\",\"وارد - \"&Table18[[#This Row],[التصنيف الفرعي]],\"\")","v":""},{"$f":"Table18[[#This Row],[التاريخ]]","v":"00:00:00"}]
[67,null,null,null,null,{"$f":"IF(Table18[[#This Row],[التصنيف الرئيسي]]=\"وارد\",\"وارد - \"&Table18[[#This Row],[التصنيف الفرعي]],\"\")","v":""},{"$f":"Table18[[#This Row],[التاريخ]]","v":"00:00:00"}]
[68,null,null,null,null,{"$f":"IF(Table18[[#This Row],[التصنيف الرئيسي]]=\"وارد\",\"وارد - \"&Table18[[#This Row],[التصنيف الفرعي]],\"\")","v":""},{"$f":"Table18[[#This Row],[التاريخ]]","v":"00:00:00"}]
[69,null,null,null,null,{"$f":"IF(Table18[[#This Row],[التصنيف الرئيسي]]=\"وارد\",\"وارد - \"&Table18[[#This Row],[التصنيف الفرعي]],\"\")","v":""},{"$f":"Table18[[#This Row],[التاريخ]]","v":"00:00:00"}]
[70,null,null,null,null,{"$f":"IF(Table18[[#This Row],[التصنيف الرئيسي]]=\"وارد\",\"وارد - \"&Table18[[#This Row],[التصنيف الفرعي]],\"\")","v":""},{"$f":"Table18[[#This Row],[التاريخ]]","v":"00:00:00"}]
[71,null,null,null,null,{"$f":"IF(Table18[[#This Row],[التصنيف الرئيسي]]=\"وارد\",\"وارد - \"&Table18[[#This Row],[التصنيف الفرعي]],\"\")","v":""},{"$f":"Table18[[#This Row],[التاريخ]]","v":"00:00:00"}]
[72,null,null,null,null,{"$f":"IF(Table18[[#This Row],[التصنيف الرئيسي]]=\"وارد\",\"وارد - \"&Table18[[#This Row],[التصنيف الفرعي]],\"\")","v":""},{"$f":"Table18[[#This Row],[التاريخ]]","v":"00:00:00"}]
[73,null,null,null,null,{"$f":"IF(Table18[[#This Row],[التصنيف الرئيسي]]=\"وارد\",\"وارد - \"&Table18[[#This Row],[التصنيف الفرعي]],\"\")","v":""},{"$f":"Table18[[#This Row],[التاريخ]]","v":"00:00:00"}]
[74,null,null,null,null,{"$f":"IF(Table18[[#This Row],[التصنيف الرئيسي]]=\"وارد\",\"وارد - \"&Table18[[#This Row],[التصنيف الفرعي]],\"\")","v":""},{"$f":"Table18[[#This Row],[التاريخ]]","v":"00:00:00"}]
[75,null,null,null,null,{"$f":"IF(Table18[[#This Row],[التصنيف الرئيسي]]=\"وارد\",\"وارد - \"&Table18[[#This Row],[التصنيف الفرعي]],\"\")","v":""},{"$f":"Table18[[#This Row],[التاريخ]]","v":"00:00:00"}]
[76,null,null,null,null,{"$f":"IF(Table18[[#This Row],[التصنيف الرئيسي]]=\"وارد\",\"وارد - \"&Table18[[#This Row],[التصنيف الفرعي]],\"\")","v":""},{"$f":"Table18[[#This Row],[التاريخ]]","v":"00:00:00"}]
[77,null,null,null,null,{"$f":"IF(Table18[[#This Row],[التصنيف الرئيسي]]=\"وارد\",\"وارد - \"&Table18[[#This Row],[التصنيف الفرعي]],\"\")","v":""},{"$f":"Table18[[#This Row],[التاريخ]]","v":"00:00:00"}]
[78,null,null,null,null,{"$f":"IF(Table18[[#This Row],[التصنيف الرئيسي]]=\"وارد\",\"وارد - \"&Table18[[#This Row],[التصنيف الفرعي]],\"\")","v":""},{"$f":"Table18[[#This Row],[التاريخ]]","v":"00:00:00"}]
[79,null,null,null,null,{"$f":"IF(Table18[[#This Row],[التصنيف الرئيسي]]=\"وارد\",\"وارد - \"&Table18[[#This Row],[التصنيف الفرعي]],\"\")","v":""},{"$f":"Table18[[#This Row],[التاريخ]]","v":"00:00:00"}]
[80,null,null,null,null,{"$f":"IF(Table18[[#This Row],[التصنيف الرئيسي]]=\"وارد\",\"وارد - \"&Table18[[#This Row],[التصنيف الفرعي]],\"\")","v":""},{"$f":"Table18[[#This Row],[التاريخ]]","v":"00:00:00"}]
[81,null,null,null,null,{"$f":"IF(Table18[[#This Row],[التصنيف الرئيسي]]=\"وارد\",\"وارد - \"&Table18[[#This Row],[التصنيف الفرعي]],\"\")","v":""},{"$f":"Table18[[#This Row],[التاريخ]]","v":"00:00:00"}]
[82,null,null,null,null,{"$f":"IF(Table18[[#This Row],[التصنيف الرئيسي]]=\"وارد\",\"وارد - \"&Table18[[#This Row],[التصنيف الفرعي]],\"\")","v":""},{"$f":"Table18[[#This Row],[التاريخ]]","v":"00:00:00"}]
[83,null,null,null,null,{"$f":"IF(Table18[[#This Row],[التصنيف الرئيسي]]=\"وارد\",\"وارد - \"&Table18[[#This Row],[التصنيف الفرعي]],\"\")","v":""},{"$f":"Table18[[#This Row],[التاريخ]]","v":"00:00:00"}]
[84,null,null,null,null,{"$f":"IF(Table18[[#This Row],[التصنيف الرئيسي]]=\"وارد\",\"وارد - \"&Table18[[#This Row],[التصنيف الفرعي]],\"\")","v":""},{"$f":"Table18[[#This Row],[التاريخ]]","v":"00:00:00"}]
[85,null,null,null,null,{"$f":"IF(Table18[[#This Row],[التصنيف الرئيسي]]=\"وارد\",\"وارد - \"&Table18[[#This Row],[التصنيف الفرعي]],\"\")","v":""},{"$f":"Table18[[#This Row],[التاريخ]]","v":"00:00:00"}]
[86,null,null,null,null,{"$f":"IF(Table18[[#This Row],[التصنيف الرئيسي]]=\"وارد\",\"وارد - \"&Table18[[#This Row],[التصنيف الفرعي]],\"\")","v":""},{"$f":"Table18[[#This Row],[التاريخ]]","v":"00:00:00"}]
[87,null,null,null,null,{"$f":"IF(Table18[[#This Row],[التصنيف الرئيسي]]=\"وارد\",\"وارد - \"&Table18[[#This Row],[التصنيف الفرعي]],\"\")","v":""},{"$f":"Table18[[#This Row],[التاريخ]]","v":"00:00:00"}]
[88,null,null,null,null,{"$f":"IF(Table18[[#This Row],[التصنيف الرئيسي]]=\"وارد\",\"وارد - \"&Table18[[#This Row],[التصنيف الفرعي]],\"\")","v":""},{"$f":"Table18[[#This Row],[التاريخ]]","v":"00:00:00"}]
[89,null,null,null,null,{"$f":"IF(Table18[[#This Row],[التصنيف الرئيسي]]=\"وارد\",\"وارد - \"&Table18[[#This Row],[التصنيف الفرعي]],\"\")","v":""},{"$f":"Table18[[#This Row],[التاريخ]]","v":"00:00:00"}]
[90,null,null,null,null,{"$f":"IF(Table18[[#This Row],[التصنيف الرئيسي]]=\"وارد\",\"وارد - \"&Table18[[#This Row],[التصنيف الفرعي]],\"\")","v":""},{"$f":"Table18[[#This Row],[التاريخ]]","v":"00:00:00"}]
[91,null,null,null,null,{"$f":"IF(Table18[[#This Row],[التصنيف الرئيسي]]=\"وارد\",\"وارد - \"&Table18[[#This Row],[التصنيف الفرعي]],\"\")","v":""},{"$f":"Table18[[#This Row],[التاريخ]]","v":"00:00:00"}]
[92,null,null,null,null,{"$f":"IF(Table18[[#This Row],[التصنيف الرئيسي]]=\"وارد\",\"وارد - \"&Table18[[#This Row],[التصنيف الفرعي]],\"\")","v":""},{"$f":"Table18[[#This Row],[التاريخ]]","v":"00:00:00"}]
[93,null,null,null,null,{"$f":"IF(Table18[[#This Row],[التصنيف الرئيسي]]=\"وارد\",\"وارد - \"&Table18[[#This Row],[التصنيف الفرعي]],\"\")","v":""},{"$f":"Table18[[#This Row],[التاريخ]]","v":"00:00:00"}]
[94,null,null,null,null,{"$f":"IF(Table18[[#This Row],[التصنيف الرئيسي]]=\"وارد\",\"وارد - \"&Table18[[#This Row],[التصنيف الفرعي]],\"\")","v":""},{"$f":"Table18[[#This Row],[التاريخ]]","v":"00:00:00"}]
[95,null,null,null,null,{"$f":"IF(Table18[[#This Row],[التصنيف الرئيسي]]=\"وارد\",\"وارد - \"&Table18[[#This Row],[التصنيف الفرعي]],\"\")","v":""},{"$f":"Table18[[#This Row],[التاريخ]]","v":"00:00:00"}]
["Total",null,null,null,{"$f":"SUBTOTAL(109,Table18[القيمة])","v":0},null,{"$f":"SUBTOTAL(103,Table18[Column1])","v":95}]

{"sheet":"أكتوبر","index":9,"n_rows":100,"n_cols":7,"rows_kept":100,"cut":false,"hidden":false,"merged":[[0,0,2,5]]}
["2019-10-01"]
[]
[]
["الكود","التاريخ","التصنيف الرئيسي","التصنيف الفرعي","القيمة","البيان","Column1"]
[1,"2019-10-01","وارد","مرتب",null,{"$f":"IF(Table19[[#This Row],[التصنيف الرئيسي]]=\"وارد\",\"وارد - \"&Table19[[#This Row],[التصنيف الفرعي]],\"\")","v":"وارد - مرتب"},{"$f":"Table19[[#This Row],[التاريخ]]","v":"2019-10-01"}]
[2,null,null,null,null,{"$f":"IF(Table19[[#This Row],[التصنيف الرئيسي]]=\"وارد\",\"وارد - \"&Table19[[#This Row],[التصنيف الفرعي]],\"\")","v":""},{"$f":"Table19[[#This Row],[التاريخ]]","v":"00:00:00"}]
[3,null,null,null,null,{"$f":"IF(Table19[[#This Row],[التصنيف الرئيسي]]=\"وارد\",\"وارد - \"&Table19[[#This Row],[التصنيف الفرعي]],\"\")","v":""},{"$f":"Table19[[#This Row],[التاريخ]]","v":"00:00:00"}]
[4,null,null,null,null,{"$f":"IF(Table19[[#This Row],[التصنيف الرئيسي]]=\"وارد\",\"وارد - \"&Table19[[#This Row],[التصنيف الفرعي]],\"\")","v":""},{"$f":"Table19[[#This Row],[التاريخ]]","v":"00:00:00"}]
[5,null,null,null,null,{"$f":"IF(Table19[[#This Row],[التصنيف الرئيسي]]=\"وارد\",\"وارد - \"&Table19[[#This Row],[التصنيف الفرعي]],\"\")","v":""},{"$f":"Table19[[#This Row],[التاريخ]]","v":"00:00:00"}]
[6,null,null,null,null,{"$f":"IF(Table19[[#This Row],[التصنيف الرئيسي]]=\"وارد\",\"وارد - \"&Table19[[#This Row],[التصنيف الفرعي]],\"\")","v":""},{"$f":"Table19[[#This Row],[التاريخ]]","v":"00:00:00"}]
[7,null,null,null,null,{"$f":"IF(Table19[[#This Row],[التصنيف الرئيسي]]=\"وارد\",\"وارد - \"&Table19[[#This Row],[التصنيف الفرعي]],\"\")","v":""},{"$f":"Table19[[#This Row],[التاريخ]]","v":"00:00:00"}]
[8,null,null,null,null,{"$f":"IF(Table19[[#This Row],[التصنيف الرئيسي]]=\"وارد\",\"وارد - \"&Table19[[#This Row],[التصنيف الفرعي]],\"\")","v":""},{"$f":"Table19[[#This Row],[التاريخ]]","v":"00:00:00"}]
[9,null,null,null,null,{"$f":"IF(Table19[[#This Row],[التصنيف الرئيسي]]=\"وارد\",\"وارد - \"&Table19[[#This Row],[التصنيف الفرعي]],\"\")","v":""},{"$f":"Table19[[#This Row],[التاريخ]]","v":"00:00:00"}]
[10,null,null,null,null,{"$f":"IF(Table19[[#This Row],[التصنيف الرئيسي]]=\"وارد\",\"وارد - \"&Table19[[#This Row],[التصنيف الفرعي]],\"\")","v":""},{"$f":"Table19[[#This Row],[التاريخ]]","v":"00:00:00"}]
[11,null,null,null,null,{"$f":"IF(Table19[[#This Row],[التصنيف الرئيسي]]=\"وارد\",\"وارد - \"&Table19[[#This Row],[التصنيف الفرعي]],\"\")","v":""},{"$f":"Table19[[#This Row],[التاريخ]]","v":"00:00:00"}]
[12,null,null,null,null,{"$f":"IF(Table19[[#This Row],[التصنيف الرئيسي]]=\"وارد\",\"وارد - \"&Table19[[#This Row],[التصنيف الفرعي]],\"\")","v":""},{"$f":"Table19[[#This Row],[التاريخ]]","v":"00:00:00"}]
[13,null,null,null,null,{"$f":"IF(Table19[[#This Row],[التصنيف الرئيسي]]=\"وارد\",\"وارد - \"&Table19[[#This Row],[التصنيف الفرعي]],\"\")","v":""},{"$f":"Table19[[#This Row],[التاريخ]]","v":"00:00:00"}]
[14,null,null,null,null,{"$f":"IF(Table19[[#This Row],[التصنيف الرئيسي]]=\"وارد\",\"وارد - \"&Table19[[#This Row],[التصنيف الفرعي]],\"\")","v":""},{"$f":"Table19[[#This Row],[التاريخ]]","v":"00:00:00"}]
[15,null,null,null,null,{"$f":"IF(Table19[[#This Row],[التصنيف الرئيسي]]=\"وارد\",\"وارد - \"&Table19[[#This Row],[التصنيف الفرعي]],\"\")","v":""},{"$f":"Table19[[#This Row],[التاريخ]]","v":"00:00:00"}]
[16,null,null,null,null,{"$f":"IF(Table19[[#This Row],[التصنيف الرئيسي]]=\"وارد\",\"وارد - \"&Table19[[#This Row],[التصنيف الفرعي]],\"\")","v":""},{"$f":"Table19[[#This Row],[التاريخ]]","v":"00:00:00"}]
[17,null,null,null,null,{"$f":"IF(Table19[[#This Row],[التصنيف الرئيسي]]=\"وارد\",\"وارد - \"&Table19[[#This Row],[التصنيف الفرعي]],\"\")","v":""},{"$f":"Table19[[#This Row],[التاريخ]]","v":"00:00:00"}]
[18,null,null,null,null,{"$f":"IF(Table19[[#This Row],[التصنيف الرئيسي]]=\"وارد\",\"وارد - \"&Table19[[#This Row],[التصنيف الفرعي]],\"\")","v":""},{"$f":"Table19[[#This Row],[التاريخ]]","v":"00:00:00"}]
[19,null,null,null,null,{"$f":"IF(Table19[[#This Row],[التصنيف الرئيسي]]=\"وارد\",\"وارد - \"&Table19[[#This Row],[التصنيف الفرعي]],\"\")","v":""},{"$f":"Table19[[#This Row],[التاريخ]]","v":"00:00:00"}]
[20,null,null,null,null,{"$f":"IF(Table19[[#This Row],[التصنيف الرئيسي]]=\"وارد\",\"وارد - \"&Table19[[#This Row],[التصنيف الفرعي]],\"\")","v":""},{"$f":"Table19[[#This Row],[التاريخ]]","v":"00:00:00"}]
[21,null,null,null,null,{"$f":"IF(Table19[[#This Row],[التصنيف الرئيسي]]=\"وارد\",\"وارد - \"&Table19[[#This Row],[التصنيف الفرعي]],\"\")","v":""},{"$f":"Table19[[#This Row],[التاريخ]]","v":"00:00:00"}]
[22,null,null,null,null,{"$f":"IF(Table19[[#This Row],[التصنيف الرئيسي]]=\"وارد\",\"وارد - \"&Table19[[#This Row],[التصنيف الفرعي]],\"\")","v":""},{"$f":"Table19[[#This Row],[التاريخ]]","v":"00:00:00"}]
[23,null,null,null,null,{"$f":"IF(Table19[[#This Row],[التصنيف الرئيسي]]=\"وارد\",\"وارد - \"&Table19[[#This Row],[التصنيف الفرعي]],\"\")","v":""},{"$f":"Table19[[#This Row],[التاريخ]]","v":"00:00:00"}]
[24,null,null,null,null,{"$f":"IF(Table19[[#This Row],[التصنيف الرئيسي]]=\"وارد\",\"وارد - \"&Table19[[#This Row],[التصنيف الفرعي]],\"\")","v":""},{"$f":"Table19[[#This Row],[التاريخ]]","v":"00:00:00"}]
[25,null,null,null,null,{"$f":"IF(Table19[[#This Row],[التصنيف الرئيسي]]=\"وارد\",\"وارد - \"&Table19[[#This Row],[التصنيف الفرعي]],\"\")","v":""},{"$f":"Table19[[#This Row],[التاريخ]]","v":"00:00:00"}]
[26,null,null,null,null,{"$f":"IF(Table19[[#This Row],[التصنيف الرئيسي]]=\"وارد\",\"وارد - \"&Table19[[#This Row],[التصنيف الفرعي]],\"\")","v":""},{"$f":"Table19[[#This Row],[التاريخ]]","v":"00:00:00"}]
[27,null,null,null,null,{"$f":"IF(Table19[[#This Row],[التصنيف الرئيسي]]=\"وارد\",\"وارد - \"&Table19[[#This Row],[التصنيف الفرعي]],\"\")","v":""},{"$f":"Table19[[#This Row],[التاريخ]]","v":"00:00:00"}]
[28,null,null,null,null,{"$f":"IF(Table19[[#This Row],[التصنيف الرئيسي]]=\"وارد\",\"وارد - \"&Table19[[#This Row],[التصنيف الفرعي]],\"\")","v":""},{"$f":"Table19[[#This Row],[التاريخ]]","v":"00:00:00"}]
[29,null,null,null,null,{"$f":"IF(Table19[[#This Row],[التصنيف الرئيسي]]=\"وارد\",\"وارد - \"&Table19[[#This Row],[التصنيف الفرعي]],\"\")","v":""},{"$f":"Table19[[#This Row],[التاريخ]]","v":"00:00:00"}]
[30,null,null,null,null,{"$f":"IF(Table19[[#This Row],[التصنيف الرئيسي]]=\"وارد\",\"وارد - \"&Table19[[#This Row],[التصنيف الفرعي]],\"\")","v":""},{"$f":"Table19[[#This Row],[التاريخ]]","v":"00:00:00"}]
[31,null,null,null,null,{"$f":"IF(Table19[[#This Row],[التصنيف الرئيسي]]=\"وارد\",\"وارد - \"&Table19[[#This Row],[التصنيف الفرعي]],\"\")","v":""},{"$f":"Table19[[#This Row],[التاريخ]]","v":"00:00:00"}]
[32,null,null,null,null,{"$f":"IF(Table19[[#This Row],[التصنيف الرئيسي]]=\"وارد\",\"وارد - \"&Table19[[#This Row],[التصنيف الفرعي]],\"\")","v":""},{"$f":"Table19[[#This Row],[التاريخ]]","v":"00:00:00"}]
[33,null,null,null,null,{"$f":"IF(Table19[[#This Row],[التصنيف الرئيسي]]=\"وارد\",\"وارد - \"&Table19[[#This Row],[التصنيف الفرعي]],\"\")","v":""},{"$f":"Table19[[#This Row],[التاريخ]]","v":"00:00:00"}]
[34,null,null,null,null,{"$f":"IF(Table19[[#This Row],[التصنيف الرئيسي]]=\"وارد\",\"وارد - \"&Table19[[#This Row],[التصنيف الفرعي]],\"\")","v":""},{"$f":"Table19[[#This Row],[التاريخ]]","v":"00:00:00"}]
[35,null,null,null,null,{"$f":"IF(Table19[[#This Row],[التصنيف الرئيسي]]=\"وارد\",\"وارد - \"&Table19[[#This Row],[التصنيف الفرعي]],\"\")","v":""},{"$f":"Table19[[#This Row],[التاريخ]]","v":"00:00:00"}]
[36,null,null,null,null,{"$f":"IF(Table19[[#This Row],[التصنيف الرئيسي]]=\"وارد\",\"وارد - \"&Table19[[#This Row],[التصنيف الفرعي]],\"\")","v":""},{"$f":"Table19[[#This Row],[التاريخ]]","v":"00:00:00"}]
[37,null,null,null,null,{"$f":"IF(Table19[[#This Row],[التصنيف الرئيسي]]=\"وارد\",\"وارد - \"&Table19[[#This Row],[التصنيف الفرعي]],\"\")","v":""},{"$f":"Table19[[#This Row],[التاريخ]]","v":"00:00:00"}]
[38,null,null,null,null,{"$f":"IF(Table19[[#This Row],[التصنيف الرئيسي]]=\"وارد\",\"وارد - \"&Table19[[#This Row],[التصنيف الفرعي]],\"\")","v":""},{"$f":"Table19[[#This Row],[التاريخ]]","v":"00:00:00"}]
[39,null,null,null,null,{"$f":"IF(Table19[[#This Row],[التصنيف الرئيسي]]=\"وارد\",\"وارد - \"&Table19[[#This Row],[التصنيف الفرعي]],\"\")","v":""},{"$f":"Table19[[#This Row],[التاريخ]]","v":"00:00:00"}]
[40,null,null,null,null,{"$f":"IF(Table19[[#This Row],[التصنيف الرئيسي]]=\"وارد\",\"وارد - \"&Table19[[#This Row],[التصنيف الفرعي]],\"\")","v":""},{"$f":"Table19[[#This Row],[التاريخ]]","v":"00:00:00"}]
[41,null,null,null,null,{"$f":"IF(Table19[[#This Row],[التصنيف الرئيسي]]=\"وارد\",\"وارد - \"&Table19[[#This Row],[التصنيف الفرعي]],\"\")","v":""},{"$f":"Table19[[#This Row],[التاريخ]]","v":"00:00:00"}]
[42,null,null,null,null,{"$f":"IF(Table19[[#This Row],[التصنيف الرئيسي]]=\"وارد\",\"وارد - \"&Table19[[#This Row],[التصنيف الفرعي]],\"\")","v":""},{"$f":"Table19[[#This Row],[التاريخ]]","v":"00:00:00"}]
[43,null,null,null,null,{"$f":"IF(Table19[[#This Row],[التصنيف الرئيسي]]=\"وارد\",\"وارد - \"&Table19[[#This Row],[التصنيف الفرعي]],\"\")","v":""},{"$f":"Table19[[#This Row],[التاريخ]]","v":"00:00:00"}]
[44,null,null,null,null,{"$f":"IF(Table19[[#This Row],[التصنيف الرئيسي]]=\"وارد\",\"وارد - \"&Table19[[#This Row],[التصنيف الفرعي]],\"\")","v":""},{"$f":"Table19[[#This Row],[التاريخ]]","v":"00:00:00"}]
[45,null,null,null,null,{"$f":"IF(Table19[[#This Row],[التصنيف الرئيسي]]=\"وارد\",\"وارد - \"&Table19[[#This Row],[التصنيف الفرعي]],\"\")","v":""},{"$f":"Table19[[#This Row],[التاريخ]]","v":"00:00:00"}]
[46,null,null,null,null,{"$f":"IF(Table19[[#This Row],[التصنيف الرئيسي]]=\"وارد\",\"وارد - \"&Table19[[#This Row],[التصنيف الفرعي]],\"\")","v":""},{"$f":"Table19[[#This Row],[التاريخ]]","v":"00:00:00"}]
[47,null,null,null,null,{"$f":"IF(Table19[[#This Row],[التصنيف الرئيسي]]=\"وارد\",\"وارد - \"&Table19[[#This Row],[التصنيف الفرعي]],\"\")","v":""},{"$f":"Table19[[#This Row],[التاريخ]]","v":"00:00:00"}]
[48,null,null,null,null,{"$f":"IF(Table19[[#This Row],[التصنيف الرئيسي]]=\"وارد\",\"وارد - \"&Table19[[#This Row],[التصنيف الفرعي]],\"\")","v":""},{"$f":"Table19[[#This Row],[التاريخ]]","v":"00:00:00"}]
[49,null,null,null,null,{"$f":"IF(Table19[[#This Row],[التصنيف الرئيسي]]=\"وارد\",\"وارد - \"&Table19[[#This Row],[التصنيف الفرعي]],\"\")","v":""},{"$f":"Table19[[#This Row],[التاريخ]]","v":"00:00:00"}]
[50,null,null,null,null,{"$f":"IF(Table19[[#This Row],[التصنيف الرئيسي]]=\"وارد\",\"وارد - \"&Table19[[#This Row],[التصنيف الفرعي]],\"\")","v":""},{"$f":"Table19[[#This Row],[التاريخ]]","v":"00:00:00"}]
[51,null,null,null,null,{"$f":"IF(Table19[[#This Row],[التصنيف الرئيسي]]=\"وارد\",\"وارد - \"&Table19[[#This Row],[التصنيف الفرعي]],\"\")","v":""},{"$f":"Table19[[#This Row],[التاريخ]]","v":"00:00:00"}]
[52,null,null,null,null,{"$f":"IF(Table19[[#This Row],[التصنيف الرئيسي]]=\"وارد\",\"وارد - \"&Table19[[#This Row],[التصنيف الفرعي]],\"\")","v":""},{"$f":"Table19[[#This Row],[التاريخ]]","v":"00:00:00"}]
[53,null,null,null,null,{"$f":"IF(Table19[[#This Row],[التصنيف الرئيسي]]=\"وارد\",\"وارد - \"&Table19[[#This Row],[التصنيف الفرعي]],\"\")","v":""},{"$f":"Table19[[#This Row],[التاريخ]]","v":"00:00:00"}]
[54,null,null,null,null,{"$f":"IF(Table19[[#This Row],[التصنيف الرئيسي]]=\"وارد\",\"وارد - \"&Table19[[#This Row],[التصنيف الفرعي]],\"\")","v":""},{"$f":"Table19[[#This Row],[التاريخ]]","v":"00:00:00"}]
[55,null,null,null,null,{"$f":"IF(Table19[[#This Row],[التصنيف الرئيسي]]=\"وارد\",\"وارد - \"&Table19[[#This Row],[التصنيف الفرعي]],\"\")","v":""},{"$f":"Table19[[#This Row],[التاريخ]]","v":"00:00:00"}]
[56,null,null,null,null,{"$f":"IF(Table19[[#This Row],[التصنيف الرئيسي]]=\"وارد\",\"وارد - \"&Table19[[#This Row],[التصنيف الفرعي]],\"\")","v":""},{"$f":"Table19[[#This Row],[التاريخ]]","v":"00:00:00"}]
[57,null,null,null,null,{"$f":"IF(Table19[[#This Row],[التصنيف الرئيسي]]=\"وارد\",\"وارد - \"&Table19[[#This Row],[التصنيف الفرعي]],\"\")","v":""},{"$f":"Table19[[#This Row],[التاريخ]]","v":"00:00:00"}]
[58,null,null,null,null,{"$f":"IF(Table19[[#This Row],[التصنيف الرئيسي]]=\"وارد\",\"وارد - \"&Table19[[#This Row],[التصنيف الفرعي]],\"\")","v":""},{"$f":"Table19[[#This Row],[التاريخ]]","v":"00:00:00"}]
[59,null,null,null,null,{"$f":"IF(Table19[[#This Row],[التصنيف الرئيسي]]=\"وارد\",\"وارد - \"&Table19[[#This Row],[التصنيف الفرعي]],\"\")","v":""},{"$f":"Table19[[#This Row],[التاريخ]]","v":"00:00:00"}]
[60,null,null,null,null,{"$f":"IF(Table19[[#This Row],[التصنيف الرئيسي]]=\"وارد\",\"وارد - \"&Table19[[#This Row],[التصنيف الفرعي]],\"\")","v":""},{"$f":"Table19[[#This Row],[التاريخ]]","v":"00:00:00"}]
[61,null,null,null,null,{"$f":"IF(Table19[[#This Row],[التصنيف الرئيسي]]=\"وارد\",\"وارد - \"&Table19[[#This Row],[التصنيف الفرعي]],\"\")","v":""},{"$f":"Table19[[#This Row],[التاريخ]]","v":"00:00:00"}]
[62,null,null,null,null,{"$f":"IF(Table19[[#This Row],[التصنيف الرئيسي]]=\"وارد\",\"وارد - \"&Table19[[#This Row],[التصنيف الفرعي]],\"\")","v":""},{"$f":"Table19[[#This Row],[التاريخ]]","v":"00:00:00"}]
[63,null,null,null,null,{"$f":"IF(Table19[[#This Row],[التصنيف الرئيسي]]=\"وارد\",\"وارد - \"&Table19[[#This Row],[التصنيف الفرعي]],\"\")","v":""},{"$f":"Table19[[#This Row],[التاريخ]]","v":"00:00:00"}]
[64,null,null,null,null,{"$f":"IF(Table19[[#This Row],[التصنيف الرئيسي]]=\"وارد\",\"وارد - \"&Table19[[#This Row],[التصنيف الفرعي]],\"\")","v":""},{"$f":"Table19[[#This Row],[التاريخ]]","v":"00:00:00"}]
[65,null,null,null,null,{"$f":"IF(Table19[[#This Row],[التصنيف الرئيسي]]=\"وارد\",\"وارد - \"&Table19[[#This Row],[التصنيف الفرعي]],\"\")","v":""},{"$f":"Table19[[#This Row],[التاريخ]]","v":"00:00:00"}]
[66,null,null,null,null,{"$f":"IF(Table19[[#This Row],[التصنيف الرئيسي]]=\"وارد\",\"وارد - \"&Table19[[#This Row],[التصنيف الفرعي]],\"\")","v":""},{"$f":"Table19[[#This Row],[التاريخ]]","v":"00:00:00"}]
[67,null,null,null,null,{"$f":"IF(Table19[[#This Row],[التصنيف الرئيسي]]=\"وارد\",\"وارد - \"&Table19[[#This Row],[التصنيف الفرعي]],\"\")","v":""},{"$f":"Table19[[#This Row],[التاريخ]]","v":"00:00:00"}]
[68,null,null,null,null,{"$f":"IF(Table19[[#This Row],[التصنيف الرئيسي]]=\"وارد\",\"وارد - \"&Table19[[#This Row],[التصنيف الفرعي]],\"\")","v":""},{"$f":"Table19[[#This Row],[التاريخ]]","v":"00:00:00"}]
[69,null,null,null,null,{"$f":"IF(Table19[[#This Row],[التصنيف الرئيسي]]=\"وارد\",\"وارد - \"&Table19[[#This Row],[التصنيف الفرعي]],\"\")","v":""},{"$f":"Table19[[#This Row],[التاريخ]]","v":"00:00:00"}]
[70,null,null,null,null,{"$f":"IF(Table19[[#This Row],[التصنيف الرئيسي]]=\"وارد\",\"وارد - \"&Table19[[#This Row],[التصنيف الفرعي]],\"\")","v":""},{"$f":"Table19[[#This Row],[التاريخ]]","v":"00:00:00"}]
[71,null,null,null,null,{"$f":"IF(Table19[[#This Row],[التصنيف الرئيسي]]=\"وارد\",\"وارد - \"&Table19[[#This Row],[التصنيف الفرعي]],\"\")","v":""},{"$f":"Table19[[#This Row],[التاريخ]]","v":"00:00:00"}]
[72,null,null,null,null,{"$f":"IF(Table19[[#This Row],[التصنيف الرئيسي]]=\"وارد\",\"وارد - \"&Table19[[#This Row],[التصنيف الفرعي]],\"\")","v":""},{"$f":"Table19[[#This Row],[التاريخ]]","v":"00:00:00"}]
[73,null,null,null,null,{"$f":"IF(Table19[[#This Row],[التصنيف الرئيسي]]=\"وارد\",\"وارد - \"&Table19[[#This Row],[التصنيف الفرعي]],\"\")","v":""},{"$f":"Table19[[#This Row],[التاريخ]]","v":"00:00:00"}]
[74,null,null,null,null,{"$f":"IF(Table19[[#This Row],[التصنيف الرئيسي]]=\"وارد\",\"وارد - \"&Table19[[#This Row],[التصنيف الفرعي]],\"\")","v":""},{"$f":"Table19[[#This Row],[التاريخ]]","v":"00:00:00"}]
[75,null,null,null,null,{"$f":"IF(Table19[[#This Row],[التصنيف الرئيسي]]=\"وارد\",\"وارد - \"&Table19[[#This Row],[التصنيف الفرعي]],\"\")","v":""},{"$f":"Table19[[#This Row],[التاريخ]]","v":"00:00:00"}]
[76,null,null,null,null,{"$f":"IF(Table19[[#This Row],[التصنيف الرئيسي]]=\"وارد\",\"وارد - \"&Table19[[#This Row],[التصنيف الفرعي]],\"\")","v":""},{"$f":"Table19[[#This Row],[التاريخ]]","v":"00:00:00"}]
[77,null,null,null,null,{"$f":"IF(Table19[[#This Row],[التصنيف الرئيسي]]=\"وارد\",\"وارد - \"&Table19[[#This Row],[التصنيف الفرعي]],\"\")","v":""},{"$f":"Table19[[#This Row],[التاريخ]]","v":"00:00:00"}]
[78,null,null,null,null,{"$f":"IF(Table19[[#This Row],[التصنيف الرئيسي]]=\"وارد\",\"وارد - \"&Table19[[#This Row],[التصنيف الفرعي]],\"\")","v":""},{"$f":"Table19[[#This Row],[التاريخ]]","v":"00:00:00"}]
[79,null,null,null,null,{"$f":"IF(Table19[[#This Row],[التصنيف الرئيسي]]=\"وارد\",\"وارد - \"&Table19[[#This Row],[التصنيف الفرعي]],\"\")","v":""},{"$f":"Table19[[#This Row],[التاريخ]]","v":"00:00:00"}]
[80,null,null,null,null,{"$f":"IF(Table19[[#This Row],[التصنيف الرئيسي]]=\"وارد\",\"وارد - \"&Table19[[#This Row],[التصنيف الفرعي]],\"\")","v":""},{"$f":"Table19[[#This Row],[التاريخ]]","v":"00:00:00"}]
[81,null,null,null,null,{"$f":"IF(Table19[[#This Row],[التصنيف الرئيسي]]=\"وارد\",\"وارد - \"&Table19[[#This Row],[التصنيف الفرعي]],\"\")","v":""},{"$f":"Table19[[#This Row],[التاريخ]]","v":"00:00:00"}]
[82,null,null,null,null,{"$f":"IF(Table19[[#This Row],[التصنيف الرئيسي]]=\"وارد\",\"وارد - \"&Table19[[#This Row],[التصنيف الفرعي]],\"\")","v":""},{"$f":"Table19[[#This Row],[التاريخ]]","v":"00:00:00"}]
[83,null,null,null,null,{"$f":"IF(Table19[[#This Row],[التصنيف الرئيسي]]=\"وارد\",\"وارد - \"&Table19[[#This Row],[التصنيف الفرعي]],\"\")","v":""},{"$f":"Table19[[#This Row],[التاريخ]]","v":"00:00:00"}]
[84,null,null,null,null,{"$f":"IF(Table19[[#This Row],[التصنيف الرئيسي]]=\"وارد\",\"وارد - \"&Table19[[#This Row],[التصنيف الفرعي]],\"\")","v":""},{"$f":"Table19[[#This Row],[التاريخ]]","v":"00:00:00"}]
[85,null,null,null,null,{"$f":"IF(Table19[[#This Row],[التصنيف الرئيسي]]=\"وارد\",\"وارد - \"&Table19[[#This Row],[التصنيف الفرعي]],\"\")","v":""},{"$f":"Table19[[#This Row],[التاريخ]]","v":"00:00:00"}]
[86,null,null,null,null,{"$f":"IF(Table19[[#This Row],[التصنيف الرئيسي]]=\"وارد\",\"وارد - \"&Table19[[#This Row],[التصنيف الفرعي]],\"\")","v":""},{"$f":"Table19[[#This Row],[التاريخ]]","v":"00:00:00"}]
[87,null,null,null,null,{"$f":"IF(Table19[[#This Row],[التصنيف الرئيسي]]=\"وارد\",\"وارد - \"&Table19[[#This Row],[التصنيف الفرعي]],\"\")","v":""},{"$f":"Table19[[#This Row],[التاريخ]]","v":"00:00:00"}]
[88,null,null,null,null,{"$f":"IF(Table19[[#This Row],[التصنيف الرئيسي]]=\"وارد\",\"وارد - \"&Table19[[#This Row],[التصنيف الفرعي]],\"\")","v":""},{"$f":"Table19[[#This Row],[التاريخ]]","v":"00:00:00"}]
[89,null,null,null,null,{"$f":"IF(Table19[[#This Row],[التصنيف الرئيسي]]=\"وارد\",\"وارد - \"&Table19[[#This Row],[التصنيف الفرعي]],\"\")","v":""},{"$f":"Table19[[#This Row],[التاريخ]]","v":"00:00:00"}]
[90,null,null,null,null,{"$f":"IF(Table19[[#This Row],[التصنيف الرئيسي]]=\"وارد\",\"وارد - \"&Table19[[#This Row],[التصنيف الفرعي]],\"\")","v":""},{"$f":"Table19[[#This Row],[التاريخ]]","v":"00:00:00"}]
[91,null,null,null,null,{"$f":"IF(Table19[[#This Row],[التصنيف الرئيسي]]=\"وارد\",\"وارد - \"&Table19[[#This Row],[التصنيف الفرعي]],\"\")","v":""},{"$f":"Table19[[#This Row],[التاريخ]]","v":"00:00:00"}]
[92,null,null,null,null,{"$f":"IF(Table19[[#This Row],[التصنيف الرئيسي]]=\"وارد\",\"وارد - \"&Table19[[#This Row],[التصنيف الفرعي]],\"\")","v":""},{"$f":"Table19[[#This Row],[التاريخ]]","v":"00:00:00"}]
[93,null,null,null,null,{"$f":"IF(Table19[[#This Row],[التصنيف الرئيسي]]=\"وارد\",\"وارد - \"&Table19[[#This Row],[التصنيف الفرعي]],\"\")","v":""},{"$f":"Table19[[#This Row],[التاريخ]]","v":"00:00:00"}]
[94,null,null,null,null,{"$f":"IF(Table19[[#This Row],[التصنيف الرئيسي]]=\"وارد\",\"وارد - \"&Table19[[#This Row],[التصنيف الفرعي]],\"\")","v":""},{"$f":"Table19[[#This Row],[التاريخ]]","v":"00:00:00"}]
[95,null,null,null,null,{"$f":"IF(Table19[[#This Row],[التصنيف الرئيسي]]=\"وارد\",\"وارد - \"&Table19[[#This Row],[التصنيف الفرعي]],\"\")","v":""},{"$f":"Table19[[#This Row],[التاريخ]]","v":"00:00:00"}]
["Total",null,null,null,{"$f":"SUBTOTAL(109,Table19[القيمة])","v":0},null,{"$f":"SUBTOTAL(103,Table19[Column1])","v":95}]

{"sheet":"نوفمبر","index":10,"n_rows":101,"n_cols":7,"rows_kept":101,"cut":false,"hidden":false,"merged":[[0,0,2,5]]}
["2019-11-01"]
[]
[]
["الكود","التاريخ","التصنيف الرئيسي","التصنيف الفرعي","القيمة","البيان","Column1"]
[1,"2019-11-01","وارد","مرتب",null,{"$f":"IF(Table20[[#This Row],[التصنيف الرئيسي]]=\"وارد\",\"وارد - \"&Table20[[#This Row],[التصنيف الفرعي]],\"\")","v":"وارد - مرتب"},{"$f":"Table20[[#This Row],[التاريخ]]","v":"2019-11-01"}]
[2,null,null,null,null,{"$f":"IF(Table20[[#This Row],[التصنيف الرئيسي]]=\"وارد\",\"وارد - \"&Table20[[#This Row],[التصنيف الفرعي]],\"\")","v":""},{"$f":"Table20[[#This Row],[التاريخ]]","v":"00:00:00"}]
[3,null,null,null,null,{"$f":"IF(Table20[[#This Row],[التصنيف الرئيسي]]=\"وارد\",\"وارد - \"&Table20[[#This Row],[التصنيف الفرعي]],\"\")","v":""},{"$f":"Table20[[#This Row],[التاريخ]]","v":"00:00:00"}]
[4,null,null,null,null,{"$f":"IF(Table20[[#This Row],[التصنيف الرئيسي]]=\"وارد\",\"وارد - \"&Table20[[#This Row],[التصنيف الفرعي]],\"\")","v":""},{"$f":"Table20[[#This Row],[التاريخ]]","v":"00:00:00"}]
[5,null,null,null,null,{"$f":"IF(Table20[[#This Row],[التصنيف الرئيسي]]=\"وارد\",\"وارد - \"&Table20[[#This Row],[التصنيف الفرعي]],\"\")","v":""},{"$f":"Table20[[#This Row],[التاريخ]]","v":"00:00:00"}]
[6,null,null,null,null,{"$f":"IF(Table20[[#This Row],[التصنيف الرئيسي]]=\"وارد\",\"وارد - \"&Table20[[#This Row],[التصنيف الفرعي]],\"\")","v":""},{"$f":"Table20[[#This Row],[التاريخ]]","v":"00:00:00"}]
[7,null,null,null,null,{"$f":"IF(Table20[[#This Row],[التصنيف الرئيسي]]=\"وارد\",\"وارد - \"&Table20[[#This Row],[التصنيف الفرعي]],\"\")","v":""},{"$f":"Table20[[#This Row],[التاريخ]]","v":"00:00:00"}]
[8,null,null,null,null,{"$f":"IF(Table20[[#This Row],[التصنيف الرئيسي]]=\"وارد\",\"وارد - \"&Table20[[#This Row],[التصنيف الفرعي]],\"\")","v":""},{"$f":"Table20[[#This Row],[التاريخ]]","v":"00:00:00"}]
[9,null,null,null,null,{"$f":"IF(Table20[[#This Row],[التصنيف الرئيسي]]=\"وارد\",\"وارد - \"&Table20[[#This Row],[التصنيف الفرعي]],\"\")","v":""},{"$f":"Table20[[#This Row],[التاريخ]]","v":"00:00:00"}]
[10,null,null,null,null,{"$f":"IF(Table20[[#This Row],[التصنيف الرئيسي]]=\"وارد\",\"وارد - \"&Table20[[#This Row],[التصنيف الفرعي]],\"\")","v":""},{"$f":"Table20[[#This Row],[التاريخ]]","v":"00:00:00"}]
[11,null,null,null,null,{"$f":"IF(Table20[[#This Row],[التصنيف الرئيسي]]=\"وارد\",\"وارد - \"&Table20[[#This Row],[التصنيف الفرعي]],\"\")","v":""},{"$f":"Table20[[#This Row],[التاريخ]]","v":"00:00:00"}]
[12,null,null,null,null,{"$f":"IF(Table20[[#This Row],[التصنيف الرئيسي]]=\"وارد\",\"وارد - \"&Table20[[#This Row],[التصنيف الفرعي]],\"\")","v":""},{"$f":"Table20[[#This Row],[التاريخ]]","v":"00:00:00"}]
[13,null,null,null,null,{"$f":"IF(Table20[[#This Row],[التصنيف الرئيسي]]=\"وارد\",\"وارد - \"&Table20[[#This Row],[التصنيف الفرعي]],\"\")","v":""},{"$f":"Table20[[#This Row],[التاريخ]]","v":"00:00:00"}]
[14,null,null,null,null,{"$f":"IF(Table20[[#This Row],[التصنيف الرئيسي]]=\"وارد\",\"وارد - \"&Table20[[#This Row],[التصنيف الفرعي]],\"\")","v":""},{"$f":"Table20[[#This Row],[التاريخ]]","v":"00:00:00"}]
[15,null,null,null,null,{"$f":"IF(Table20[[#This Row],[التصنيف الرئيسي]]=\"وارد\",\"وارد - \"&Table20[[#This Row],[التصنيف الفرعي]],\"\")","v":""},{"$f":"Table20[[#This Row],[التاريخ]]","v":"00:00:00"}]
[16,null,null,null,null,{"$f":"IF(Table20[[#This Row],[التصنيف الرئيسي]]=\"وارد\",\"وارد - \"&Table20[[#This Row],[التصنيف الفرعي]],\"\")","v":""},{"$f":"Table20[[#This Row],[التاريخ]]","v":"00:00:00"}]
[17,null,null,null,null,{"$f":"IF(Table20[[#This Row],[التصنيف الرئيسي]]=\"وارد\",\"وارد - \"&Table20[[#This Row],[التصنيف الفرعي]],\"\")","v":""},{"$f":"Table20[[#This Row],[التاريخ]]","v":"00:00:00"}]
[18,null,null,null,null,{"$f":"IF(Table20[[#This Row],[التصنيف الرئيسي]]=\"وارد\",\"وارد - \"&Table20[[#This Row],[التصنيف الفرعي]],\"\")","v":""},{"$f":"Table20[[#This Row],[التاريخ]]","v":"00:00:00"}]
[19,null,null,null,null,{"$f":"IF(Table20[[#This Row],[التصنيف الرئيسي]]=\"وارد\",\"وارد - \"&Table20[[#This Row],[التصنيف الفرعي]],\"\")","v":""},{"$f":"Table20[[#This Row],[التاريخ]]","v":"00:00:00"}]
[20,null,null,null,null,{"$f":"IF(Table20[[#This Row],[التصنيف الرئيسي]]=\"وارد\",\"وارد - \"&Table20[[#This Row],[التصنيف الفرعي]],\"\")","v":""},{"$f":"Table20[[#This Row],[التاريخ]]","v":"00:00:00"}]
[21,null,null,null,null,{"$f":"IF(Table20[[#This Row],[التصنيف الرئيسي]]=\"وارد\",\"وارد - \"&Table20[[#This Row],[التصنيف الفرعي]],\"\")","v":""},{"$f":"Table20[[#This Row],[التاريخ]]","v":"00:00:00"}]
[22,null,null,null,null,{"$f":"IF(Table20[[#This Row],[التصنيف الرئيسي]]=\"وارد\",\"وارد - \"&Table20[[#This Row],[التصنيف الفرعي]],\"\")","v":""},{"$f":"Table20[[#This Row],[التاريخ]]","v":"00:00:00"}]
[23,null,null,null,null,{"$f":"IF(Table20[[#This Row],[التصنيف الرئيسي]]=\"وارد\",\"وارد - \"&Table20[[#This Row],[التصنيف الفرعي]],\"\")","v":""},{"$f":"Table20[[#This Row],[التاريخ]]","v":"00:00:00"}]
[24,null,null,null,null,{"$f":"IF(Table20[[#This Row],[التصنيف الرئيسي]]=\"وارد\",\"وارد - \"&Table20[[#This Row],[التصنيف الفرعي]],\"\")","v":""},{"$f":"Table20[[#This Row],[التاريخ]]","v":"00:00:00"}]
[25,null,null,null,null,{"$f":"IF(Table20[[#This Row],[التصنيف الرئيسي]]=\"وارد\",\"وارد - \"&Table20[[#This Row],[التصنيف الفرعي]],\"\")","v":""},{"$f":"Table20[[#This Row],[التاريخ]]","v":"00:00:00"}]
[26,null,null,null,null,{"$f":"IF(Table20[[#This Row],[التصنيف الرئيسي]]=\"وارد\",\"وارد - \"&Table20[[#This Row],[التصنيف الفرعي]],\"\")","v":""},{"$f":"Table20[[#This Row],[التاريخ]]","v":"00:00:00"}]
[27,null,null,null,null,{"$f":"IF(Table20[[#This Row],[التصنيف الرئيسي]]=\"وارد\",\"وارد - \"&Table20[[#This Row],[التصنيف الفرعي]],\"\")","v":""},{"$f":"Table20[[#This Row],[التاريخ]]","v":"00:00:00"}]
[28,null,null,null,null,{"$f":"IF(Table20[[#This Row],[التصنيف الرئيسي]]=\"وارد\",\"وارد - \"&Table20[[#This Row],[التصنيف الفرعي]],\"\")","v":""},{"$f":"Table20[[#This Row],[التاريخ]]","v":"00:00:00"}]
[29,null,null,null,null,{"$f":"IF(Table20[[#This Row],[التصنيف الرئيسي]]=\"وارد\",\"وارد - \"&Table20[[#This Row],[التصنيف الفرعي]],\"\")","v":""},{"$f":"Table20[[#This Row],[التاريخ]]","v":"00:00:00"}]
[30,null,null,null,null,{"$f":"IF(Table20[[#This Row],[التصنيف الرئيسي]]=\"وارد\",\"وارد - \"&Table20[[#This Row],[التصنيف الفرعي]],\"\")","v":""},{"$f":"Table20[[#This Row],[التاريخ]]","v":"00:00:00"}]
[31,null,null,null,null,{"$f":"IF(Table20[[#This Row],[التصنيف الرئيسي]]=\"وارد\",\"وارد - \"&Table20[[#This Row],[التصنيف الفرعي]],\"\")","v":""},{"$f":"Table20[[#This Row],[التاريخ]]","v":"00:00:00"}]
[32,null,null,null,null,{"$f":"IF(Table20[[#This Row],[التصنيف الرئيسي]]=\"وارد\",\"وارد - \"&Table20[[#This Row],[التصنيف الفرعي]],\"\")","v":""},{"$f":"Table20[[#This Row],[التاريخ]]","v":"00:00:00"}]
[33,null,null,null,null,{"$f":"IF(Table20[[#This Row],[التصنيف الرئيسي]]=\"وارد\",\"وارد - \"&Table20[[#This Row],[التصنيف الفرعي]],\"\")","v":""},{"$f":"Table20[[#This Row],[التاريخ]]","v":"00:00:00"}]
[34,null,null,null,null,{"$f":"IF(Table20[[#This Row],[التصنيف الرئيسي]]=\"وارد\",\"وارد - \"&Table20[[#This Row],[التصنيف الفرعي]],\"\")","v":""},{"$f":"Table20[[#This Row],[التاريخ]]","v":"00:00:00"}]
[35,null,null,null,null,{"$f":"IF(Table20[[#This Row],[التصنيف الرئيسي]]=\"وارد\",\"وارد - \"&Table20[[#This Row],[التصنيف الفرعي]],\"\")","v":""},{"$f":"Table20[[#This Row],[التاريخ]]","v":"00:00:00"}]
[36,null,null,null,null,{"$f":"IF(Table20[[#This Row],[التصنيف الرئيسي]]=\"وارد\",\"وارد - \"&Table20[[#This Row],[التصنيف الفرعي]],\"\")","v":""},{"$f":"Table20[[#This Row],[التاريخ]]","v":"00:00:00"}]
[37,null,null,null,null,{"$f":"IF(Table20[[#This Row],[التصنيف الرئيسي]]=\"وارد\",\"وارد - \"&Table20[[#This Row],[التصنيف الفرعي]],\"\")","v":""},{"$f":"Table20[[#This Row],[التاريخ]]","v":"00:00:00"}]
[38,null,null,null,null,{"$f":"IF(Table20[[#This Row],[التصنيف الرئيسي]]=\"وارد\",\"وارد - \"&Table20[[#This Row],[التصنيف الفرعي]],\"\")","v":""},{"$f":"Table20[[#This Row],[التاريخ]]","v":"00:00:00"}]
[39,null,null,null,null,{"$f":"IF(Table20[[#This Row],[التصنيف الرئيسي]]=\"وارد\",\"وارد - \"&Table20[[#This Row],[التصنيف الفرعي]],\"\")","v":""},{"$f":"Table20[[#This Row],[التاريخ]]","v":"00:00:00"}]
[40,null,null,null,null,{"$f":"IF(Table20[[#This Row],[التصنيف الرئيسي]]=\"وارد\",\"وارد - \"&Table20[[#This Row],[التصنيف الفرعي]],\"\")","v":""},{"$f":"Table20[[#This Row],[التاريخ]]","v":"00:00:00"}]
[41,null,null,null,null,{"$f":"IF(Table20[[#This Row],[التصنيف الرئيسي]]=\"وارد\",\"وارد - \"&Table20[[#This Row],[التصنيف الفرعي]],\"\")","v":""},{"$f":"Table20[[#This Row],[التاريخ]]","v":"00:00:00"}]
[42,null,null,null,null,{"$f":"IF(Table20[[#This Row],[التصنيف الرئيسي]]=\"وارد\",\"وارد - \"&Table20[[#This Row],[التصنيف الفرعي]],\"\")","v":""},{"$f":"Table20[[#This Row],[التاريخ]]","v":"00:00:00"}]
[43,null,null,null,null,{"$f":"IF(Table20[[#This Row],[التصنيف الرئيسي]]=\"وارد\",\"وارد - \"&Table20[[#This Row],[التصنيف الفرعي]],\"\")","v":""},{"$f":"Table20[[#This Row],[التاريخ]]","v":"00:00:00"}]
[44,null,null,null,null,{"$f":"IF(Table20[[#This Row],[التصنيف الرئيسي]]=\"وارد\",\"وارد - \"&Table20[[#This Row],[التصنيف الفرعي]],\"\")","v":""},{"$f":"Table20[[#This Row],[التاريخ]]","v":"00:00:00"}]
[45,null,null,null,null,{"$f":"IF(Table20[[#This Row],[التصنيف الرئيسي]]=\"وارد\",\"وارد - \"&Table20[[#This Row],[التصنيف الفرعي]],\"\")","v":""},{"$f":"Table20[[#This Row],[التاريخ]]","v":"00:00:00"}]
[46,null,null,null,null,{"$f":"IF(Table20[[#This Row],[التصنيف الرئيسي]]=\"وارد\",\"وارد - \"&Table20[[#This Row],[التصنيف الفرعي]],\"\")","v":""},{"$f":"Table20[[#This Row],[التاريخ]]","v":"00:00:00"}]
[47,null,null,null,null,{"$f":"IF(Table20[[#This Row],[التصنيف الرئيسي]]=\"وارد\",\"وارد - \"&Table20[[#This Row],[التصنيف الفرعي]],\"\")","v":""},{"$f":"Table20[[#This Row],[التاريخ]]","v":"00:00:00"}]
[48,null,null,null,null,{"$f":"IF(Table20[[#This Row],[التصنيف الرئيسي]]=\"وارد\",\"وارد - \"&Table20[[#This Row],[التصنيف الفرعي]],\"\")","v":""},{"$f":"Table20[[#This Row],[التاريخ]]","v":"00:00:00"}]
[49,null,null,null,null,{"$f":"IF(Table20[[#This Row],[التصنيف الرئيسي]]=\"وارد\",\"وارد - \"&Table20[[#This Row],[التصنيف الفرعي]],\"\")","v":""},{"$f":"Table20[[#This Row],[التاريخ]]","v":"00:00:00"}]
[50,null,null,null,null,{"$f":"IF(Table20[[#This Row],[التصنيف الرئيسي]]=\"وارد\",\"وارد - \"&Table20[[#This Row],[التصنيف الفرعي]],\"\")","v":""},{"$f":"Table20[[#This Row],[التاريخ]]","v":"00:00:00"}]
[51,null,null,null,null,{"$f":"IF(Table20[[#This Row],[التصنيف الرئيسي]]=\"وارد\",\"وارد - \"&Table20[[#This Row],[التصنيف الفرعي]],\"\")","v":""},{"$f":"Table20[[#This Row],[التاريخ]]","v":"00:00:00"}]
[52,null,null,null,null,{"$f":"IF(Table20[[#This Row],[التصنيف الرئيسي]]=\"وارد\",\"وارد - \"&Table20[[#This Row],[التصنيف الفرعي]],\"\")","v":""},{"$f":"Table20[[#This Row],[التاريخ]]","v":"00:00:00"}]
[53,null,null,null,null,{"$f":"IF(Table20[[#This Row],[التصنيف الرئيسي]]=\"وارد\",\"وارد - \"&Table20[[#This Row],[التصنيف الفرعي]],\"\")","v":""},{"$f":"Table20[[#This Row],[التاريخ]]","v":"00:00:00"}]
[54,null,null,null,null,{"$f":"IF(Table20[[#This Row],[التصنيف الرئيسي]]=\"وارد\",\"وارد - \"&Table20[[#This Row],[التصنيف الفرعي]],\"\")","v":""},{"$f":"Table20[[#This Row],[التاريخ]]","v":"00:00:00"}]
[55,null,null,null,null,{"$f":"IF(Table20[[#This Row],[التصنيف الرئيسي]]=\"وارد\",\"وارد - \"&Table20[[#This Row],[التصنيف الفرعي]],\"\")","v":""},{"$f":"Table20[[#This Row],[التاريخ]]","v":"00:00:00"}]
[56,null,null,null,null,{"$f":"IF(Table20[[#This Row],[التصنيف الرئيسي]]=\"وارد\",\"وارد - \"&Table20[[#This Row],[التصنيف الفرعي]],\"\")","v":""},{"$f":"Table20[[#This Row],[التاريخ]]","v":"00:00:00"}]
[57,null,null,null,null,{"$f":"IF(Table20[[#This Row],[التصنيف الرئيسي]]=\"وارد\",\"وارد - \"&Table20[[#This Row],[التصنيف الفرعي]],\"\")","v":""},{"$f":"Table20[[#This Row],[التاريخ]]","v":"00:00:00"}]
[58,null,null,null,null,{"$f":"IF(Table20[[#This Row],[التصنيف الرئيسي]]=\"وارد\",\"وارد - \"&Table20[[#This Row],[التصنيف الفرعي]],\"\")","v":""},{"$f":"Table20[[#This Row],[التاريخ]]","v":"00:00:00"}]
[59,null,null,null,null,{"$f":"IF(Table20[[#This Row],[التصنيف الرئيسي]]=\"وارد\",\"وارد - \"&Table20[[#This Row],[التصنيف الفرعي]],\"\")","v":""},{"$f":"Table20[[#This Row],[التاريخ]]","v":"00:00:00"}]
[60,null,null,null,null,{"$f":"IF(Table20[[#This Row],[التصنيف الرئيسي]]=\"وارد\",\"وارد - \"&Table20[[#This Row],[التصنيف الفرعي]],\"\")","v":""},{"$f":"Table20[[#This Row],[التاريخ]]","v":"00:00:00"}]
[61,null,null,null,null,{"$f":"IF(Table20[[#This Row],[التصنيف الرئيسي]]=\"وارد\",\"وارد - \"&Table20[[#This Row],[التصنيف الفرعي]],\"\")","v":""},{"$f":"Table20[[#This Row],[التاريخ]]","v":"00:00:00"}]
[62,null,null,null,null,{"$f":"IF(Table20[[#This Row],[التصنيف الرئيسي]]=\"وارد\",\"وارد - \"&Table20[[#This Row],[التصنيف الفرعي]],\"\")","v":""},{"$f":"Table20[[#This Row],[التاريخ]]","v":"00:00:00"}]
[63,null,null,null,null,{"$f":"IF(Table20[[#This Row],[التصنيف الرئيسي]]=\"وارد\",\"وارد - \"&Table20[[#This Row],[التصنيف الفرعي]],\"\")","v":""},{"$f":"Table20[[#This Row],[التاريخ]]","v":"00:00:00"}]
[64,null,null,null,null,{"$f":"IF(Table20[[#This Row],[التصنيف الرئيسي]]=\"وارد\",\"وارد - \"&Table20[[#This Row],[التصنيف الفرعي]],\"\")","v":""},{"$f":"Table20[[#This Row],[التاريخ]]","v":"00:00:00"}]
[65,null,null,null,null,{"$f":"IF(Table20[[#This Row],[التصنيف الرئيسي]]=\"وارد\",\"وارد - \"&Table20[[#This Row],[التصنيف الفرعي]],\"\")","v":""},{"$f":"Table20[[#This Row],[التاريخ]]","v":"00:00:00"}]
[66,null,null,null,null,{"$f":"IF(Table20[[#This Row],[التصنيف الرئيسي]]=\"وارد\",\"وارد - \"&Table20[[#This Row],[التصنيف الفرعي]],\"\")","v":""},{"$f":"Table20[[#This Row],[التاريخ]]","v":"00:00:00"}]
[67,null,null,null,null,{"$f":"IF(Table20[[#This Row],[التصنيف الرئيسي]]=\"وارد\",\"وارد - \"&Table20[[#This Row],[التصنيف الفرعي]],\"\")","v":""},{"$f":"Table20[[#This Row],[التاريخ]]","v":"00:00:00"}]
[68,null,null,null,null,{"$f":"IF(Table20[[#This Row],[التصنيف الرئيسي]]=\"وارد\",\"وارد - \"&Table20[[#This Row],[التصنيف الفرعي]],\"\")","v":""},{"$f":"Table20[[#This Row],[التاريخ]]","v":"00:00:00"}]
[69,null,null,null,null,{"$f":"IF(Table20[[#This Row],[التصنيف الرئيسي]]=\"وارد\",\"وارد - \"&Table20[[#This Row],[التصنيف الفرعي]],\"\")","v":""},{"$f":"Table20[[#This Row],[التاريخ]]","v":"00:00:00"}]
[70,null,null,null,null,{"$f":"IF(Table20[[#This Row],[التصنيف الرئيسي]]=\"وارد\",\"وارد - \"&Table20[[#This Row],[التصنيف الفرعي]],\"\")","v":""},{"$f":"Table20[[#This Row],[التاريخ]]","v":"00:00:00"}]
[71,null,null,null,null,{"$f":"IF(Table20[[#This Row],[التصنيف الرئيسي]]=\"وارد\",\"وارد - \"&Table20[[#This Row],[التصنيف الفرعي]],\"\")","v":""},{"$f":"Table20[[#This Row],[التاريخ]]","v":"00:00:00"}]
[72,null,null,null,null,{"$f":"IF(Table20[[#This Row],[التصنيف الرئيسي]]=\"وارد\",\"وارد - \"&Table20[[#This Row],[التصنيف الفرعي]],\"\")","v":""},{"$f":"Table20[[#This Row],[التاريخ]]","v":"00:00:00"}]
[73,null,null,null,null,{"$f":"IF(Table20[[#This Row],[التصنيف الرئيسي]]=\"وارد\",\"وارد - \"&Table20[[#This Row],[التصنيف الفرعي]],\"\")","v":""},{"$f":"Table20[[#This Row],[التاريخ]]","v":"00:00:00"}]
[74,null,null,null,null,{"$f":"IF(Table20[[#This Row],[التصنيف الرئيسي]]=\"وارد\",\"وارد - \"&Table20[[#This Row],[التصنيف الفرعي]],\"\")","v":""},{"$f":"Table20[[#This Row],[التاريخ]]","v":"00:00:00"}]
[75,null,null,null,null,{"$f":"IF(Table20[[#This Row],[التصنيف الرئيسي]]=\"وارد\",\"وارد - \"&Table20[[#This Row],[التصنيف الفرعي]],\"\")","v":""},{"$f":"Table20[[#This Row],[التاريخ]]","v":"00:00:00"}]
[76,null,null,null,null,{"$f":"IF(Table20[[#This Row],[التصنيف الرئيسي]]=\"وارد\",\"وارد - \"&Table20[[#This Row],[التصنيف الفرعي]],\"\")","v":""},{"$f":"Table20[[#This Row],[التاريخ]]","v":"00:00:00"}]
[77,null,null,null,null,{"$f":"IF(Table20[[#This Row],[التصنيف الرئيسي]]=\"وارد\",\"وارد - \"&Table20[[#This Row],[التصنيف الفرعي]],\"\")","v":""},{"$f":"Table20[[#This Row],[التاريخ]]","v":"00:00:00"}]
[78,null,null,null,null,{"$f":"IF(Table20[[#This Row],[التصنيف الرئيسي]]=\"وارد\",\"وارد - \"&Table20[[#This Row],[التصنيف الفرعي]],\"\")","v":""},{"$f":"Table20[[#This Row],[التاريخ]]","v":"00:00:00"}]
[79,null,null,null,null,{"$f":"IF(Table20[[#This Row],[التصنيف الرئيسي]]=\"وارد\",\"وارد - \"&Table20[[#This Row],[التصنيف الفرعي]],\"\")","v":""},{"$f":"Table20[[#This Row],[التاريخ]]","v":"00:00:00"}]
[80,null,null,null,null,{"$f":"IF(Table20[[#This Row],[التصنيف الرئيسي]]=\"وارد\",\"وارد - \"&Table20[[#This Row],[التصنيف الفرعي]],\"\")","v":""},{"$f":"Table20[[#This Row],[التاريخ]]","v":"00:00:00"}]
[81,null,null,null,null,{"$f":"IF(Table20[[#This Row],[التصنيف الرئيسي]]=\"وارد\",\"وارد - \"&Table20[[#This Row],[التصنيف الفرعي]],\"\")","v":""},{"$f":"Table20[[#This Row],[التاريخ]]","v":"00:00:00"}]
[82,null,null,null,null,{"$f":"IF(Table20[[#This Row],[التصنيف الرئيسي]]=\"وارد\",\"وارد - \"&Table20[[#This Row],[التصنيف الفرعي]],\"\")","v":""},{"$f":"Table20[[#This Row],[التاريخ]]","v":"00:00:00"}]
[83,null,null,null,null,{"$f":"IF(Table20[[#This Row],[التصنيف الرئيسي]]=\"وارد\",\"وارد - \"&Table20[[#This Row],[التصنيف الفرعي]],\"\")","v":""},{"$f":"Table20[[#This Row],[التاريخ]]","v":"00:00:00"}]
[84,null,null,null,null,{"$f":"IF(Table20[[#This Row],[التصنيف الرئيسي]]=\"وارد\",\"وارد - \"&Table20[[#This Row],[التصنيف الفرعي]],\"\")","v":""},{"$f":"Table20[[#This Row],[التاريخ]]","v":"00:00:00"}]
[85,null,null,null,null,{"$f":"IF(Table20[[#This Row],[التصنيف الرئيسي]]=\"وارد\",\"وارد - \"&Table20[[#This Row],[التصنيف الفرعي]],\"\")","v":""},{"$f":"Table20[[#This Row],[التاريخ]]","v":"00:00:00"}]
[86,null,null,null,null,{"$f":"IF(Table20[[#This Row],[التصنيف الرئيسي]]=\"وارد\",\"وارد - \"&Table20[[#This Row],[التصنيف الفرعي]],\"\")","v":""},{"$f":"Table20[[#This Row],[التاريخ]]","v":"00:00:00"}]
[87,null,null,null,null,{"$f":"IF(Table20[[#This Row],[التصنيف الرئيسي]]=\"وارد\",\"وارد - \"&Table20[[#This Row],[التصنيف الفرعي]],\"\")","v":""},{"$f":"Table20[[#This Row],[التاريخ]]","v":"00:00:00"}]
[88,null,null,null,null,{"$f":"IF(Table20[[#This Row],[التصنيف الرئيسي]]=\"وارد\",\"وارد - \"&Table20[[#This Row],[التصنيف الفرعي]],\"\")","v":""},{"$f":"Table20[[#This Row],[التاريخ]]","v":"00:00:00"}]
[89,null,null,null,null,{"$f":"IF(Table20[[#This Row],[التصنيف الرئيسي]]=\"وارد\",\"وارد - \"&Table20[[#This Row],[التصنيف الفرعي]],\"\")","v":""},{"$f":"Table20[[#This Row],[التاريخ]]","v":"00:00:00"}]
[90,null,null,null,null,{"$f":"IF(Table20[[#This Row],[التصنيف الرئيسي]]=\"وارد\",\"وارد - \"&Table20[[#This Row],[التصنيف الفرعي]],\"\")","v":""},{"$f":"Table20[[#This Row],[التاريخ]]","v":"00:00:00"}]
[91,null,null,null,null,{"$f":"IF(Table20[[#This Row],[التصنيف الرئيسي]]=\"وارد\",\"وارد - \"&Table20[[#This Row],[التصنيف الفرعي]],\"\")","v":""},{"$f":"Table20[[#This Row],[التاريخ]]","v":"00:00:00"}]
[92,null,null,null,null,{"$f":"IF(Table20[[#This Row],[التصنيف الرئيسي]]=\"وارد\",\"وارد - \"&Table20[[#This Row],[التصنيف الفرعي]],\"\")","v":""},{"$f":"Table20[[#This Row],[التاريخ]]","v":"00:00:00"}]
[93,null,null,null,null,{"$f":"IF(Table20[[#This Row],[التصنيف الرئيسي]]=\"وارد\",\"وارد - \"&Table20[[#This Row],[التصنيف الفرعي]],\"\")","v":""},{"$f":"Table20[[#This Row],[التاريخ]]","v":"00:00:00"}]
[94,null,null,null,null,{"$f":"IF(Table20[[#This Row],[التصنيف الرئيسي]]=\"وارد\",\"وارد - \"&Table20[[#This Row],[التصنيف الفرعي]],\"\")","v":""},{"$f":"Table20[[#This Row],[التاريخ]]","v":"00:00:00"}]
[95,null,null,null,null,{"$f":"IF(Table20[[#This Row],[التصنيف الرئيسي]]=\"وارد\",\"وارد - \"&Table20[[#This Row],[التصنيف الفرعي]],\"\")","v":""},{"$f":"Table20[[#This Row],[التاريخ]]","v":"00:00:00"}]
[96,null,null,null,null,{"$f":"IF(Table20[[#This Row],[التصنيف الرئيسي]]=\"وارد\",\"وارد - \"&Table20[[#This Row],[التصنيف الفرعي]],\"\")","v":""},{"$f":"Table20[[#This Row],[التاريخ]]","v":"00:00:00"}]
["Total",null,null,null,{"$f":"SUBTOTAL(109,Table20[القيمة])","v":0},null,{"$f":"SUBTOTAL(103,Table20[Column1])","v":96}]

{"sheet":"ديسمبر","index":11,"n_rows":100,"n_cols":7,"rows_kept":100,"cut":false,"hidden":false,"merged":[[0,0,2,5]]}
["2019-12-01"]
[]
[]
["الكود","التاريخ","التصنيف الرئيسي","التصنيف الفرعي","القيمة","البيان","Column1"]
[1,"2019-12-01","وارد","مرتب",null,{"$f":"IF(Table21[[#This Row],[التصنيف الرئيسي]]=\"وارد\",\"وارد - \"&Table21[[#This Row],[التصنيف الفرعي]],\"\")","v":"وارد - مرتب"},{"$f":"Table21[[#This Row],[التاريخ]]","v":"2019-12-01"}]
[2,null,null,null,null,{"$f":"IF(Table21[[#This Row],[التصنيف الرئيسي]]=\"وارد\",\"وارد - \"&Table21[[#This Row],[التصنيف الفرعي]],\"\")","v":""},{"$f":"Table21[[#This Row],[التاريخ]]","v":"00:00:00"}]
[3,null,null,null,null,{"$f":"IF(Table21[[#This Row],[التصنيف الرئيسي]]=\"وارد\",\"وارد - \"&Table21[[#This Row],[التصنيف الفرعي]],\"\")","v":""},{"$f":"Table21[[#This Row],[التاريخ]]","v":"00:00:00"}]
[4,null,null,null,null,{"$f":"IF(Table21[[#This Row],[التصنيف الرئيسي]]=\"وارد\",\"وارد - \"&Table21[[#This Row],[التصنيف الفرعي]],\"\")","v":""},{"$f":"Table21[[#This Row],[التاريخ]]","v":"00:00:00"}]
[5,null,null,null,null,{"$f":"IF(Table21[[#This Row],[التصنيف الرئيسي]]=\"وارد\",\"وارد - \"&Table21[[#This Row],[التصنيف الفرعي]],\"\")","v":""},{"$f":"Table21[[#This Row],[التاريخ]]","v":"00:00:00"}]
[6,null,null,null,null,{"$f":"IF(Table21[[#This Row],[التصنيف الرئيسي]]=\"وارد\",\"وارد - \"&Table21[[#This Row],[التصنيف الفرعي]],\"\")","v":""},{"$f":"Table21[[#This Row],[التاريخ]]","v":"00:00:00"}]
[7,null,null,null,null,{"$f":"IF(Table21[[#This Row],[التصنيف الرئيسي]]=\"وارد\",\"وارد - \"&Table21[[#This Row],[التصنيف الفرعي]],\"\")","v":""},{"$f":"Table21[[#This Row],[التاريخ]]","v":"00:00:00"}]
[8,null,null,null,null,{"$f":"IF(Table21[[#This Row],[التصنيف الرئيسي]]=\"وارد\",\"وارد - \"&Table21[[#This Row],[التصنيف الفرعي]],\"\")","v":""},{"$f":"Table21[[#This Row],[التاريخ]]","v":"00:00:00"}]
[9,null,null,null,null,{"$f":"IF(Table21[[#This Row],[التصنيف الرئيسي]]=\"وارد\",\"وارد - \"&Table21[[#This Row],[التصنيف الفرعي]],\"\")","v":""},{"$f":"Table21[[#This Row],[التاريخ]]","v":"00:00:00"}]
[10,null,null,null,null,{"$f":"IF(Table21[[#This Row],[التصنيف الرئيسي]]=\"وارد\",\"وارد - \"&Table21[[#This Row],[التصنيف الفرعي]],\"\")","v":""},{"$f":"Table21[[#This Row],[التاريخ]]","v":"00:00:00"}]
[11,null,null,null,null,{"$f":"IF(Table21[[#This Row],[التصنيف الرئيسي]]=\"وارد\",\"وارد - \"&Table21[[#This Row],[التصنيف الفرعي]],\"\")","v":""},{"$f":"Table21[[#This Row],[التاريخ]]","v":"00:00:00"}]
[12,null,null,null,null,{"$f":"IF(Table21[[#This Row],[التصنيف الرئيسي]]=\"وارد\",\"وارد - \"&Table21[[#This Row],[التصنيف الفرعي]],\"\")","v":""},{"$f":"Table21[[#This Row],[التاريخ]]","v":"00:00:00"}]
[13,null,null,null,null,{"$f":"IF(Table21[[#This Row],[التصنيف الرئيسي]]=\"وارد\",\"وارد - \"&Table21[[#This Row],[التصنيف الفرعي]],\"\")","v":""},{"$f":"Table21[[#This Row],[التاريخ]]","v":"00:00:00"}]
[14,null,null,null,null,{"$f":"IF(Table21[[#This Row],[التصنيف الرئيسي]]=\"وارد\",\"وارد - \"&Table21[[#This Row],[التصنيف الفرعي]],\"\")","v":""},{"$f":"Table21[[#This Row],[التاريخ]]","v":"00:00:00"}]
[15,null,null,null,null,{"$f":"IF(Table21[[#This Row],[التصنيف الرئيسي]]=\"وارد\",\"وارد - \"&Table21[[#This Row],[التصنيف الفرعي]],\"\")","v":""},{"$f":"Table21[[#This Row],[التاريخ]]","v":"00:00:00"}]
[16,null,null,null,null,{"$f":"IF(Table21[[#This Row],[التصنيف الرئيسي]]=\"وارد\",\"وارد - \"&Table21[[#This Row],[التصنيف الفرعي]],\"\")","v":""},{"$f":"Table21[[#This Row],[التاريخ]]","v":"00:00:00"}]
[17,null,null,null,null,{"$f":"IF(Table21[[#This Row],[التصنيف الرئيسي]]=\"وارد\",\"وارد - \"&Table21[[#This Row],[التصنيف الفرعي]],\"\")","v":""},{"$f":"Table21[[#This Row],[التاريخ]]","v":"00:00:00"}]
[18,null,null,null,null,{"$f":"IF(Table21[[#This Row],[التصنيف الرئيسي]]=\"وارد\",\"وارد - \"&Table21[[#This Row],[التصنيف الفرعي]],\"\")","v":""},{"$f":"Table21[[#This Row],[التاريخ]]","v":"00:00:00"}]
[19,null,null,null,null,{"$f":"IF(Table21[[#This Row],[التصنيف الرئيسي]]=\"وارد\",\"وارد - \"&Table21[[#This Row],[التصنيف الفرعي]],\"\")","v":""},{"$f":"Table21[[#This Row],[التاريخ]]","v":"00:00:00"}]
[20,null,null,null,null,{"$f":"IF(Table21[[#This Row],[التصنيف الرئيسي]]=\"وارد\",\"وارد - \"&Table21[[#This Row],[التصنيف الفرعي]],\"\")","v":""},{"$f":"Table21[[#This Row],[التاريخ]]","v":"00:00:00"}]
[21,null,null,null,null,{"$f":"IF(Table21[[#This Row],[التصنيف الرئيسي]]=\"وارد\",\"وارد - \"&Table21[[#This Row],[التصنيف الفرعي]],\"\")","v":""},{"$f":"Table21[[#This Row],[التاريخ]]","v":"00:00:00"}]
[22,null,null,null,null,{"$f":"IF(Table21[[#This Row],[التصنيف الرئيسي]]=\"وارد\",\"وارد - \"&Table21[[#This Row],[التصنيف الفرعي]],\"\")","v":""},{"$f":"Table21[[#This Row],[التاريخ]]","v":"00:00:00"}]
[23,null,null,null,null,{"$f":"IF(Table21[[#This Row],[التصنيف الرئيسي]]=\"وارد\",\"وارد - \"&Table21[[#This Row],[التصنيف الفرعي]],\"\")","v":""},{"$f":"Table21[[#This Row],[التاريخ]]","v":"00:00:00"}]
[24,null,null,null,null,{"$f":"IF(Table21[[#This Row],[التصنيف الرئيسي]]=\"وارد\",\"وارد - \"&Table21[[#This Row],[التصنيف الفرعي]],\"\")","v":""},{"$f":"Table21[[#This Row],[التاريخ]]","v":"00:00:00"}]
[25,null,null,null,null,{"$f":"IF(Table21[[#This Row],[التصنيف الرئيسي]]=\"وارد\",\"وارد - \"&Table21[[#This Row],[التصنيف الفرعي]],\"\")","v":""},{"$f":"Table21[[#This Row],[التاريخ]]","v":"00:00:00"}]
[26,null,null,null,null,{"$f":"IF(Table21[[#This Row],[التصنيف الرئيسي]]=\"وارد\",\"وارد - \"&Table21[[#This Row],[التصنيف الفرعي]],\"\")","v":""},{"$f":"Table21[[#This Row],[التاريخ]]","v":"00:00:00"}]
[27,null,null,null,null,{"$f":"IF(Table21[[#This Row],[التصنيف الرئيسي]]=\"وارد\",\"وارد - \"&Table21[[#This Row],[التصنيف الفرعي]],\"\")","v":""},{"$f":"Table21[[#This Row],[التاريخ]]","v":"00:00:00"}]
[28,null,null,null,null,{"$f":"IF(Table21[[#This Row],[التصنيف الرئيسي]]=\"وارد\",\"وارد - \"&Table21[[#This Row],[التصنيف الفرعي]],\"\")","v":""},{"$f":"Table21[[#This Row],[التاريخ]]","v":"00:00:00"}]
[29,null,null,null,null,{"$f":"IF(Table21[[#This Row],[التصنيف الرئيسي]]=\"وارد\",\"وارد - \"&Table21[[#This Row],[التصنيف الفرعي]],\"\")","v":""},{"$f":"Table21[[#This Row],[التاريخ]]","v":"00:00:00"}]
[30,null,null,null,null,{"$f":"IF(Table21[[#This Row],[التصنيف الرئيسي]]=\"وارد\",\"وارد - \"&Table21[[#This Row],[التصنيف الفرعي]],\"\")","v":""},{"$f":"Table21[[#This Row],[التاريخ]]","v":"00:00:00"}]
[31,null,null,null,null,{"$f":"IF(Table21[[#This Row],[التصنيف الرئيسي]]=\"وارد\",\"وارد - \"&Table21[[#This Row],[التصنيف الفرعي]],\"\")","v":""},{"$f":"Table21[[#This Row],[التاريخ]]","v":"00:00:00"}]
[32,null,null,null,null,{"$f":"IF(Table21[[#This Row],[التصنيف الرئيسي]]=\"وارد\",\"وارد - \"&Table21[[#This Row],[التصنيف الفرعي]],\"\")","v":""},{"$f":"Table21[[#This Row],[التاريخ]]","v":"00:00:00"}]
[33,null,null,null,null,{"$f":"IF(Table21[[#This Row],[التصنيف الرئيسي]]=\"وارد\",\"وارد - \"&Table21[[#This Row],[التصنيف الفرعي]],\"\")","v":""},{"$f":"Table21[[#This Row],[التاريخ]]","v":"00:00:00"}]
[34,null,null,null,null,{"$f":"IF(Table21[[#This Row],[التصنيف الرئيسي]]=\"وارد\",\"وارد - \"&Table21[[#This Row],[التصنيف الفرعي]],\"\")","v":""},{"$f":"Table21[[#This Row],[التاريخ]]","v":"00:00:00"}]
[35,null,null,null,null,{"$f":"IF(Table21[[#This Row],[التصنيف الرئيسي]]=\"وارد\",\"وارد - \"&Table21[[#This Row],[التصنيف الفرعي]],\"\")","v":""},{"$f":"Table21[[#This Row],[التاريخ]]","v":"00:00:00"}]
[36,null,null,null,null,{"$f":"IF(Table21[[#This Row],[التصنيف الرئيسي]]=\"وارد\",\"وارد - \"&Table21[[#This Row],[التصنيف الفرعي]],\"\")","v":""},{"$f":"Table21[[#This Row],[التاريخ]]","v":"00:00:00"}]
[37,null,null,null,null,{"$f":"IF(Table21[[#This Row],[التصنيف الرئيسي]]=\"وارد\",\"وارد - \"&Table21[[#This Row],[التصنيف الفرعي]],\"\")","v":""},{"$f":"Table21[[#This Row],[التاريخ]]","v":"00:00:00"}]
[38,null,null,null,null,{"$f":"IF(Table21[[#This Row],[التصنيف الرئيسي]]=\"وارد\",\"وارد - \"&Table21[[#This Row],[التصنيف الفرعي]],\"\")","v":""},{"$f":"Table21[[#This Row],[التاريخ]]","v":"00:00:00"}]
[39,null,null,null,null,{"$f":"IF(Table21[[#This Row],[التصنيف الرئيسي]]=\"وارد\",\"وارد - \"&Table21[[#This Row],[التصنيف الفرعي]],\"\")","v":""},{"$f":"Table21[[#This Row],[التاريخ]]","v":"00:00:00"}]
[40,null,null,null,null,{"$f":"IF(Table21[[#This Row],[التصنيف الرئيسي]]=\"وارد\",\"وارد - \"&Table21[[#This Row],[التصنيف الفرعي]],\"\")","v":""},{"$f":"Table21[[#This Row],[التاريخ]]","v":"00:00:00"}]
[41,null,null,null,null,{"$f":"IF(Table21[[#This Row],[التصنيف الرئيسي]]=\"وارد\",\"وارد - \"&Table21[[#This Row],[التصنيف الفرعي]],\"\")","v":""},{"$f":"Table21[[#This Row],[التاريخ]]","v":"00:00:00"}]
[42,null,null,null,null,{"$f":"IF(Table21[[#This Row],[التصنيف الرئيسي]]=\"وارد\",\"وارد - \"&Table21[[#This Row],[التصنيف الفرعي]],\"\")","v":""},{"$f":"Table21[[#This Row],[التاريخ]]","v":"00:00:00"}]
[43,null,null,null,null,{"$f":"IF(Table21[[#This Row],[التصنيف الرئيسي]]=\"وارد\",\"وارد - \"&Table21[[#This Row],[التصنيف الفرعي]],\"\")","v":""},{"$f":"Table21[[#This Row],[التاريخ]]","v":"00:00:00"}]
[44,null,null,null,null,{"$f":"IF(Table21[[#This Row],[التصنيف الرئيسي]]=\"وارد\",\"وارد - \"&Table21[[#This Row],[التصنيف الفرعي]],\"\")","v":""},{"$f":"Table21[[#This Row],[التاريخ]]","v":"00:00:00"}]
[45,null,null,null,null,{"$f":"IF(Table21[[#This Row],[التصنيف الرئيسي]]=\"وارد\",\"وارد - \"&Table21[[#This Row],[التصنيف الفرعي]],\"\")","v":""},{"$f":"Table21[[#This Row],[التاريخ]]","v":"00:00:00"}]
[46,null,null,null,null,{"$f":"IF(Table21[[#This Row],[التصنيف الرئيسي]]=\"وارد\",\"وارد - \"&Table21[[#This Row],[التصنيف الفرعي]],\"\")","v":""},{"$f":"Table21[[#This Row],[التاريخ]]","v":"00:00:00"}]
[47,null,null,null,null,{"$f":"IF(Table21[[#This Row],[التصنيف الرئيسي]]=\"وارد\",\"وارد - \"&Table21[[#This Row],[التصنيف الفرعي]],\"\")","v":""},{"$f":"Table21[[#This Row],[التاريخ]]","v":"00:00:00"}]
[48,null,null,null,null,{"$f":"IF(Table21[[#This Row],[التصنيف الرئيسي]]=\"وارد\",\"وارد - \"&Table21[[#This Row],[التصنيف الفرعي]],\"\")","v":""},{"$f":"Table21[[#This Row],[التاريخ]]","v":"00:00:00"}]
[49,null,null,null,null,{"$f":"IF(Table21[[#This Row],[التصنيف الرئيسي]]=\"وارد\",\"وارد - \"&Table21[[#This Row],[التصنيف الفرعي]],\"\")","v":""},{"$f":"Table21[[#This Row],[التاريخ]]","v":"00:00:00"}]
[50,null,null,null,null,{"$f":"IF(Table21[[#This Row],[التصنيف الرئيسي]]=\"وارد\",\"وارد - \"&Table21[[#This Row],[التصنيف الفرعي]],\"\")","v":""},{"$f":"Table21[[#This Row],[التاريخ]]","v":"00:00:00"}]
[51,null,null,null,null,{"$f":"IF(Table21[[#This Row],[التصنيف الرئيسي]]=\"وارد\",\"وارد - \"&Table21[[#This Row],[التصنيف الفرعي]],\"\")","v":""},{"$f":"Table21[[#This Row],[التاريخ]]","v":"00:00:00"}]
[52,null,null,null,null,{"$f":"IF(Table21[[#This Row],[التصنيف الرئيسي]]=\"وارد\",\"وارد - \"&Table21[[#This Row],[التصنيف الفرعي]],\"\")","v":""},{"$f":"Table21[[#This Row],[التاريخ]]","v":"00:00:00"}]
[53,null,null,null,null,{"$f":"IF(Table21[[#This Row],[التصنيف الرئيسي]]=\"وارد\",\"وارد - \"&Table21[[#This Row],[التصنيف الفرعي]],\"\")","v":""},{"$f":"Table21[[#This Row],[التاريخ]]","v":"00:00:00"}]
[54,null,null,null,null,{"$f":"IF(Table21[[#This Row],[التصنيف الرئيسي]]=\"وارد\",\"وارد - \"&Table21[[#This Row],[التصنيف الفرعي]],\"\")","v":""},{"$f":"Table21[[#This Row],[التاريخ]]","v":"00:00:00"}]
[55,null,null,null,null,{"$f":"IF(Table21[[#This Row],[التصنيف الرئيسي]]=\"وارد\",\"وارد - \"&Table21[[#This Row],[التصنيف الفرعي]],\"\")","v":""},{"$f":"Table21[[#This Row],[التاريخ]]","v":"00:00:00"}]
[56,null,null,null,null,{"$f":"IF(Table21[[#This Row],[التصنيف الرئيسي]]=\"وارد\",\"وارد - \"&Table21[[#This Row],[التصنيف الفرعي]],\"\")","v":""},{"$f":"Table21[[#This Row],[التاريخ]]","v":"00:00:00"}]
[57,null,null,null,null,{"$f":"IF(Table21[[#This Row],[التصنيف الرئيسي]]=\"وارد\",\"وارد - \"&Table21[[#This Row],[التصنيف الفرعي]],\"\")","v":""},{"$f":"Table21[[#This Row],[التاريخ]]","v":"00:00:00"}]
[58,null,null,null,null,{"$f":"IF(Table21[[#This Row],[التصنيف الرئيسي]]=\"وارد\",\"وارد - \"&Table21[[#This Row],[التصنيف الفرعي]],\"\")","v":""},{"$f":"Table21[[#This Row],[التاريخ]]","v":"00:00:00"}]
[59,null,null,null,null,{"$f":"IF(Table21[[#This Row],[التصنيف الرئيسي]]=\"وارد\",\"وارد - \"&Table21[[#This Row],[التصنيف الفرعي]],\"\")","v":""},{"$f":"Table21[[#This Row],[التاريخ]]","v":"00:00:00"}]
[60,null,null,null,null,{"$f":"IF(Table21[[#This Row],[التصنيف الرئيسي]]=\"وارد\",\"وارد - \"&Table21[[#This Row],[التصنيف الفرعي]],\"\")","v":""},{"$f":"Table21[[#This Row],[التاريخ]]","v":"00:00:00"}]
[61,null,null,null,null,{"$f":"IF(Table21[[#This Row],[التصنيف الرئيسي]]=\"وارد\",\"وارد - \"&Table21[[#This Row],[التصنيف الفرعي]],\"\")","v":""},{"$f":"Table21[[#This Row],[التاريخ]]","v":"00:00:00"}]
[62,null,null,null,null,{"$f":"IF(Table21[[#This Row],[التصنيف الرئيسي]]=\"وارد\",\"وارد - \"&Table21[[#This Row],[التصنيف الفرعي]],\"\")","v":""},{"$f":"Table21[[#This Row],[التاريخ]]","v":"00:00:00"}]
[63,null,null,null,null,{"$f":"IF(Table21[[#This Row],[التصنيف الرئيسي]]=\"وارد\",\"وارد - \"&Table21[[#This Row],[التصنيف الفرعي]],\"\")","v":""},{"$f":"Table21[[#This Row],[التاريخ]]","v":"00:00:00"}]
[64,null,null,null,null,{"$f":"IF(Table21[[#This Row],[التصنيف الرئيسي]]=\"وارد\",\"وارد - \"&Table21[[#This Row],[التصنيف الفرعي]],\"\")","v":""},{"$f":"Table21[[#This Row],[التاريخ]]","v":"00:00:00"}]
[65,null,null,null,null,{"$f":"IF(Table21[[#This Row],[التصنيف الرئيسي]]=\"وارد\",\"وارد - \"&Table21[[#This Row],[التصنيف الفرعي]],\"\")","v":""},{"$f":"Table21[[#This Row],[التاريخ]]","v":"00:00:00"}]
[66,null,null,null,null,{"$f":"IF(Table21[[#This Row],[التصنيف الرئيسي]]=\"وارد\",\"وارد - \"&Table21[[#This Row],[التصنيف الفرعي]],\"\")","v":""},{"$f":"Table21[[#This Row],[التاريخ]]","v":"00:00:00"}]
[67,null,null,null,null,{"$f":"IF(Table21[[#This Row],[التصنيف الرئيسي]]=\"وارد\",\"وارد - \"&Table21[[#This Row],[التصنيف الفرعي]],\"\")","v":""},{"$f":"Table21[[#This Row],[التاريخ]]","v":"00:00:00"}]
[68,null,null,null,null,{"$f":"IF(Table21[[#This Row],[التصنيف الرئيسي]]=\"وارد\",\"وارد - \"&Table21[[#This Row],[التصنيف الفرعي]],\"\")","v":""},{"$f":"Table21[[#This Row],[التاريخ]]","v":"00:00:00"}]
[69,null,null,null,null,{"$f":"IF(Table21[[#This Row],[التصنيف الرئيسي]]=\"وارد\",\"وارد - \"&Table21[[#This Row],[التصنيف الفرعي]],\"\")","v":""},{"$f":"Table21[[#This Row],[التاريخ]]","v":"00:00:00"}]
[70,null,null,null,null,{"$f":"IF(Table21[[#This Row],[التصنيف الرئيسي]]=\"وارد\",\"وارد - \"&Table21[[#This Row],[التصنيف الفرعي]],\"\")","v":""},{"$f":"Table21[[#This Row],[التاريخ]]","v":"00:00:00"}]
[71,null,null,null,null,{"$f":"IF(Table21[[#This Row],[التصنيف الرئيسي]]=\"وارد\",\"وارد - \"&Table21[[#This Row],[التصنيف الفرعي]],\"\")","v":""},{"$f":"Table21[[#This Row],[التاريخ]]","v":"00:00:00"}]
[72,null,null,null,null,{"$f":"IF(Table21[[#This Row],[التصنيف الرئيسي]]=\"وارد\",\"وارد - \"&Table21[[#This Row],[التصنيف الفرعي]],\"\")","v":""},{"$f":"Table21[[#This Row],[التاريخ]]","v":"00:00:00"}]
[73,null,null,null,null,{"$f":"IF(Table21[[#This Row],[التصنيف الرئيسي]]=\"وارد\",\"وارد - \"&Table21[[#This Row],[التصنيف الفرعي]],\"\")","v":""},{"$f":"Table21[[#This Row],[التاريخ]]","v":"00:00:00"}]
[74,null,null,null,null,{"$f":"IF(Table21[[#This Row],[التصنيف الرئيسي]]=\"وارد\",\"وارد - \"&Table21[[#This Row],[التصنيف الفرعي]],\"\")","v":""},{"$f":"Table21[[#This Row],[التاريخ]]","v":"00:00:00"}]
[75,null,null,null,null,{"$f":"IF(Table21[[#This Row],[التصنيف الرئيسي]]=\"وارد\",\"وارد - \"&Table21[[#This Row],[التصنيف الفرعي]],\"\")","v":""},{"$f":"Table21[[#This Row],[التاريخ]]","v":"00:00:00"}]
[76,null,null,null,null,{"$f":"IF(Table21[[#This Row],[التصنيف الرئيسي]]=\"وارد\",\"وارد - \"&Table21[[#This Row],[التصنيف الفرعي]],\"\")","v":""},{"$f":"Table21[[#This Row],[التاريخ]]","v":"00:00:00"}]
[77,null,null,null,null,{"$f":"IF(Table21[[#This Row],[التصنيف الرئيسي]]=\"وارد\",\"وارد - \"&Table21[[#This Row],[التصنيف الفرعي]],\"\")","v":""},{"$f":"Table21[[#This Row],[التاريخ]]","v":"00:00:00"}]
[78,null,null,null,null,{"$f":"IF(Table21[[#This Row],[التصنيف الرئيسي]]=\"وارد\",\"وارد - \"&Table21[[#This Row],[التصنيف الفرعي]],\"\")","v":""},{"$f":"Table21[[#This Row],[التاريخ]]","v":"00:00:00"}]
[79,null,null,null,null,{"$f":"IF(Table21[[#This Row],[التصنيف الرئيسي]]=\"وارد\",\"وارد - \"&Table21[[#This Row],[التصنيف الفرعي]],\"\")","v":""},{"$f":"Table21[[#This Row],[التاريخ]]","v":"00:00:00"}]
[80,null,null,null,null,{"$f":"IF(Table21[[#This Row],[التصنيف الرئيسي]]=\"وارد\",\"وارد - \"&Table21[[#This Row],[التصنيف الفرعي]],\"\")","v":""},{"$f":"Table21[[#This Row],[التاريخ]]","v":"00:00:00"}]
[81,null,null,null,null,{"$f":"IF(Table21[[#This Row],[التصنيف الرئيسي]]=\"وارد\",\"وارد - \"&Table21[[#This Row],[التصنيف الفرعي]],\"\")","v":""},{"$f":"Table21[[#This Row],[التاريخ]]","v":"00:00:00"}]
[82,null,null,null,null,{"$f":"IF(Table21[[#This Row],[التصنيف الرئيسي]]=\"وارد\",\"وارد - \"&Table21[[#This Row],[التصنيف الفرعي]],\"\")","v":""},{"$f":"Table21[[#This Row],[التاريخ]]","v":"00:00:00"}]
[83,null,null,null,null,{"$f":"IF(Table21[[#This Row],[التصنيف الرئيسي]]=\"وارد\",\"وارد - \"&Table21[[#This Row],[التصنيف الفرعي]],\"\")","v":""},{"$f":"Table21[[#This Row],[التاريخ]]","v":"00:00:00"}]
[84,null,null,null,null,{"$f":"IF(Table21[[#This Row],[التصنيف الرئيسي]]=\"وارد\",\"وارد - \"&Table21[[#This Row],[التصنيف الفرعي]],\"\")","v":""},{"$f":"Table21[[#This Row],[التاريخ]]","v":"00:00:00"}]
[85,null,null,null,null,{"$f":"IF(Table21[[#This Row],[التصنيف الرئيسي]]=\"وارد\",\"وارد - \"&Table21[[#This Row],[التصنيف الفرعي]],\"\")","v":""},{"$f":"Table21[[#This Row],[التاريخ]]","v":"00:00:00"}]
[86,null,null,null,null,{"$f":"IF(Table21[[#This Row],[التصنيف الرئيسي]]=\"وارد\",\"وارد - \"&Table21[[#This Row],[التصنيف الفرعي]],\"\")","v":""},{"$f":"Table21[[#This Row],[التاريخ]]","v":"00:00:00"}]
[87,null,null,null,null,{"$f":"IF(Table21[[#This Row],[التصنيف الرئيسي]]=\"وارد\",\"وارد - \"&Table21[[#This Row],[التصنيف الفرعي]],\"\")","v":""},{"$f":"Table21[[#This Row],[التاريخ]]","v":"00:00:00"}]
[88,null,null,null,null,{"$f":"IF(Table21[[#This Row],[التصنيف الرئيسي]]=\"وارد\",\"وارد - \"&Table21[[#This Row],[التصنيف الفرعي]],\"\")","v":""},{"$f":"Table21[[#This Row],[التاريخ]]","v":"00:00:00"}]
[89,null,null,null,null,{"$f":"IF(Table21[[#This Row],[التصنيف الرئيسي]]=\"وارد\",\"وارد - \"&Table21[[#This Row],[التصنيف الفرعي]],\"\")","v":""},{"$f":"Table21[[#This Row],[التاريخ]]","v":"00:00:00"}]
[90,null,null,null,null,{"$f":"IF(Table21[[#This Row],[التصنيف الرئيسي]]=\"وارد\",\"وارد - \"&Table21[[#This Row],[التصنيف الفرعي]],\"\")","v":""},{"$f":"Table21[[#This Row],[التاريخ]]","v":"00:00:00"}]
[91,null,null,null,null,{"$f":"IF(Table21[[#This Row],[التصنيف الرئيسي]]=\"وارد\",\"وارد - \"&Table21[[#This Row],[التصنيف الفرعي]],\"\")","v":""},{"$f":"Table21[[#This Row],[التاريخ]]","v":"00:00:00"}]
[92,null,null,null,null,{"$f":"IF(Table21[[#This Row],[التصنيف الرئيسي]]=\"وارد\",\"وارد - \"&Table21[[#This Row],[التصنيف الفرعي]],\"\")","v":""},{"$f":"Table21[[#This Row],[التاريخ]]","v":"00:00:00"}]
[93,null,null,null,null,{"$f":"IF(Table21[[#This Row],[التصنيف الرئيسي]]=\"وارد\",\"وارد - \"&Table21[[#This Row],[التصنيف الفرعي]],\"\")","v":""},{"$f":"Table21[[#This Row],[التاريخ]]","v":"00:00:00"}]
[94,null,null,null,null,{"$f":"IF(Table21[[#This Row],[التصنيف الرئيسي]]=\"وارد\",\"وارد - \"&Table21[[#This Row],[التصنيف الفرعي]],\"\")","v":""},{"$f":"Table21[[#This Row],[التاريخ]]","v":"00:00:00"}]
[95,null,null,null,null,{"$f":"IF(Table21[[#This Row],[التصنيف الرئيسي]]=\"وارد\",\"وارد - \"&Table21[[#This Row],[التصنيف الفرعي]],\"\")","v":""},{"$f":"Table21[[#This Row],[التاريخ]]","v":"00:00:00"}]
["Total",null,null,null,{"$f":"SUBTOTAL(109,Table21[القيمة])","v":0},null,{"$f":"SUBTOTAL(103,Table21[Column1])","v":95}]

{"sheet":"بيانات","index":12,"n_rows":20,"n_cols":25,"rows_kept":20,"cut":false,"hidden":false,"merged":[]}
["التصنيف الرئيسي",null,"وارد",null,"اشتراكات",null,"ابناء",null,"دراسية",null,"صيانة",null,"بقالة",null,"لحوم",null,"طبابة",null,"انتقالات"]
["وارد",null,"مرتب",null,"فواتيرانترنت",null,null,null,null,null,"ص كهرباء",null,null,null,"لحوم",null,null,null,null,null,null,null,null,null,"بقالة"]
["اشتراكات",null,"بدلات شهرية",null,"هاتف منزلي",null,null,null,null,null,"ص سباكة",null,null,null,"اسماك",null,null,null,null,null,null,null,null,null,"رسم محمد جمال"]
["ابناء",null,"ارباح سنوية",null,"شحن هاتف جوال",null,null,null,null,null,null,null,null,null,"ارانب",null,null,null,null,null,null,null,null,null,"زكاة"]
["دراسية",null,"اقساط عملاء",null,"فاتورة كهرباء",null,null,null,null,null,null,null,null,null,"دواجن",null,null,null,null,null,null,null,null,null,"طبابة"]
["صيانة",null,"عوائد ايجار",null,"فاتورة مياة",null,null,null,null,null,null,null,null,null,"كباب وكفتة",null,null,null,null,null,null,null,null,null,"طهارة ادم"]
["بقالة",null,null,null,"قسط ايفون",null,null,null,null,null,null,null,null,null,"عزومات",null,null,null,null,null,null,null,null,null,"عيد ميلاد"]
["لحوم",null,null,null,"قسط عدادات مسبوقة",null,null,null,null,null,null,null,null,null,"بيتزا",null,null,null,null,null,null,null,null,null,"فاكهة"]
["طبابة"]
["انتقالات",null,null,null,null,null,null,null,null,null,null,null,null,null,null,null,null,null,null,null,null,null,null,null,"قسط جمعية"]
[]
[null,null,null,null,null,null,null,null,null,null,null,null,null,null,null,null,null,null,null,null,null,null,null,null,"كفالة يتيم 1"]
[null,null,null,null,null,null,null,null,null,null,null,null,null,null,null,null,null,null,null,null,null,null,null,null,"كفالة يتيم 2"]
[null,null,null,null,null,null,null,null,null,null,null,null,null,null,null,null,null,null,null,null,null,null,null,null,"لب وتسالي"]
[null,null,null,null,null,null,null,null,null,null,null,null,null,null,null,null,null,null,null,null,null,null,null,null,"مسحوق غسيل"]
[null,null,null,null,"المطلوب",null,null,null,null,null,null,null,null,null,null,null,null,null,null,null,null,null,null,null,"مشروبات وعصائر"]
[null,null,null,null,"اضافة نطاقات اخري للقائمة المنسدلة"]
[null,null,null,null,"جمع المصروفات لتحديد الفائض من الميزانية",null,null,null,null,null,null,null,null,null,null,null,null,null,null,null,null,null,null,null,"ملابس"]
[null,null,null,null,null,null,null,null,null,null,null,null,null,null,null,null,null,null,null,null,null,null,null,null,"منظفات"]
[null,null,null,null,null,null,null,null,null,null,null,null,null,null,null,null,null,null,null,null,null,null,null,null,"نقوط"]

{"sheet":"Main","index":13,"n_rows":0,"n_cols":0,"rows_kept":0,"cut":false,"hidden":false,"merged":[]}